Workbook

Sheet Journal
B2: Journal of changes made to the IPART cost building block model template
B3: Changes made since June 2014
B5: IPART cost building block model template - July 2016.xlsm, developed by Bee Thompson
B7: Description of changes: | C7: Worksheets: | D7: Made by: | E7: Date | F7: Notes
B8: Financial statements are presented in nominal terms even when costs and prices are forecast in real terms. | C8: Financials | D8: Bee Thompson | E8: 2015-03-01 | F8: Previous version presented financial statements in real terms if costs and prices were forecast in real terms.
B9: Added revenue from asset sales, and hence profit/loss on sales. | C9: Scenario, Cost building blocks, Financials, Tax | D9: Bee Thompson | E9: 2015-03-01 | F9: Previous version made a simplifying 'zero profit' assumption (ie, revenue = cost). Note that:
F10: a. Profits/losses can be shared between business and customers (optional).
F11: b. Profits/losses shared with customers are included in the calculation of the tax allowance.
F12: c. All profits/losses are excluded from FFO for purposes of calculating financial ratios.
B13: Changed ratio calculations to reflect the Tribunal's recent decisions. | C13: Fixed inputs, Financials, Implied return | D13: Bee Thompson | E13: 2015-03-01 | F13: See notes and comments on relevant worksheets. Financeability test documents are available on IPART's website at http://www.ipart.nsw.gov.au/Home/Industries/Research/Reviews/Financeability_Tests
B14: Added option of pre- or post-tax WACC for historical period. | C14: Scenario, Cost building blocks | D14: Bee Thompson | E14: 2015-03-01 | F14: Previous version assumed that a pre-tax WACC applies before the first year of the new determination (year 1). Used to calculate implied return in year 0 .
B15: Added option to roll forward of tax value of assets (TVA) to the first year of new determination (year 1). | C15: Fixed inputs, Scenario, Tax | D15: Bee Thompson | E15: 2015-03-01 | F15: Previous model did not include this option.
B16: Bills are now correctly calculated for both a single tier and a two-tier pricing structure. | C16: Bills | D16: Bee Thompson | E16: 2015-03-01 | F16: Previous calculations worked only for a two-tier structure.
B17: Tax calculation uses WACC inflation. | C17: Tax | D17: Bee Thompson | E17: 2015-03-01 | F17: Previously used the inflation rates that apply to costs and prices.
B18: The tax allowance is shown before the adjustment for gamma ( franking credits), and the adjustment for gamma is shown as a separate line item. | C18: Tax | D18: Bee Thompson | E18: 2015-03-01 | F18: No impact on outcomes but more transparent. The previous version showed only the tax allowance net of the adjustment for gamma.
B19: Tax on cash and in-kind capital contributions is included in the Income Statement rather than as an adjustment to FFO. | C19: Financials | D19: Bee Thompson | E19: 2015-05-01 | F19: Included in the Income Statement to fully account for the impact of these payments on debt, interest payments and cash flows.
B20: Tax rate used for financial statements is a separate input. The default rate is the WACC corporate tax rate. | C20: Pricing & financial inputs | D20: Bee Thompson | E20: 2016-06-12 | F20: Model previously used the corporate tax rate from the WACC. The additional flexibility allows a different corporate tax rate to be used for the purposes of financial statements and ratios.
B21: Moved Cost & RAB inputs from 'Scenario' to new 'Cost & RAB inputs' worksheet and added cost options on 'Scenario' | C21: Cost & RAB inputs, Scenario, RAB historical, RAB projected, Working capital, Tax | D21: Bee Thompson | E21: 2016-06-12 | F21: Allows user to store 2 sets of costs and select which one to use. Makes the model more flexible.
B22: Cash capital contributions can now enter the RAB either (a) net of tax or (b) before tax | C22: Scenario, RAB historical, RAB projected, Working capital, Tax, Financials | D22: Bee Thompson | E22: 2016-06-12 | F22: In 2016 IPART adopted a new policy, which is to use cash capital contributions net of tax for the RAB roll forward. Under this approach, tax on cash cap cons is no longer included in the tax allowance.
B23: Added note on IPART's new disposals policy | C23: Cost & RAB inputs | D23: Bee Thompson | E23: 2016-06-12 | F23: New IPART policy, adopted in 2016
B24: Moved 'Financials' worksheet to just after 'Scenario' for easy reference | C24: Whole model | D24: Bee Thompson | E24: 2016-06-12
B25: Key changes to model template to show how we would calculate the financial ratios under our Draft Report recommendations
B26: Added Financials for the benchmark test | C26: Financials benchmark, Pricing & financial inputs | D26: Bee Thompson | E26: 2018-08-14
B27: Changed Financials for the actual test | C27: Financials actual, Pricing & financial inputs | D27: Bee Thompson | E27: 2018-08-14
B28: For the actual test, allow dividends to be forecast in either (i) dollar terms, or (ii) using a dividend payout rate. | C28: Financials actual, Pricing & financial inputs, Scenario | D28: Bee Thompson | E28: 2018-08-14 | F28: The user selects which option to use on the Scenario worksheet
B29: Added data and calculations for one additional historical year | C29: All worksheets except WACC, RAB historical, RAB projected, Return on RAB and Tax | D29: Bee Thompson | E29: 2018-08-14 | F29: This allows us to calculate benchmark ratios for one historical year
B30: Input changes: higher closing in debt in last year before the new determination period (ie, Year 0) | C30: Pricing & financial inputs, J87 | D30: Bee Thompson | E30: 2018-09-24
B31: Other changes
B32: Use real WACC to discount return on and of assets to mid-year value when the revenue requirement is forecast in nominal terms. | C32: Return on RAB, Cost building blocks, RAB & cost inputs (Table 6) | D32: Bee Thompson | E32: 2018-08-20 | F32: Use real WACC because inflationary gain is included in the RAB and is not recovered through prices. (This change has no impact if the revenue requirement is forecast in real terms.)
B33: Reorganised the WACC worksheet and updated WACC parameters | C33: WACC | D33: Bee Thompson | E33: 2018-08-24 | F33: WACC parameters are from the Feb 2018 biannual market update, water businesses

Sheet Cover
B1: THE INDEPENDENT PRICING AND REGULATORY TRIBUNAL OF NSW
B3: IPART TEMPLATE FOR COST BUILDING BLOCKS, SIMPLE TARIFF SETTING AND FINANCIAL RATIO ANALYSIS
B7: Purpose of the model template
B9: This model template illustrates the basic elements of IPART’s approach to calculating a regulated business' revenue requirements using a
B10: building block methodology.
B12: It provides a simple example of how IPART sets tariffs to meet those requirements, and shows how IPART undertakes
B13: cash flow and financial ratio analysis.
B15: The model is for illustrative purposes only, to show how the major components of financial models for regulated businesses generally
B16: work. The model should not be considered to represent the basis of pricing for any particular determination. Please refer to IPART's
B17: pricing reports for detailed information on how prices are set for a particular sector.
B19: What the model does
B21: 1. | C21: The model sets revenue requirements by determining the following cost building blocks:
C22: g | D22: operating costs (opex)
C23: g | D23: return of the Regulatory Asset Base (RAB), or depreciation
C24: g | D24: return on the RAB
C25: g | D25: return on working capital
C26: g | D26: tax allowance less an adjustment for franking credits (if a post-tax WACC is selected)
B28: 2. | C28: The model then illustrates how tariffs may be set.
D29: In practice, there are many ways to set tariffs to recover the required revenue, for example by setting the actual maximum tariffs or by using a weighted average price cap (WAPC). This model provides a simple example of how actual maximum tariffs may be set.
B31: 3. | C31: Using the costs and tariffs, the model shows how IPART:
C32: g | D32: constructs simple regulatory financial statements, and
C33: g | D33: conducts cash flow and ratio analysis.
B35: Target audience and model structure
B37: The primary audience for this template is IPART staff who wish to understand, build and/or check IPART building block models.
B38: External parties who wish to understand IPART's cost building block methodology and financial ratio analysis may also find this
B39: template useful.
B41: By necessity, the template is simplified and is not sector specific. However, the financial ratio benchmarks (credit rating range) are
B42: specific to water utilities. The template will most likely need to be adapted for actual reviews.
B44: Given its function, for clarity and ease of reference the main calculations are set out in separate worksheets and a number of
B45: the calculations are annotated. The structure is as follows:
B46: The user interface:
C47: g | D47: Cost inputs, and additional information required to roll forward the RAB to the start of the new determination period, are entered in the 'RAB & cost inputs' worksheet (light blue tab).
D48: Note: This worksheet can store two sets of operating costs, capital expenditure and cash capital contributions. The user selects which set of costs to use on the 'Scenario' worksheet.
C49: g | D49: Inputs required to set prices, calculate bills and produce financial statements and ratios are entered in the 'Pricing & financial inputs' worksheet (light blue tab).
C50: g | D50: WACC parameters are entered in the 'WACC' worksheet (light blue tab).
C51: g | D51: The 'Scenario' worksheet is the 'operational' part of the model (dark blue tab). This worksheet:
D52: - Asks the user to select costs and other modelling options.
D53: - Is where tariffs are set.
D54: - Displays the key output tables. Users should be able to find all the important outputs in this worksheet, including the rolled-forward
D55: RAB, notional and target revenue requirements, tariffs, bills and financial ratios.
C56: The 'Scenario' worksheet is used to produce a Summary workbook for scenario analysis (discussed below).
C57: The 'Financials' worksheet contains financial statements and ratio analysis.
B58: Calculation worksheets:
C59: g | D59: The next 6 worksheets contain the calculations for the cost building blocks:
D60: - Rolling forward the RAB to the start of the new determination period.
D61: - Rolling forward the forecast RAB.
D62: - Calculating the return on the RAB.
D63: - Calculating the value of working capital and the return on working capital.
D64: - Calculating the tax allowance and, if required, tax depreciation. (The outputs are used only if a post-tax WACC is selected.)
D65: - Calculating the total cost building block revenue and the required revenue from tariffs.
C66: g | D66: The 'Implied return' worksheet shows how IPART calculates the implied rate of return from the revenue generated from tariffs.
C67: g | D67: The 'Bills' worksheet constructs consumer bills using the tariffs set on the 'Scenario' worksheet.
C68: g | D68: The 'Checks' worksheets draws together all the error checks in the model for easy reference.
B70: The structure of this model is different to a typical IPART model because a typical model will combine calculations on fewer worksheets.
B72: Scenario Summary workbook
B73: A 'Scenario Summary' workbook can be developed to capture the 'Scenario' worksheet for a number of different scenarios (copy & paste as values).
B74: This makes it easy to compare different scenarios (inputs and outputs) and the assumptions used to generate them. The 'Scenario Summary'
B75: workbook is discussed further under 'Instructions for using the model' on the next worksheet. An example is provided on IPART's website.
B77: WACC calculation methodology
B79: In December 2013 the Tribunal made a final decision on the methodology we use to determine the WACC, following a 12 month review.
B80: (IPART, Review of WACC Methodology Research — Final Report. December 2013)
B82: Reflecting this decision, the model calculates the WACC using the following two-step process (on the WACC worksheet):
B84: First, the model calculates a final WACC range and midpoint by (Table 1):
C85: g | D85: Estimating two WACC ranges: one using current market data (ie, current WACC range: Columns C, D and E) and the other using long-term
D86: averages (ie, long-term WACC range: Columns F, G and H).
C87: g | D87: Using the midpoints of the long-term and current WACC ranges as the upper and lower bounds of the final WACC range (Columns I and K).
C88: g | D88: Using the average of these midpoints as the midpoint of the final WACC range (Column J).
B90: Second, reflecting the Tribunal's decision rule, the model user chooses a WACC point estimate based on the level of economic uncertainty (Table 2).
B91: IPART constructs a monthly uncertainty index using the S&P/ASX 200 VIX Index, the dispersion in analysts’ forecasts for companies in the S&P/ASX 200,
B92: credit spread and Bills-OIS spread from July 2001.
B93: The decision rule is that:
C94: g | D94: If the uncertainty index is within, or at, one standard deviation of the long-term average of 0, the Tribunal will select the midpoint WACC.
D95: Using the midpoint WACC means that we give an equal weight to current market data and long-term averages.
C96: g | D96: If not, the Tribunal will consider moving away from the midpoint WACC within the final WACC range.
D97: In deciding whether and by how much the WACC point estimate should deviate from the midpoint, the Tribunal will have regard to the value of the uncertainty index and additional financial market information, including debt and equity transaction data, interest rate swap curves, equity analyst reports and independent expert reports.
B99: The report is available on our website at
D100: http://www.ipart.nsw.gov.au/Home/Industries/Research/Reviews/WACC/Review_of_method_for_determining_the_WACC
B102: Modelling options - nominal or real forecasts and pre- or post-tax WACC
B104: Nominal or real forecast revenue requirement
B106: This model provides the option of calculating forecast costs, tariffs and revenue in nominal or real terms.
B108: If forecasts are made in real terms:
C109: g | D109: The model effectively treats the forecast inflation rate as 0%.
C110: g | D110: A real WACC is used for all WACC calculations.
C111: g | D111: Tariffs are set in real terms, and may be converted to nominal prices by applying the inflation index. Nominal tariffs and bills are displayed in the 'Output' worksheet.
B113: If forecasts are made in nominal terms:
C114: g | D114: The model uses the forecast inflation rate entered in the 'Inputs' worksheet to inflate costs and the RAB.
C115: g | D115: A real WACC is used to calculate the return on the (indexed) RAB, and a nominal WACC is used for all other WACC calculations.
C116: g | D116: Tariffs are set in nominal terms.
B118: Pre-tax or post-tax WACC
B120: This model provides the option of calculating the return on assets using a real pre-tax WACC or a real post-tax WACC .
B122: If a post-tax WACC is used:
C123: g | D123: The model calculates a tax allowance as a component of the building block costs. The model shows the tax allowance before adjustment for franking credits and, as a separate line item, the adjustment for franking credits (gamma).
C124: g | D124: Tax depreciation is required to calculate the tax allowance. The model uses either forecast tax depreciation provided by the regulated
D125: business, or forecast tax depreciation calculated by the model (in nominal $). To calculate an estimate of tax depreciation:
D126: - If the business pays tax or tax equivalents, the model can use an opening tax asset base and tax asset lives provided by the
D127: business.
D128: - If the business does not pay tax or tax equivalents, or if no information about tax assets and asset lives is provided, the model uses a rolled forward
D129: Tax Value of Assets (TVA) and RAB asset lives to calculate tax depreciation. When first established, the opening value of the TVA is equal to the RAB.
D130: - The model uses straight-line depreciation.
B132: If a pre-tax WACC is used, tax payments are modelled only in the financial statements and cash-flow analysis. Only the tax expense is calculated,
B133: using the statutory tax rate. No attempt is made to estimate the business' actual tax liability.
B135: A pre-tax WACC is used for all NPV calculations.
B137: Regulatory assumptions
B139: The following assumptions apply to all IPART cost building block models, unless otherwise stated.
B141: Timing assumptions
B142: The following timing assumptions are made to calculate the building block revenue requirement:
B143: g | C143: Half of capital expenditure and disposals occurs at the beginning of the year, and half at the end of the year.
B144: g | C144: Depreciation occurs at the end of the year.
B145: g | C145: Revenue is received mid-year (a proxy for throughout the year). Therefore
C147: Building block revenue requirement
C148: = | D148: operating costs
C149: +' | D149: year-end value of depreciation discounted by 6 months of nominal WACCa
C150: +' | D150: year-end return on fixed assets discounted by 6 months of nominal WACCa
C151: +' | D151: year-end return on working capital discounted by 6 months of nominal WACCa.
C152: +' | D152: an allowance for tax if a post-tax WACC is used.
C153: a | D153: Nominal WACC applies only when calculation are undertaken in nominal terms. Otherwise the real WACC is used.
B155: Return on working capital
B156: A return on working capital is given because the return on and of the RAB are mid-year values.
B158: The regulatory value of working capital = receivables - payables + inventory, where:
C159: g | D159: receivables are specified in days of revenue, and
C160: g | D160: payables and inventory are specified in days of opex + capex.
B162: Rolling forward the RAB
B163: The RAB is rolled forward as follows:
C164: Opening RAB
C165: + | D165: capex net of cash capital contributions (net capex)
C166: - | D166: disposals
C167: - | D167: depreciation
C168: + | D168: indexation (when the RAB is calculated in nominal prices)
C169: = | D169: Closing RAB
B171: For simplicity, this model uses a single asset category for depreciating assets which is depreciated on the basis of a weighted asset life.
B173: Rolling forward the historical RAB to the start of the new determination period
B174: When rolling forward the RAB to the start of the new determination period:
C175: g | D175: The starting value is the closing RAB in the last year for which actual net capex, disposals and inflation were known when the RAB was previously rolled forward (usually the penultimate year of the previous determination period).
C176: g | D176: Depreciation is either (a) the forecast amount for the current determination, corrected for actual inflation or (b) actual depreciation (ie, calculated).
D177: The user selects which depreciation to use (see Scenario worksheet). Using 'allowed depreciation' means that depreciation is not recalculated using actual net capex and disposals. IPART practice since 2001 has been to use allowed depreciation.
C178: g | D178: Actual net capex and disposals are used, with forecasts for the final year.
C179: g | D179: The RAB is indexed for inflation using actual inflation for the year, and forecast inflation for the final year of the determination period.
B181: The Tax Value of Assets (TVA) is rolled forward in the same way as the RAB except that actual depreciation is always used and the TVA is not indexed.
B183: Required revenue from tariffs
B184: Required revenue from tariffs is the cost building block revenue less any non-tariff regulatory revenue that is allocated to customers.
C185: g | D185: Non-tariff revenue is regarded as regulatory revenue if the costs of producing that revenue are included in the cost building blocks. For example, revenue from telecommunication towers on a dam wall is regarded as regulatory revenue. Profit/loss from the sale of assets is similarly regarded.
C186: g | D186: This revenue may be shared between customers and the business, in a ratio determined by the Tribunal.
B188: Tariffs may be set in a number of ways, including: to recover the required revenue each year; to recover required revenue over the forecast
B189: period on a NPV basis; or to move to full cost recovery by the last year of the determination period. The latter is referred to as the 'price glide path'.
B191: Regulatory financial statements and cash flows
B192: Simple regulatory financial statements are constructed using the following assumptions:
C193: g | D193: The income statement uses regulatory depreciation, the statutory tax rate and a dividend payout rate that is entered as an input.
C194: g | D194: The balance sheet uses the RAB as the value of fixed assets.
C195: g | D195: Cash flows are modelled simply, and assume that any surplus cash is used to pay off debt or, if no debt, added to the cash balance. A cash deficit increases debt in the same year the deficit occurs.
C196: g | D196: Interest income and expense are calculated on opening cash and debt, to avoid circular referencing. The interest rate is either (a) the actual cost of
D197: debt or (b) the risk free rate + debt margin. The user specifies which interest rate to use (see Scenario worksheet).
B199: Financial ratios and financeability
B200: In making price determinations, we may consider their likely effect on the regulated business’s ‘financeability’ over the determination period by applying a
B201: financeability test. In December 2013 we completed a review of how we conduct this financeability test (IPART, Financeability test in price regulation
B202: Research - Final Decision. December 2013). In 2015 we refined our calculations to bring them more in line with Moody's method for Australian
B203: regulated utilities. The 2015 changes are outlined in Fact Sheet - IPART financeability test - ratio calculations, which is available on our website.
B205: We are currently reviewing how we apply the test. Our proposed changes are explained in
B206: IPART - Review of our financeability test, Draft Report Research, August 2018. The report is available on our website at
C207: https://www.ipart.nsw.gov.au/Home/Industries/Special-Reviews/Reviews/Financeability-Tests/Review-of-financeability-test-2018
B209: The December 2013 report is available on our website at
D210: http://www.ipart.nsw.gov.au/Home/Industries/Research/Reviews/Financeability_Tests/Financeability_test_in_price_regulation_-_2012
B211: More information about our 2015 refinements is available on our website at
D212: http://www.ipart.nsw.gov.au/Home/Industries/Research/Reviews/Financeability_Tests/Review_of_financial_ratio_calculations
B214: Note:
B215: All IPART models set an initial debt gearing ratio, calculated as debt/RAB. This can be done in a number of ways.
B216: In this model, the user enters the opening value of debt in the 'Pricing & financial inputs' worksheet (Table 4). The model then calculates the debt/RAB ratio.
B217: The forecast debt/RAB ratio can be adjusted by changing dividend payments (or the dividend payout rate).
B219: Length of the determination period
B220: This model assumes a 4 year determination period, but provides forecasts for 10 years.
B221: Many IPART models in practice similarly provide forecasts for more years than the determination period.
B223: Changing the model to reflect a different regulatory period is relatively simple, and primarily requires a change in the NPV
B224: calculations and the tariff setting macro on the 'Scenario' worksheet. Note, however, that the formatting assume a 4-year period.
B226: The form of regulation
B227: This model assumes that IPART sets the maximum prices that the regulated business is allowed to charge.
B228: Other forms of regulation include, for example, a weighted average price cap or a revenue cap.
B230: Colour coding
B232: This model uses standard IPART colour coding:
B233: Blue cells indicate inputs
B234: Light blue cells indicate inputs with default values
D235: default values are shown in italics next to or below the light blue cells
B236: Blue font indicates IPART hard-coded inputs that should not be changed
B237: Pink font indicates calculation checks
B238: Red indicates assumptions made in calculations
B239: red double line means formula changes across row
B242: Developed by Bee Thompson
B243: e | D243: Bee_Thompson@IPART.nsw.gov.au

Sheet Instructions
B1: =Cover!B1 -> THE INDEPENDENT PRICING AND REGULATORY TRIBUNAL OF NSW
B3: =Cover!B3 -> IPART TEMPLATE FOR COST BUILDING BLOCKS, SIMPLE TARIFF SETTING AND FINANCIAL RATIO ANALYSIS
B8: Using the model
B10: NOTE: ONLY BLUE CELLS MAY BE CHANGED BY THE MODEL USER; THESE ARE INPUT CELLS.
B11: Light blue cells are also input cells. Override a default value by entering a number in the associated light blue cell.
B12: Any blue cell may be changed, even if it contains a formula. The function of that formula will be to calculate an input value specific to the scenario
B13: and/or business being modelled.
B15: The 'RAB & cost inputs ' worksheet
B16: Enter the inputs in the blue cells only.
B17: The input tables are fairly self-explanatory. However, please note:
C18: g | D18: This worksheet can store two sets of operating costs, capital expenditure and cash capital contributions. However, only one set of costs is required for each input. Simply leave Option 2 blank if you have only one set of costs, and make sure that Option 1 is selected on the Scenario worksheet for the corresponding set of costs..
C19: g | D19: Describe each option in the relevant blue cell in column D. This descriptor is used on the Scenario worksheet to make it easier to select the correct option.
B21: The 'Pricing & financial inputs ' worksheet
B22: Enter the inputs in the blue cells only.
B23: The input tables are fairly self-explanatory.
B25: The 'WACC' worksheet
B26: Enter the inputs in the blue cells only.
B27: ="The value entered in cell C"&ROW(WACC!$D$14)&" will determine the final WACC point estimate." -> The value entered in cell C14 will determine the final WACC point estimate.
B28: For example, 50% will give the midpoint of the final WACC range, (ie, 50% will assign equal weights to the WACC based on current market data and
B29: the WACC based on long-term averages).
B31: The 'Scenario' worksheet
B32: Enter a scenario number and name .
B33: In the 'Decisions' section select the required options in the blue input cells.
B34: Next, set the tariffs in the SETTING TARIFFS section. Instructions on how to do this are provided in the worksheet.
B36: To see how changes in cost or other inputs affect tariffs, change an input or selection and see how this affects the tariffs and/or the gap between cost
B37: and revenue. You may wish to split the screen to immediately see, for example, what happens when you select a different set of operating costs.
B39: You should be able to find all the important outputs in the 'Output Tables' section of this worksheet, including the financial ratios.
B40: However, to see the full set of regulatory financial statements, go the the 'Financials' worksheet
B42: A Scenario Summary workbook
B43: The 'Scenario' worksheet can be used to create a Scenario Summary workbook:
C44: g | D44: Open a new workbook, and name it 'Scenario Summary…'
C45: g | D45: For each scenario run, copy and paste the outputs (from the 'Scenario' worksheet) into a worksheet in the 'Scenario Summary' workbook. You should paste values (instead of linking workbook) to ensure this scenario is not affected by other scenarios.
C46: g | D46: Create summary tables of the key inputs and outputs of the different scenarios
B48: The Scenario Summary workbook can be a very useful tool, for example for
C49: g | D49: sensitivity analysis (ie, testing the impact of different input values)
C50: g | D50: keeping a record of scenario inputs and outputs
C51: g | D51: testing the impact of different tariff structures on bills and target revenue
C52: g | D52: producing comparative tables showing different scenario outcomes
C53: g | D53: analysis of cost drivers.
B55: A Summary workbook template for this model has been provide - 'Scenario Summary for model template.xls'.
B57: Calculations
B59: The rest of the worksheets contain the calculations. Most are self-explanatory, and further explanations are provided in the worksheets.

Sheet Contents
B1: =Cover!B1 -> THE INDEPENDENT PRICING AND REGULATORY TRIBUNAL OF NSW
B3: =Cover!B3 -> IPART TEMPLATE FOR COST BUILDING BLOCKS, SIMPLE TARIFF SETTING AND FINANCIAL RATIO ANALYSIS
B8: CONTENTS | D8: Tab name | E8: hyperlink
B10: INPUTS AND KEY OUTPUTS
B11: ='RAB & cost inputs'!B3 -> 1 RAB AND COST INPUTS | D11: Cost & RAB inputs | E11: Cost & RAB inputs'!A1
B12: ='Pricing & financial inputs'!B3 -> 2 PRICING AND FINANCIAL INPUTS | D12: Pricing & financial inputs | E12: Pricing & financial inputs'!A1
B13: =WACC!B3 -> 3 WACC | D13: WACC | E13: WACC!A1
B14: =Scenario!B3 -> 4 SCENARIO INPUTS, TARIFFS AND OUTPUT TABLES | D14: Scenario | E14: Scenario!B3
B15: ='Financials actual'!B3 -> 5b FINANCIAL STATEMENTS AND FINANCIAL RATIOS - ACTUAL | D15: Financials | E15: Financials!B3
B17: CALCULATION OF COST BUILDING BLOCKS
B18: ='RAB historical'!B3 -> 6 Regulatory Asset Base roll forward to start of new determination period | D18: RAB historical | E18: RAB historical'!B3
B20: ='RAB projected '!B3 -> 7 Regulatory Asset Base roll forward for new determination period | D20: RAB projected | E20: RAB projected '!B3
B22: ='Return on RAB'!B3 -> 8 Return on Regulatory Asset Base1 (year end and mid-year values) | D22: Return on RAB | E22: Return on RAB'!B3
B24: ='Working capital'!B3 -> 9 Working capital and return on working capital | D24: Working capital | E24: Working capital'!B3
B26: =Tax!B3 -> 10 Tax allowance in building block revenue and calculation of tax depreciation (if required) | D26: Tax | E26: Tax!B3
B28: ='Cost building blocks'!B3 -> 11 Cost building blocks and required revenue from tariffs | D28: Cost building blocks | E28: Cost building blocks'!B3
B30: CALCULATION OF IMPLIED RATE OF RETURN
B31: ='Implied return'!B3 -> 12 Calculation of implied real return on assets from actual historical then target revenue from tariffs | D31: Implied return | E31: Implied return'!B3
B33: CALCULATION OF BILLS
B34: =Bills!B3 -> 13 Customer bills | D34: Bills | E34: Bills!B3
B36: =Checks!B3 -> 14 Summary of error checks | D36: Checks | E36: Checks!B3

Sheet RAB & cost inputs
B1: =Cover!B1 -> THE INDEPENDENT PRICING AND REGULATORY TRIBUNAL OF NSW | F1: =Cover!$B$3 -> IPART TEMPLATE FOR COST BUILDING BLOCKS, SIMPLE TARIFF SETTING AND FINANCIAL RATIO ANALYSIS
B3: 1 RAB AND COST INPUTS
B4: This worksheet records inputs that are used to calculate the regulatory costs of the business
B6: Colour code
B7: =Cover!B233 -> Blue cells indicate inputs
B8: =Cover!B234 -> Light blue cells indicate inputs with default values
B9: =Cover!D235 -> default values are shown in italics next to or below the light blue cells
B10: =Cover!B236 -> Blue font indicates IPART hard-coded inputs that should not be changed
B11: =Cover!B237 -> Pink font indicates calculation checks
B12: =Cover!B238 -> Red indicates assumptions made in calculations
B13: =Cover!B239 -> red double line means formula changes across row
B15: List of tables | G15: row number
B16: =B31 -> TABLE 1 - INPUTS FOR RAB ROLL FORWARD TO START OF NEW DETERMINATION PERIOD | G16: =ROW(B31) -> 31
B17: =B54 -> TABLE 2- FORECAST ASSET LIVES AND WORKING CAPITAL | G17: =ROW(B54) -> 54
B18: =B69 -> TABLE 3 - FORECAST COSTS - enter forecasts in real 2018-19 $'000 | G18: =ROW(B69) -> 69
B19: =B99 -> TABLE 4 - FORECAST ASSET DISPOSALS AND OTHER REGULATORY REVENUE (NON-TARIFF) - enter forecasts in real 2018-19 $'000 | G19: =ROW(B99) -> 99
B20: =B123 -> TABLE 5 - TAX DEPRECIATION AND TAX LOSSES | G20: =ROW(B123) -> 123
B21: =B152 -> TABLE 6 - TIMING ASSUMPTIONS AND RATE OF RETURN CALCULATIONS - for information | G21: =ROW(B152) -> 152
B25: Name of regulated business | D25: A Regulated Business
B27: New determination effective from 1 July | C27: year | D27: 2019
B31: TABLE 1 - INPUTS FOR RAB ROLL FORWARD TO START OF NEW DETERMINATION PERIOD
B32: Financial year ending 30 June | C32: Units | D32: Constants | F32: =G32-1 -> 2015 | G32: =H32-1 -> 2016 | H32: =I32-1 -> 2017 | I32: =J32-1 -> 2018 | J32: ='RAB & cost inputs'!D27 -> 2019 | K32: =J32+1 -> 2020 | L32: 2021 | M32: 2022 | N32: 2023 | O32: 2024 | P32: 2025 | Q32: 2026 | R32: 2027 | S32: 2028 | T32: 2029
B33: Financial year | F33: =F32-1&"-"&RIGHT(F32,2) -> 2014-15 | G33: 2015-16 | H33: 2016-17 | I33: 2017-18 | J33: 2018-19 | K33: 2019-20 | L33: 2020-21 | M33: 2021-22 | N33: 2022-23 | O33: 2023-24 | P33: 2024-25 | Q33: 2025-26 | R33: 2026-27 | S33: 2027-28 | T33: 2028-29
J34: Previous determinations | K34: Next determination period | O34: Subsequent determinations
B36: ="RAB opening value on 1 July "&F32-1 -> RAB opening value on 1 July 2014
B37: Depreciating assets | C37: $'000 | F37: 620000 | G37: The year for the opening value of the RAB must be such that the opening value includes only actual (not forecast) capital expenditure, cash capital contributions and disposals.
B38: Non-depreciating assets (eg land) | C38: =C37 -> $'000 | F38: 40000 | G38: This will usually be the penultimate year of the previous determination period, and should be the first year of the model.
B39: Total RAB | C39: =C38 -> $'000 | F39: =SUM(F37:F38) -> 660000
B41: Allowed depreciation from previous Determination (year end value)
B42: ="Enter the value of depreciation in the RAB that was used to set prices at the last determination. Depreciation may be entered in real or nominal terms - see rows "&ROW(B44)&" and "&ROW(B45) -> Enter the value of depreciation in the RAB that was used to set prices at the last determination. Depreciation may be entered in real or nominal terms - see rows 44 and 45
B43: Allowed depreciation (nominal or real) | C43: =C37 -> $'000 | F43: 16717 | G43: 17990 | H43: 18783 | I43: 19653 | J43: 20817 | K43: na | L43: na | M43: na | N43: na | O43: na | P43: na | Q43: na | R43: na | S43: na | T43: na
B44: For years in which allowed depreciation is entered in nominal terms enter the forecast inflation rate embedded in the depreciation. If depreciation entered in real terms, enter 0% or leave blank
B45: ="Forecast inflation from previous determination embedded in allowed depreciation entered in row "&ROW(B43) -> Forecast inflation from previous determination embedded in allowed depreciation entered in row 43 | C45: % | F45: 0.012 | G45: 0.025 | H45: 0.025 | I45: 0.025 | J45: 0.025 | K45: na | L45: na | M45: na | N45: na | O45: na | P45: na | Q45: na | R45: na | S45: na | T45: na
B47: ="Asset lives used in previous determination - used to calculate the remaining life of depreciating assets on 30 June "&$K$32-1 -> Asset lives used in previous determination - used to calculate the remaining life of depreciating assets on 30 June 2019
B48: ="Ave remaining life of depreciating assets on 1 July "&$F$32-1 -> Ave remaining life of depreciating assets on 1 July 2014 | C48: years | D48: 40
B49: Expected average life of new (depreciating) assets | C49: years | D49: 60
B54: TABLE 2- FORECAST ASSET LIVES AND WORKING CAPITAL
B56: Asset lives of depreciating assets for new determination period
B57: ="Av remaining life of assets on 1 July "&'RAB & cost inputs'!$K$32-1 -> Av remaining life of assets on 1 July 2019 | C57: years | F57: Note: Enter a value in the light blue cell to overwrite the default value. Regulatory practice allows changes in the expected and remaining lives of assets. (The default value is calculated from the historical RAB.)
B58: Default = calculated remaining life | C58: years | D58: =IF(ISBLANK(D57),'RAB historical'!J149,D57) -> 38.94371853
B59: Expected average life of new assets | C59: years | D59: 60
B61: Specification of working capital
B62: Receivables @ no of days of sales | C62: days | D62: 45 | E62: Length depends on billing cycle. Generally use 50% number of days in cycle. Hence 45 days suitable for 3 monthly billing cycle
B63: Inventory @ no. of days opex + net capex | C63: days | D63: 2 | E63: Value depends on actual inventory held by business, from Balance Sheet
B64: Accounts payable @ no. of days opex + net capex | C64: days | D64: 30 | E64: 30 days normally used by IPART
B69: ="TABLE 3 - FORECAST COSTS - enter forecasts in real "&Scenario!$X$36 -> TABLE 3 - FORECAST COSTS - enter forecasts in real 2018-19 $'000 | O69: Note: All heading dates are formulae, and will change with the start date
B70: =Scenario!B$57 -> Financial year | C70: =C$32 -> Units | D70: =D$32 -> Constants | F70: =F$33 -> 2014-15 | G70: 2015-16 | H70: 2016-17 | I70: 2017-18 | J70: 2018-19 | K70: =K$33 -> 2019-20 | L70: =L$33 -> 2020-21 | M70: 2021-22 | N70: 2022-23 | O70: 2023-24 | P70: 2024-25 | Q70: 2025-26 | R70: 2026-27 | S70: 2027-28 | T70: 2028-29
F71: nominal | G71: nominal | H71: nominal | I71: nominal | J71: nominal | K71: ="Enter all forcasts in "&J70&'RAB & cost inputs'!$C$37 -> Enter all forcasts in 2018-19$'000
B72: Operating expenditure
B73: Option 1 (describe in column D) | C73: =$C$37 -> $'000 | D73: Agency forecast | F73: na | G73: na | H73: na | I73: 64940 | J73: 64950 | K73: 65000 | L73: 65150 | M73: 65300 | N73: 65450 | O73: 65600 | P73: 65750 | Q73: 65900 | R73: 66050 | S73: 66200 | T73: 66350
B74: Option 2 (describe in column D) | C74: =$C$37 -> $'000 | D74: Regulator forecast | F74: na | G74: na | H74: na | I74: =I73 -> 64940 | J74: 63650 | K74: 63700 | L74: 63850 | M74: 63990 | N74: 64140 | O74: 64290 | P74: 64440 | Q74: 64580 | R74: 64730 | S74: 64880 | T74: 65020
B76: Capital expenditure
B77: Option 1 (describe in column D) | D77: Agency capex
B78: - depreciating assets | C78: =$C$37 -> $'000 | F78: 34000 | G78: 33000 | H78: 21000 | I78: 35000 | J78: 65000 | K78: 54000 | L78: 24000 | M78: 70000 | N78: 44000 | O78: 54000 | P78: 43000 | Q78: 32000 | R78: 32500 | S78: 33000 | T78: 33500
B79: - non-depreciating assets | C79: =$C$37 -> $'000 | G79: 2000 | J79: 200 | K79: 4000 | N79: 5000
B81: Option 2 (describe in column D) | D81: Regulator capex
B82: =B$78 -> - depreciating assets | C82: =$C$37 -> $'000 | F82: 33900 | G82: 32900 | H82: 20900 | I82: 34900 | J82: 64900 | K82: 53900 | L82: 23900 | M82: 69500 | N82: 43900 | O82: 53900 | P82: 42900 | Q82: 31900 | R82: 32400 | S82: 32900 | T82: 33400
B83: =B$79 -> - non-depreciating assets | C83: =$C$37 -> $'000 | G83: 1900 | J83: 190 | K83: 2000 | L83: 2000 | N83: 4990
B85: Cash capital contributions (before tax)
B86: Option 1 (describe in column D) | D86: Agency cap cons
B87: =B$78 -> - depreciating assets | C87: =$C$37 -> $'000 | H87: 3000 | I87: 200 | J87: 350 | K87: 1000 | L87: 200 | M87: 500 | N87: 400
B88: =B$79 -> - non-depreciating assets | C88: =$C$37 -> $'000
B90: Option 2 (describe in column D) | D90: Regulator cap cons
B91: =B$78 -> - depreciating assets | C91: =$C$37 -> $'000 | H91: 2990 | I91: 210 | J91: 340 | K91: 1010 | L91: 210 | M91: 510 | N91: 410
B92: =B$79 -> - non-depreciating assets | C92: =$C$37 -> $'000 | H92: 8 | I92: 9 | J92: 19 | K92: 20 | L92: 21 | M92: 22 | N92: 23
B94: Assets contributed in-kind | C94: =$C$37 -> $'000 | I94: 900 | J94: 900 | K94: 1000 | L94: 1000 | M94: 1000 | N94: 1000 | O94: 1000 | P94: 1000 | Q94: 1000 | R94: 1000 | S94: 1000 | T94: 1000
B99: ="TABLE 4 - FORECAST ASSET DISPOSALS AND OTHER REGULATORY REVENUE (NON-TARIFF) - enter forecasts in real "&Scenario!$X$36 -> TABLE 4 - FORECAST ASSET DISPOSALS AND OTHER REGULATORY REVENUE (NON-TARIFF) - enter forecasts in real 2018-19 $'000 | O99: =O69 -> Note: All heading dates are formulae, and will change with the start date
B100: ='RAB & cost inputs'!B$33 -> Financial year | C100: =C$32 -> Units | D100: ='RAB & cost inputs'!D$32 -> Constants | F100: =F$33 -> 2014-15 | G100: 2015-16 | H100: 2016-17 | I100: 2017-18 | J100: 2018-19 | K100: =K$33 -> 2019-20 | L100: =L$33 -> 2020-21 | M100: 2021-22 | N100: 2022-23 | O100: 2023-24 | P100: 2024-25 | Q100: 2025-26 | R100: 2026-27 | S100: 2027-28 | T100: 2028-29
F101: ='RAB & cost inputs'!F$71 -> nominal | G101: ='RAB & cost inputs'!G$71 -> nominal | H101: ='RAB & cost inputs'!H$71 -> nominal | I101: ='RAB & cost inputs'!I$71 -> nominal | J101: ='RAB & cost inputs'!J$71 -> nominal | K101: =$K$71 -> Enter all forcasts in 2018-19$'000
B103: Asset disposals - regulatory values | C103: Note: IPART regulatory values differ from book values. See our policy on asset disposals (TRIM D16/6546) | L103: QA note: please check comment
B104: Cost of assets disposed - depreciating assets | C104: =C$37 -> $'000 | F104: 1000 | G104: 1000 | H104: 1000 | I104: 1000 | J104: 1000 | K104: 1000 | L104: 1000 | M104: 1000 | N104: 1000 | O104: 1000 | P104: 1000 | Q104: 1000 | R104: 1000 | S104: 1000 | T104: 1000
B105: Cost of assets disposed - non-depreciating assets | C105: =C$37 -> $'000 | F105: 700 | I105: 300 | K105: 200 | L105: 300
B107: Revenue from asset sales - depreciating assets | C107: =C$37 -> $'000 | F107: 1100 | G107: 1000 | H107: 1000 | I107: 1000 | J107: 1000 | K107: 1200 | L107: 1000 | M107: 1000 | N107: 1000 | O107: 1000 | P107: 1000 | Q107: 1000 | R107: 1000 | S107: 1000 | T107: 1000
B108: Revenue from asset sales - non-depreciating assets | C108: =C$37 -> $'000 | F108: 770 | I108: 500 | K108: 300 | L108: 350
B110: Profit/loss on asset disposals | C110: =C$37 -> $'000 | F110: =SUM(F107:F108)-SUM(F104:F105) -> 170 | G110: 0 | H110: 0 | I110: 200 | J110: 0 | K110: 300 | L110: 50 | M110: 0 | N110: 0 | O110: 0 | P110: 0 | Q110: 0 | R110: 0 | S110: 0 | T110: 0
B112: Share of profit/loss that the business may keep | C112: % | F112: 1 | G112: 1 | H112: 1 | I112: 1 | J112: 1 | K112: 1 | L112: 1 | M112: 1 | N112: 1 | O112: 1 | P112: 1 | Q112: 1 | R112: 1 | S112: 1 | T112: 1 | V112: The remaining profit is used to offset costs (or the remaining loss is added to costs) before tariffs are set
B114: Other (non-tariff) regulatory revenue to be taken off costs before prices are set (excluding developer charges and profit/loss on the asset sales)
B115: This includes income generated by activities whose costs are included in the building block costs, eg advertising revenue, rental income. The Tribunal may decide to allow the business to keep some of this revenue.
B116: Total regulatory revenue | C116: =C$37 -> $'000 | F116: 2000 | G116: 2000 | H116: 2000 | I116: 2000 | J116: 2000 | K116: 2000 | L116: 2000 | M116: 2000 | N116: 2000 | O116: 2000 | P116: 2000 | Q116: 2000 | R116: 2000 | S116: 2000 | T116: 2000
B118: Share of other revenue that the business may keep | C118: % | F118: 0.5 | G118: 0.5 | H118: 0.5 | I118: 0.5 | J118: 0.5 | K118: 0.5 | L118: 0.5 | M118: 0.5 | N118: 0.5 | O118: 0.5 | P118: 0.5 | Q118: 0.5 | R118: 0.5 | S118: 0.5 | T118: 0.5 | V118: The remaining revenue is used to offset costs before tariffs are set
B123: TABLE 5 - TAX DEPRECIATION AND TAX LOSSES
B124: The model will calculate notional tax depreciation if the regulated entity does not pay tax or tax equivalents, or cannot provide forecast tax depreciation.
B125: =B$33 -> Financial year | C125: =C$32 -> Units | D125: =D$32 -> Constants | F125: =F$33 -> 2014-15 | G125: 2015-16 | H125: 2016-17 | I125: 2017-18 | J125: 2018-19 | K125: =K$33 -> 2019-20 | L125: =L$33 -> 2020-21 | M125: 2021-22 | N125: 2022-23 | O125: 2023-24 | P125: 2024-25 | Q125: 2025-26 | R125: 2026-27 | S125: 2027-28 | T125: 2028-29
F126: ='RAB & cost inputs'!F$71 -> nominal | G126: =F126 -> nominal | H126: nominal | I126: nominal | J126: nominal | K126: nominal | L126: nominal | M126: nominal | N126: nominal | O126: nominal | P126: nominal | Q126: nominal | R126: nominal | S126: nominal | T126: nominal
J127: Historical depreciation used for finanical statements only. | K127: ="Please enter forecasts in nominal"&$C$37 -> Please enter forecasts in nominal$'000
B128: 1. For businesses that pay tax or tax equivalents and can provide forecast tax depreciation:
B129: Tax depreciation (including depreciation on contributed assets) | C129: ="nominal "&$C$37 -> nominal $'000 | I129: 19430 | J129: 19440 | K129: 19450 | L129: 18550 | M129: 19930 | N129: 22620 | O129: 21340 | P129: 24040 | Q129: 25490 | R129: 23950 | S129: 25580 | T129: 26260
B130: Note: Enter forecast tax depreciation for regulated assets only, as supplied by the regulated entity. Enter all forecasts in nominal terms (ie, do not make any adjustments for inflation)
B132: 2. For businesses that pay tax or tax equivalents and can provide the tax value of assets but cannot provide forecast tax depreciation:
B133: ="Closing value of tax asset base on 30 June "&$J$32 -> Closing value of tax asset base on 30 June 2019 | C133: =$C$37 -> $'000 | J133: 580000
B134: Average remaining tax life of assets | C134: years | J134: 30
B135: Average expected tax life of new assets | C135: years | J135: 40
B136: Note: The model calculates straight-line tax depreciation. Please include only depreciating assets.
B138: 3. For businesses that do not pay tax or tax equivalents and have a previously established regulatory tax value of assets.
B139: ="Opening value of tax asset base on 1 July "&$F$32-1 -> Opening value of tax asset base on 1 July 2014 | C139: =$C$129 -> nominal $'000 | F139: 620000
B140: Assets contributed in-kind | C140: =$C$129 -> nominal $'000 | F140: 6 | G140: 7 | H140: 7 | I140: 8 | J140: 8
B142: 4. For businesses that do not pay tax or tax equivalents and do not have a previously established tax value of assets.
B143: ="No inputs required. The model will use the closing value of the RAB in "&J125&" and RAB asset lives to calculate tax depreciation (straight line method)" -> No inputs required. The model will use the closing value of the RAB in 2018-19 and RAB asset lives to calculate tax depreciation (straight line method)
B145: Accumulated tax loss carried over to new determination period | K145: 0 | L145: IPART sets this to zero for the first year in which a post-tax WACC is applied.
B146: Tax allowance from previous determination before adjustment for franking credits (gamma) | C146: =$C$129 -> nominal $'000 | I146: 3150 | J146: 3200 | L146: Enter zero or leave blank if a pre-tax WACC was applied in the previous determination
B147: Adjustment for franking credits | C147: =$C$129 -> nominal $'000 | H147: enter as a positive number | I147: 790 | J147: 800
B152: TABLE 6 - TIMING ASSUMPTIONS AND RATE OF RETURN CALCULATIONS - for information
B153: 1. Half of capital expenditure and disposals occurs at the beginning of the year, and half at the end of the year. Therefore:
B154: % of capex in year depreciated and indexed = | C154: 0.5
B155: % of disposals in year depreciated and indexed = | C155: 0.5
B156: 2. Depreciation occurs at the end of the year.
B157: 3. The full year's return on fixed assets (regulatory value) = real rate x (opening value + 50% capex - 50% disposals) x (1+ CPI)a
B158: 4. The full year's return on working capital = nominal WACC x net working capital for the year
B160: 5. Revenue is received mid-year (a proxy for throughout the year). Therefore building block revenue comprises
B161: - | C161: Operating costs +
B162: - | C162: depreciation discounted by 6 months of real WACCb (ie mid-year value) +
B163: - | C163: return on fixed assets discounted by 6 months of real WACCb(ie mid-year value) +
B164: - | C164: return on working capital discounted by 6 months of nominal WACC (mid-year value)
B165: + | C165: allowance for tax (if a post-tax WACC is used)
B167: ="a. CPI applies only when the model forecasts the revenue requirment in nominal terms (see Scenario row "&ROW(Scenario!$L$38)&")" -> a. CPI applies only when the model forecasts the revenue requirment in nominal terms (see Scenario row 38)
B168: b. We always use a real WACC because the inflationary gain is included in the RAB and is not recovered through prices.

Sheet Pricing & financial inputs
B1: =Cover!B1 -> THE INDEPENDENT PRICING AND REGULATORY TRIBUNAL OF NSW | F1: =Cover!$B$3 -> IPART TEMPLATE FOR COST BUILDING BLOCKS, SIMPLE TARIFF SETTING AND FINANCIAL RATIO ANALYSIS
B3: 2 PRICING AND FINANCIAL INPUTS
B6: List of tables | G6: row number
B7: =B14 -> TABLE 1 - INFLATION AND HISTORICAL WACC | G7: =ROW(B14) -> 14
B8: =B29 -> TABLE 2 - SALES VOLUMES AND CUSTOMER NUMBERS | G8: =ROW(B29) -> 29
B9: =B42 -> TABLE 3 - TARIFFS and BILLS | G9: =ROW(B42) -> 42
B10: =B63 -> TABLE 4 - FINANCIAL STATEMENTS AND RATIOS | G10: =ROW(B63) -> 63
B14: TABLE 1 - INFLATION AND HISTORICAL WACC
B15: ='RAB & cost inputs'!B$33 -> Financial year | F15: ='RAB & cost inputs'!F$33 -> 2014-15 | G15: ='RAB & cost inputs'!G$33 -> 2015-16 | H15: ='RAB & cost inputs'!H$33 -> 2016-17 | I15: ='RAB & cost inputs'!I$33 -> 2017-18 | J15: ='RAB & cost inputs'!J$33 -> 2018-19 | K15: ='RAB & cost inputs'!K$33 -> 2019-20 | L15: ='RAB & cost inputs'!L$33 -> 2020-21 | M15: ='RAB & cost inputs'!M$33 -> 2021-22 | N15: ='RAB & cost inputs'!N$33 -> 2022-23 | O15: ='RAB & cost inputs'!O$33 -> 2023-24 | P15: ='RAB & cost inputs'!P$33 -> 2024-25 | Q15: ='RAB & cost inputs'!Q$33 -> 2025-26 | R15: ='RAB & cost inputs'!R$33 -> 2026-27 | S15: ='RAB & cost inputs'!S$33 -> 2027-28 | T15: ='RAB & cost inputs'!T$33 -> 2028-29
J16: ='RAB & cost inputs'!J$34 -> Previous determinations | K16: ='RAB & cost inputs'!K$34 -> Next determination period | O16: ='RAB & cost inputs'!O$34 -> Subsequent determinations
C17: see comment
B18: Inflation (actual to June, then forecast) | F18: 0.012 | G18: 0.024 | H18: 0.03 | I18: 0.015 | J18: 0.025 | K18: 0.025 | L18: 0.025 | M18: 0.025 | N18: 0.025 | O18: 0.025 | P18: 0.025 | Q18: 0.025 | R18: 0.025 | S18: 0.025 | T18: 0.025
B19: Inflation applied to costs and prices | F19: =F18 -> 0.012 | G19: =G18 -> 0.024 | H19: =H18 -> 0.03 | I19: =I18 -> 0.015 | J19: =J18 -> 0.025 | K19: =CHOOSE(Scenario!$W$37,K18,0) -> 0 | L19: =CHOOSE(Scenario!$W$37,L18,0) -> 0 | M19: =CHOOSE(Scenario!$W$37,M18,0) -> 0 | N19: =CHOOSE(Scenario!$W$37,N18,0) -> 0 | O19: =CHOOSE(Scenario!$W$37,O18,0) -> 0 | P19: =CHOOSE(Scenario!$W$37,P18,0) -> 0 | Q19: =CHOOSE(Scenario!$W$37,Q18,0) -> 0 | R19: =CHOOSE(Scenario!$W$37,R18,0) -> 0 | S19: =CHOOSE(Scenario!$W$37,S18,0) -> 0 | T19: =CHOOSE(Scenario!$W$37,T18,0) -> 0 | W19: DO NOT DELETE
B20: Index applied to forecast costs and revenue | J20: 1 | K20: =J20*(1+K19) -> 1 | L20: 1 | M20: 1 | N20: 1 | O20: 1 | P20: 1 | Q20: 1 | R20: 1 | S20: 1 | T20: 1
B21: ="Index for historical prices and costs to "&$J$15&" prices" -> Index for historical prices and costs to 2018-19 prices | F21: =G21*(1+G19) -> 1.09730432 | G21: 1.07158625 | H21: 1.040375 | I21: =J21*(1+J19) -> 1.025 | J21: 1
W22: real pre-tax
K23: Historical WACC is used to calculate implied return on RAB | W23: real post-tax
B24: Historical WACC (select pre-tax or post-tax) | D24: real post-tax | I24: 0.045 | J24: 0.045 | K24: from actual revenue. Not required if this calculation is not done. | W24: =IF(W22=D24,1,IF(W23=D24,2,"err")) -> 2
D25: =IF(W24="err", "select WACC option", IF(AND(W24=2,'RAB & cost inputs'!J146=0),"Please enter tax allowance on Fixed inputs worksheet","ok")) -> ok
B29: TABLE 2 - SALES VOLUMES AND CUSTOMER NUMBERS
B30: =B$15 -> Financial year | I30: =I$15 -> 2017-18 | J30: 2018-19 | K30: 2019-20 | L30: 2020-21 | M30: 2021-22 | N30: 2022-23 | O30: 2023-24 | P30: 2024-25 | Q30: 2025-26 | R30: 2026-27 | S30: 2027-28 | T30: 2028-29
B33: Number of customers paying access charge | C33: no. | I33: 205800 | J33: 210000 | K33: 213150 | L33: 216350 | M33: 219600 | N33: 222890 | O33: 226230 | P33: 229620 | Q33: 233060 | R33: 236560 | S33: 240110 | T33: 243710
B35: Sales volumes
B36: Volumes sold at Tier 1 price | C36: ML per year | E36: beware of units | I36: 39985 | J36: 40800 | K36: 41200 | L36: 41600 | M36: 42500 | N36: 43300 | O36: 44200 | P36: 45100 | Q36: 46000 | R36: 46900 | S36: 47800 | T36: 48800
B37: Volumes sold at Tier 2 price | C37: =C36 -> ML per year | I37: 8330 | J37: 8500 | K37: 8600 | L37: 8700 | M37: 8800 | N37: 9000 | O37: 9200 | P37: 9400 | Q37: 9600 | R37: 9800 | S37: 10000 | T37: 10200
B42: TABLE 3 - TARIFFS and BILLS
B43: ='RAB & cost inputs'!B$33 -> Financial year | C43: ='RAB & cost inputs'!C$32 -> Units | D43: ='RAB & cost inputs'!D$32 -> Constants | F43: ='RAB & cost inputs'!F$33 -> 2014-15 | G43: ='RAB & cost inputs'!G$33 -> 2015-16 | H43: ='RAB & cost inputs'!H$33 -> 2016-17 | I43: ='RAB & cost inputs'!I$33 -> 2017-18 | J43: ='RAB & cost inputs'!J$33 -> 2018-19 | K43: ='RAB & cost inputs'!K$33 -> 2019-20 | L43: ='RAB & cost inputs'!L$33 -> 2020-21 | M43: ='RAB & cost inputs'!M$33 -> 2021-22 | N43: ='RAB & cost inputs'!N$33 -> 2022-23 | O43: ='RAB & cost inputs'!O$33 -> 2023-24 | P43: ='RAB & cost inputs'!P$33 -> 2024-25 | Q43: ='RAB & cost inputs'!Q$33 -> 2025-26 | R43: ='RAB & cost inputs'!R$33 -> 2026-27 | S43: ='RAB & cost inputs'!S$33 -> 2027-28 | T43: ='RAB & cost inputs'!T$33 -> 2028-29
F44: ='RAB & cost inputs'!F$71 -> nominal | G44: ='RAB & cost inputs'!G$71 -> nominal | H44: ='RAB & cost inputs'!H$71 -> nominal | I44: ='RAB & cost inputs'!I$71 -> nominal | J44: ='RAB & cost inputs'!J$71 -> nominal | K44: ="Enter all forecasts in real "&Scenario!$W$36 -> Enter all forecasts in real nominal
B46: Current tariffS
B47: Access charge | C47: $/year | D47: beware of units | I47: 90 | J47: 90
B48: Usage charge for Tier 1 consumption | C48: $/kL | D48: beware of units | I48: 2 | J48: 2
B49: Usage charge for Tier 2 consumption | C49: =C48 -> $/kL | I49: 2.5 | J49: 2.5
B51: Tier 1 price for annual consumption up to | C51: kL per year | D51: Leave blank for a one-tier price structure | I51: 150 | J51: 150 | K51: 150 | L51: 150 | M51: 150 | N51: 150 | O51: 150 | P51: 150 | Q51: 150 | R51: 150 | S51: 150 | T51: 150
B53: Consumption volumes for calculation of bills
B54: Small customer | C54: kL per year | D54: 100
B55: Medium customer | C55: =C54 -> kL per year | D55: 200
B56: Large customer | C56: =C55 -> kL per year | D56: 400
B58: Pensioner rebates | C58: ='RAB & cost inputs'!$J$33&" $ per year" -> 2018-19 $ per year | I58: 90 | J58: 90 | K58: 90 | L58: 90 | M58: 90 | N58: 90 | O58: 90 | P58: 90 | Q58: 90 | R58: 90 | S58: 90 | T58: 90
B63: TABLE 4 - FINANCIAL STATEMENTS AND RATIOS
B64: ='RAB & cost inputs'!B$33 -> Financial year | C64: ='RAB & cost inputs'!C$32 -> Units | D64: ='RAB & cost inputs'!D$32 -> Constants | F64: ='RAB & cost inputs'!F$33 -> 2014-15 | G64: ='RAB & cost inputs'!G$33 -> 2015-16 | H64: ='RAB & cost inputs'!H$33 -> 2016-17 | I64: ='RAB & cost inputs'!I$33 -> 2017-18 | J64: ='RAB & cost inputs'!J$33 -> 2018-19 | K64: ='RAB & cost inputs'!K$33 -> 2019-20 | L64: ='RAB & cost inputs'!L$33 -> 2020-21 | M64: ='RAB & cost inputs'!M$33 -> 2021-22 | N64: ='RAB & cost inputs'!N$33 -> 2022-23 | O64: ='RAB & cost inputs'!O$33 -> 2023-24 | P64: ='RAB & cost inputs'!P$33 -> 2024-25 | Q64: ='RAB & cost inputs'!Q$33 -> 2025-26 | R64: ='RAB & cost inputs'!R$33 -> 2026-27 | S64: ='RAB & cost inputs'!S$33 -> 2027-28 | T64: ='RAB & cost inputs'!T$33 -> 2028-29
F65: ='RAB & cost inputs'!F$71 -> nominal | G65: ='RAB & cost inputs'!G$71 -> nominal | H65: ='RAB & cost inputs'!H$71 -> nominal | I65: ='RAB & cost inputs'!I$71 -> nominal | J65: ='RAB & cost inputs'!J$71 -> nominal | K65: ='RAB & cost inputs'!$K$101 -> Enter all forcasts in 2018-19$'000
B67: Corporate tax rate | C67: %
B68: default = tax rate used for WACC or most recent entry | C68: % | F68: =IF(ISBLANK(F67),WACC!$I$26,F67) -> 0.3 | G68: =IF(ISBLANK(G67),WACC!$I$26,G67) -> 0.3 | H68: =IF(ISBLANK(H67),WACC!$I$26,H67) -> 0.3 | I68: =IF(ISBLANK(I67),WACC!$I$26,I67) -> 0.3 | J68: =IF(ISBLANK(J67),WACC!$I$26,J67) -> 0.3 | K68: =IF(ISBLANK(K67),J68,K67) -> 0.3 | L68: 0.3 | M68: 0.3 | N68: 0.3 | O68: 0.3 | P68: 0.3 | Q68: 0.3 | R68: 0.3 | S68: 0.3 | T68: 0.3
B70: Expected dividend payments | C70: ='RAB & cost inputs'!$C$37 -> $'000 | F70: na | G70: na | H70: na | I70: 4000 | J70: 4090 | K70: 6140 | L70: 6630 | M70: 8500 | N70: 9420 | O70: 9520 | P70: 9540 | Q70: 9940 | R70: 10720 | S70: 11550 | T70: 12490
B72: Expected dividend payout rate | C72: % | F72: na | G72: na | H72: na | I72: 0.5 | J72: 0.5 | K72: 0.5 | L72: 0.5 | M72: 0.5 | N72: 0.5 | O72: 0.5 | P72: 0.5 | Q72: 0.5 | R72: 0.5 | S72: 0.5 | T72: 0.5
B74: Actual cost of debt
B75: - expected share of debt paid at nominal cost of debt | C75: % | I75: 1 | J75: 0.75 | K75: 0.75 | L75: 0.75 | M75: 0.75 | N75: 0.75 | O75: 0.75 | P75: 0.75 | Q75: 0.75 | R75: 0.75 | S75: 0.75 | T75: 0.75
B76: - expected nominal cost of debt | C76: % | I76: 0.063 | J76: 0.063 | K76: 0.066 | L76: 0.066 | M76: 0.066 | N76: 0.066 | O76: 0.066 | P76: 0.066 | Q76: 0.066 | R76: 0.066 | S76: 0.066 | T76: 0.066
B77: - expected real cost of debt | C77: %
B78: - default = nominal cost of debt with inflation removed | C78: % | I78: =IF(ISBLANK(I77),(1+I76)/(1+I18)-1,I77) -> 0.04729064039 | J78: =IF(ISBLANK(J77),(1+J76)/(1+J18)-1,J77) -> 0.03707317073 | K78: 0.04 | L78: 0.04 | M78: 0.04 | N78: 0.04 | O78: 0.04 | P78: 0.04 | Q78: 0.04 | R78: 0.04 | S78: 0.04 | T78: 0.04
B79: Expected actual average cost of debt | C79: % | F79: na | G79: na | H79: na | I79: =I75*I76+(1-I75)*I78 -> 0.063 | J79: =J75*J76+(1-J75)*J78 -> 0.05651829268 | K79: =K75*K76+(1-K75)*K78 -> 0.0595 | L79: 0.0595 | M79: 0.0595 | N79: 0.0595 | O79: 0.0595 | P79: 0.0595 | Q79: 0.0595 | R79: 0.0595 | S79: 0.0595 | T79: 0.0595
B81: Benchmark real cost of debt (from WACC) | C81: % | I81: 0.039 | J81: 0.039 | K81: =WACC!$I$35 -> 0.03173828125 | L81: =$K81 -> 0.03173828125 | M81: =$K81 -> 0.03173828125 | N81: 0.03173828125 | O81: 0.03173828125 | P81: 0.03173828125 | Q81: 0.03173828125 | R81: 0.03173828125 | S81: 0.03173828125 | T81: 0.03173828125
B83: Financial statement opening values (nominal $'000)
B84: Retained earnings | C84: ='RAB & cost inputs'!$C$37 -> $'000 | F84: na | G84: na | H84: 4000 | I84: na | J84: na | K84: na | L84: na | M84: na | N84: na | O84: na | P84: na | Q84: na | R84: na | S84: na | T84: na
B85: Closing cash assets | C85: =C87 -> $'000 | F85: na | G85: na | H85: na | I85: 10000 | J85: 10000 | K85: na | L85: na | M85: na | N85: na | O85: na | P85: na | Q85: na | R85: na | S85: na | T85: na
B87: Closing debt | C87: =C84 -> $'000 | F87: na | G87: na | H87: na | I87: 450000 | J87: 500000 | K87: na | L87: na | M87: na | N87: na | O87: na | P87: na | Q87: na | R87: na | S87: na | T87: na
B88: Net Debt/(RAB + net working capital) (for guidance, if you wish to set an opening gearing ratio) | I88: =(I87-I85)/('Financials actual'!I69+'Financials actual'!I70+'Financials actual'!I71-'Financials actual'!I73) -> 0.5723534067 | J88: =(J87-J85)/('Financials actual'!J69+'Financials actual'!J70+'Financials actual'!J71-'Financials actual'!J73) -> 0.5905421125 | V88: see comment
B90: Asset revaluation reserve | C90: =C87 -> $'000
B91: Default = sum of indexation over historical period | I91: =IF(ISBLANK(I90),SUM('RAB historical'!$F66:I66),I90) -> 54584.18933 | J91: =IF(ISBLANK(J90),SUM('RAB historical'!$F66:J66),J90) -> 73312.34966
B93: Ratio adjustments (see comments and explanation on 'Cover' worksheet)
C94: ="Note: Data for " &'RAB & cost inputs'!$F$33&" - "&'RAB & cost inputs'!$H$33&" are for information only. Values for "&'RAB & cost inputs'!I33&" should be based on statutory financial statements (notes to financial statements)" -> Note: Data for 2014-15 - 2016-17 are for information only. Values for 2017-18 should be based on statutory financial statements (notes to financial statements) | V94: see comment
B95: 1. Operating leases | V95: see comment
B96: Operating lease expense | C96: ='RAB & cost inputs'!$C$37 -> $'000 | F96: 320 | G96: 325 | H96: 330 | I96: 340 | V96: see comment
B97: Default = previous year value. | C97: =C96 -> $'000 | F97: na | G97: na | H97: na | I97: =I96 -> 340 | J97: =I96 -> 340 | K97: =J98 -> 340 | L97: 340 | M97: 340 | N97: 340 | O97: 340 | P97: 340 | Q97: 340 | R97: 340 | S97: 340 | T97: 340
B98: Operating lease expense used in model | C98: =C97 -> $'000 | F98: na | G98: na | H98: na | I98: =I97 -> 340 | J98: =IF(ISBLANK(J96),J97,J96) -> 340 | K98: 340 | L98: 340 | M98: 340 | N98: 340 | O98: 340 | P98: 340 | Q98: 340 | R98: 340 | S98: 340 | T98: 340 | V98: Note: IPART will use the latest actual data from the financial statements
B99: Operating lease debt multiplier (times) | D99: 3 | E99: see comment
B100: Share of operating lease costs allocated to interest expense | D100: =1/3 -> 0.3333333333 | E100: see comment
B101: Share of operating lease costs allocated to depreciation | D101: =1-D100 -> 0.6666666667
B103: 2. Superannuation adjustment | V103: see comment
B104: Value of unfunded defined benefit liability | C104: ='RAB & cost inputs'!$C$37 -> $'000 | F104: 2100 | G104: 2200 | H104: 2300 | I104: 2500 | V104: see comment
B105: Default = previous year value. | C105: =C104 -> $'000 | F105: na | G105: na | H105: na | I105: =I104 -> 2500 | J105: =I104 -> 2500 | K105: =J106 -> 2500 | L105: 2500 | M105: 2500 | N105: 2500 | O105: 2500 | P105: 2500 | Q105: 2500 | R105: 2500 | S105: 2500 | T105: 2500
B106: Superannuation adjustment used in model | C106: =C105 -> $'000 | F106: na | G106: na | H106: na | I106: =I105 -> 2500 | J106: =IF(ISBLANK(J104),J105,J104) -> 2500 | K106: 2500 | L106: 2500 | M106: 2500 | N106: 2500 | O106: 2500 | P106: 2500 | Q106: 2500 | R106: 2500 | S106: 2500 | T106: 2500 | V106: =V98 -> Note: IPART will use the latest actual data from the financial statements

Sheet WACC
B1: =Cover!B1 -> THE INDEPENDENT PRICING AND REGULATORY TRIBUNAL OF NSW | F1: =Cover!$B$3 -> IPART TEMPLATE FOR COST BUILDING BLOCKS, SIMPLE TARIFF SETTING AND FINANCIAL RATIO ANALYSIS
B3: 3 WACC
B5: List of tables | G5: row number
B6: =B11 -> TABLE 1 - WACC PARAMETERS, POINT ESTIMATES, RANGES AND MIDPOINTS | G6: =ROW(B11) -> 11
B11: TABLE 1 - WACC PARAMETERS, POINT ESTIMATES, RANGES AND MIDPOINTS
D12: Current WACC range | G12: Long-term WACC range | I12: Point estimates | K12: Final WACC range2
B14: Weights for current and long-term WACC range1 | D14: 0.5 | G14: =1-D14 -> 0.5
B15: Based on the level of market uncertainty, using IPART's 'uncertainty index' (see Cover worksheet)
C16: lower | D16: midpt | E16: upper | F16: lower | G16: midpt | H16: upper | I16: Final WACC | J16: lower | K16: midpt | L16: upper
B17: Nominal risk free rate | C17: 0.026 | D17: =C17 -> 0.026 | E17: =C17 -> 0.026 | F17: 0.036 | G17: =F17 -> 0.036 | H17: =F17 -> 0.036 | I17: =D17*$D$14+G17*$G$14 -> 0.031
B18: Inflation | C18: 0.024 | D18: =C18 -> 0.024 | E18: =C18 -> 0.024 | F18: 0.024 | G18: =F18 -> 0.024 | H18: =F18 -> 0.024 | I18: =D18*$D$14+G18*$G$14 -> 0.024
B19: Debt margin | C19: 0.022 | D19: =C19 -> 0.022 | E19: =C19 -> 0.022 | F19: 0.029 | G19: =F19 -> 0.029 | H19: =F19 -> 0.029 | I19: =D19*$D$14+G19*$G$14 -> 0.0255
B21: Market risk premium | C21: 0.067 | D21: 0.083 | E21: 0.095 | F21: 0.03 | G21: 0.06 | H21: 0.09 | I21: =D21*$D$14+G21*$G$14 -> 0.0715
B22: Debt funding | C22: 0.6 | D22: 0.6 | E22: 0.6 | F22: =C22 -> 0.6 | G22: =D22 -> 0.6 | H22: =E22 -> 0.6 | I22: =D22*$D$14+G22*$G$14 -> 0.6
B23: Equity funding | C23: =1-C22 -> 0.4 | D23: 0.4 | E23: 0.4 | F23: 0.4 | G23: 0.4 | H23: 0.4 | I23: =1-I22 -> 0.4
B24: Total funding (debt+equity) | C24: =C22+C23 -> 1 | D24: 1 | E24: 1 | F24: 1 | G24: 1 | H24: 1 | I24: =SUM(I22:I23) -> 1
B25: Gamma | C25: 0.25 | D25: 0.25 | E25: 0.25 | F25: =C25 -> 0.25 | G25: 0.25 | H25: 0.25 | I25: =D25*$D$14+G25*$G$14 -> 0.25
B26: Corporate tax rate | C26: 0.3 | D26: 0.3 | E26: 0.3 | F26: 0.3 | G26: 0.3 | H26: 0.3 | I26: =D26*$D$14+G26*$G$14 -> 0.3
B27: Effective tax rate for equity | C27: 0.3 | D27: 0.3 | E27: 0.3 | F27: 0.3 | G27: 0.3 | H27: 0.3 | I27: =D27*$D$14+G27*$G$14 -> 0.3
B28: Effective tax rate for debt | C28: 0.3 | D28: 0.3 | E28: 0.3 | F28: 0.3 | G28: 0.3 | H28: 0.3 | I28: =D28*$D$14+G28*$G$14 -> 0.3
B29: Equity beta | C29: 0.6 | D29: 0.7 | E29: 0.8 | F29: 0.6 | G29: 0.7 | H29: 0.8 | I29: =D29*$D$14+G29*$G$14 -> 0.7
B31: Cost of equity (nominal post-tax) | C31: =C17+C29*C21 -> 0.0662 | D31: 0.0841 | E31: 0.102 | F31: 0.054 | G31: 0.078 | H31: 0.108 | I31: =I17+I29*I21 -> 0.08105
B32: Cost of equity (real post-tax) | C32: =(1+C31)/(1+C18)-1 -> 0.0412109375 | D32: 0.05869140625 | E32: 0.076171875 | F32: =(1+F31)/(1+F18)-1 -> 0.029296875 | G32: 0.052734375 | H32: 0.08203125 | I32: =(1+I31)/(1+I18)-1 -> 0.05571289062
B34: Cost of debt (nominal pre-tax) | C34: =C17+C19 -> 0.048 | D34: 0.048 | E34: 0.048 | F34: 0.065 | G34: 0.065 | H34: 0.065 | I34: =I17+I19 -> 0.0565
B35: Cost of debt (real pre-tax) | C35: =(1+C34)/(1+C18)-1 -> 0.0234375 | D35: 0.0234375 | E35: 0.0234375 | F35: =(1+F34)/(1+F18)-1 -> 0.0400390625 | G35: 0.0400390625 | H35: 0.0400390625 | I35: =(1+I34)/(1+I18)-1 -> 0.03173828125
B36: Cost of debt (nominal post-tax) | C36: =C34*(1-C28) -> 0.0336 | D36: 0.0336 | E36: 0.0336 | F36: 0.0455 | G36: 0.0455 | H36: 0.0455 | I36: =I34*(1-I28) -> 0.03955
B37: Cost of debt (real post-tax) | C37: =(1+C36)/(1+C18)-1 -> 0.009375 | D37: 0.009375 | E37: 0.009375 | F37: =(1+F36)/(1+F18)-1 -> 0.02099609375 | G37: 0.02099609375 | H37: 0.02099609375 | I37: =(1+I36)/(1+I18)-1 -> 0.01518554687
B39: Nominal Vanilla (Post-tax nominal) WACC | C39: =C31*C23+C34*C22 -> 0.05528 | D39: 0.06244 | E39: 0.0696 | F39: 0.0606 | G39: 0.0702 | H39: 0.0822 | I39: =I31*I23+I34*I22 -> 0.06632 | J39: =MIN(D39,G39) -> 0.06244 | K39: =AVERAGE(J39,L39) -> 0.06632 | L39: =MAX(D39,G39) -> 0.0702
B40: Post-tax real WACC | C40: =C32*C23+C35*C22 -> 0.030546875 | D40: 0.0375390625 | E40: 0.04453125 | F40: 0.0357421875 | G40: 0.0451171875 | H40: 0.0568359375 | I40: =I32*I23+I35*I22 -> 0.041328125 | J40: =MIN(D40,G40) -> 0.0375390625 | K40: =AVERAGE(J40,L40) -> 0.041328125 | L40: =MAX(D40,G40) -> 0.0451171875
B41: Pre-tax nominal WACC | C41: =C31*C23/(1-C27*(1-C25))+C22*C34 -> 0.06296774194 | D41: 0.07220645161 | E41: 0.08144516129 | F41: 0.06687096774 | G41: 0.07925806452 | H41: 0.09474193548 | I41: =I31*I23/(1-I27*(1-I25))+I22*I34 -> 0.07573225806 | J41: =MIN(D41,G41) -> 0.07220645161 | K41: =AVERAGE(D41,G41) -> 0.07573225806 | L41: =MAX(D41,G41) -> 0.07925806452
B42: Pre-tax real WACC point estimate | C42: =(1+C41)/(1+C18)-1 -> 0.03805443548 | D42: 0.0470766129 | E42: 0.05609879032 | F42: 0.04186617944 | G42: 0.05396295363 | H42: 0.06908392137 | I42: =(1+I41)/(1+I18)-1 -> 0.05051978327 | J42: =MIN(D42,G42) -> 0.0470766129 | K42: =AVERAGE(D42,G42) -> 0.05051978327 | L42: =MAX(D42,G42) -> 0.05396295363
B43: Notes:
B44: 1. IPART applies a weight of 50% to the current WACC range unless the 'uncertainty index' exceeds one standard deviation from the long-term average of zero.
B45: 2. The final WACC range is given by the midpoints of the WACCs using current market data and long-term averages
B46: That is, the minimum of the two midpoints will be the lower bound of the final WACC range, and the maximum of the two midpoints will be the upper bound of the final WACC range.
B47: However, it may not always be the case that the individual WACC parameters used to estimate the lower bound are lower than those used to estimate the upper bound.

Sheet Scenario
B1: =Cover!B1 -> THE INDEPENDENT PRICING AND REGULATORY TRIBUNAL OF NSW | F1: =Cover!$B$3 -> IPART TEMPLATE FOR COST BUILDING BLOCKS, SIMPLE TARIFF SETTING AND FINANCIAL RATIO ANALYSIS
B3: 4 SCENARIO INPUTS, TARIFFS AND OUTPUT TABLES
B5: On this worksheet enter your key decisions about costs and other inputs, then set the tariffs. The worksheet also contains the main output tables for easy reference.
B6: To use the Summary workbook, copy and paste the values of this worksheet onto one of the worksheets S1 to S12. Copy and paste values for each scenario onto a different worksheet.
B9: List of tables | J9: row number
B10: =B34 -> DECISIONS
B11: =B36 -> TABLE 1 SELECT COST OPTIONS | J11: =ROW(B36) -> 36
B12: =B75 -> TABLE 2 - SELECT WACC AND DIVIDENDS | J12: =ROW(B75) -> 75
B13: =B112 -> SETTING TARIFFS
B14: =B114 -> TABLE 3 - SETTING TARIFFS | J14: =ROW(B114) -> 114
B16: =B148 -> OUTPUT TABLES
B17: =B150 -> TABLE 4 - REGULATORY ASSET BASE | J17: =ROW(B150) -> 150
B18: =B167 -> TABLE 5 - NOTIONAL REVENUE REQUIREMENT AND TARGET REVENUE | J18: =ROW(B167) -> 167
B19: =B195 -> TABLE 6 - FINANCIAL INDICATORS | J19: =ROW(B195) -> 195
B20: =B229 -> TABLE 7 - TARIFFS | J20: =ROW(B229) -> 229
B21: =B245 -> TABLE 8 - ANNUAL BILLS | J21: =ROW(B245) -> 245
B25: ='RAB & cost inputs'!B25 -> Name of regulated business | D25: ='RAB & cost inputs'!D25 -> A Regulated Business
B26: Scenario number | D26: 1 | K26: These are useful for keeping track of model runs. They are particularly useful if a Scenario Summary workbook is used.
B27: Scenario description | D27: A Scenario | W27: DATA FOR SELECTIONS - DO NOT DELETE
B29: Type of business with regard to tax (select option) | D29: 1. Pays tax and can provide forecast tax depreciation | W29: 1. Pays tax and can provide forecast tax depreciation
D30: =IF(Tax!$D$19="err","Please select an option",IF(AND(D29=W29,SUM('RAB & cost inputs'!K129:N129)=0),"Please enter tax depreciation on 'Fixed inputs' worksheet","ok")) -> ok | W30: 2. Pays tax or tax equivalent and can provide tax value of assets but not forecast tax depreciation
W31: 3. Does not pay tax or tax equivalents and has a previously established regulatory tax value of assets
W32: 4. Does not pay tax or tax equivalents and does not have a previously established tax value of assets
W33: =IF(W29=D29,1,IF(W30=D29,2,IF(W31=D29,3,IF(W32=D29,4,"err")))) -> 1
B34: DECISIONS | X34: DO NOT DELETE
W35: ='RAB & cost inputs'!$J$33&" $" -> 2018-19 $ | X35: ="nominal "&'RAB & cost inputs'!$C$37 -> nominal $'000
B36: TABLE 1 SELECT COST OPTIONS | E36: beware hidden columns | W36: nominal | X36: ='RAB & cost inputs'!$J$33&" "&'RAB & cost inputs'!$C$37 -> 2018-19 $'000
J37: Select option (view options by clicking arrow on right hand side of blue input cell) | W37: =IF(W36=J38,1,2) -> 2
B38: ="Calculate forecast costs and prices in (real) "&W35&" or "&W36&"?" -> Calculate forecast costs and prices in (real) 2018-19 $ or nominal? | J38: 2018-19 $ | M38: Note: IPART's policy is to calculated forecast costs and prices in real dollars. | W38: ="Option 1 - "&'RAB & cost inputs'!D73 -> Option 1 - Agency forecast
W39: ="Option 2 - "&'RAB & cost inputs'!D74 -> Option 2 - Regulator forecast
B40: ="Select operating expenditure from "&$J$57 -> Select operating expenditure from 2018-19 | J40: Option 1 - Agency forecast | W40: =IF(W38=J40,1,2) -> 1
W41: ="Option 1 - "&'RAB & cost inputs'!D77 -> Option 1 - Agency capex
B42: Select capital expenditure | W42: ="Option 2 - "&'RAB & cost inputs'!D81 -> Option 2 - Regulator capex
B43: =" - historical capex up to and including "&$I$57 -> - historical capex up to and including 2017-18 | J43: Option 1 - Agency capex | W43: =IF(W41=J43,1,2) -> 1
B44: =" - forecast capex from "&$J$57 -> - forecast capex from 2018-19 | J44: Option 1 - Agency capex | W44: =IF(W41=J44,1,2) -> 1
W45: ="Option 1 - "&'RAB & cost inputs'!D86 -> Option 1 - Agency cap cons
B46: Select cash capital contributions | W46: ="Option 2 - "&'RAB & cost inputs'!D90 -> Option 2 - Regulator cap cons
B47: =" - historical cash cap cons up to and including "&$I$57 -> - historical cash cap cons up to and including 2017-18 | J47: Option 1 - Agency cap cons | W47: =IF(W45=J47,1,2) -> 1
B48: =" - forecast cash cap cons from "&$J$57 -> - forecast cash cap cons from 2018-19 | J48: Option 1 - Agency cap cons | W48: =IF(W45=J48,1,2) -> 1
W49: Allowed depreciation
B50: Use allowed or actual depreciation to roll forward historical RAB? | J50: Allowed depreciation | M50: ="Note: IPART's policy is to use allowed RAB depreciation. "&IF(W33=3, "The tax value of assets is always rolled forward using actual depreciation.", "") -> Note: IPART's policy is to use allowed RAB depreciation. | W50: Actual (calculated) depreciation
W51: =IF(W49=J50,1,2) -> 1
B52: Tax treatment of cash capital contributions (see comment) | W52: Use net of tax & do not included tax in tax allowance
B53: =" - historical period, up to and including "&$J$57 -> - historical period, up to and including 2018-19 | J53: Use gross amount & include tax in tax allowance | W53: Use gross amount & include tax in tax allowance
B54: =" - forecast period, from "&$K$57 -> - forecast period, from 2019-20 | J54: Use net of tax & do not included tax in tax allowance | W54: =IF(W53=J53,2,1) -> 2
W55: =IF(W52=J54,1,2) -> 1
B56: Selected costs
B57: ='RAB & cost inputs'!B$33 -> Financial year | F57: ='RAB & cost inputs'!F$33 -> 2014-15 | G57: ='RAB & cost inputs'!G$33 -> 2015-16 | H57: ='RAB & cost inputs'!H$33 -> 2016-17 | I57: ='RAB & cost inputs'!I$33 -> 2017-18 | J57: ='RAB & cost inputs'!J$33 -> 2018-19 | K57: ='RAB & cost inputs'!K$33 -> 2019-20 | L57: ='RAB & cost inputs'!L$33 -> 2020-21 | M57: ='RAB & cost inputs'!M$33 -> 2021-22 | N57: ='RAB & cost inputs'!N$33 -> 2022-23 | O57: ='RAB & cost inputs'!O$33 -> 2023-24 | P57: ='RAB & cost inputs'!P$33 -> 2024-25 | Q57: ='RAB & cost inputs'!Q$33 -> 2025-26 | R57: ='RAB & cost inputs'!R$33 -> 2026-27 | S57: ='RAB & cost inputs'!S$33 -> 2027-28 | T57: ='RAB & cost inputs'!T$33 -> 2028-29
F58: =G58 -> nominal | G58: nominal | H58: nominal | I58: =J58 -> nominal | J58: ='RAB & cost inputs'!J71 -> nominal | K58: =J57&" "&C62 -> 2018-19 $'000
J59: ='RAB & cost inputs'!J34 -> Previous determinations | K59: ='RAB & cost inputs'!K34 -> Next determination period | O59: ='RAB & cost inputs'!O34 -> Subsequent determinations
K61: =Scenario!J40 -> Option 1 - Agency forecast
B62: Selected operating expenditure | C62: ='RAB & cost inputs'!$C$37 -> $'000 | F62: na | G62: na | H62: na | I62: =CHOOSE(Scenario!$W$40,'RAB & cost inputs'!I73,'RAB & cost inputs'!I74) -> 64940 | J62: =CHOOSE(Scenario!$W$40,'RAB & cost inputs'!J73,'RAB & cost inputs'!J74) -> 64950 | K62: =CHOOSE(Scenario!$W$40,'RAB & cost inputs'!K73,'RAB & cost inputs'!K74) -> 65000 | L62: =CHOOSE(Scenario!$W$40,'RAB & cost inputs'!L73,'RAB & cost inputs'!L74) -> 65150 | M62: =CHOOSE(Scenario!$W$40,'RAB & cost inputs'!M73,'RAB & cost inputs'!M74) -> 65300 | N62: =CHOOSE(Scenario!$W$40,'RAB & cost inputs'!N73,'RAB & cost inputs'!N74) -> 65450 | O62: =CHOOSE(Scenario!$W$40,'RAB & cost inputs'!O73,'RAB & cost inputs'!O74) -> 65600 | P62: =CHOOSE(Scenario!$W$40,'RAB & cost inputs'!P73,'RAB & cost inputs'!P74) -> 65750 | Q62: =CHOOSE(Scenario!$W$40,'RAB & cost inputs'!Q73,'RAB & cost inputs'!Q74) -> 65900 | R62: =CHOOSE(Scenario!$W$40,'RAB & cost inputs'!R73,'RAB & cost inputs'!R74) -> 66050 | S62: =CHOOSE(Scenario!$W$40,'RAB & cost inputs'!S73,'RAB & cost inputs'!S74) -> 66200 | T62: =CHOOSE(Scenario!$W$40,'RAB & cost inputs'!T73,'RAB & cost inputs'!T74) -> 66350
B64: Selected capital expenditure | I64: =J43 -> Option 1 - Agency capex | K64: =J44 -> Option 1 - Agency capex
B65: ='RAB & cost inputs'!B$78 -> - depreciating assets | C65: ='RAB & cost inputs'!$C$37 -> $'000 | F65: =CHOOSE($W$43,'RAB & cost inputs'!F78,'RAB & cost inputs'!F82) -> 34000 | G65: =CHOOSE($W$43,'RAB & cost inputs'!G78,'RAB & cost inputs'!G82) -> 33000 | H65: =CHOOSE($W$43,'RAB & cost inputs'!H78,'RAB & cost inputs'!H82) -> 21000 | I65: =CHOOSE($W$43,'RAB & cost inputs'!I78,'RAB & cost inputs'!I82) -> 35000 | J65: =CHOOSE($W$44,'RAB & cost inputs'!J78,'RAB & cost inputs'!J82) -> 65000 | K65: =CHOOSE($W$44,'RAB & cost inputs'!K78,'RAB & cost inputs'!K82) -> 54000 | L65: =CHOOSE($W$44,'RAB & cost inputs'!L78,'RAB & cost inputs'!L82) -> 24000 | M65: =CHOOSE($W$44,'RAB & cost inputs'!M78,'RAB & cost inputs'!M82) -> 70000 | N65: =CHOOSE($W$44,'RAB & cost inputs'!N78,'RAB & cost inputs'!N82) -> 44000 | O65: =CHOOSE($W$44,'RAB & cost inputs'!O78,'RAB & cost inputs'!O82) -> 54000 | P65: =CHOOSE($W$44,'RAB & cost inputs'!P78,'RAB & cost inputs'!P82) -> 43000 | Q65: =CHOOSE($W$44,'RAB & cost inputs'!Q78,'RAB & cost inputs'!Q82) -> 32000 | R65: =CHOOSE($W$44,'RAB & cost inputs'!R78,'RAB & cost inputs'!R82) -> 32500 | S65: =CHOOSE($W$44,'RAB & cost inputs'!S78,'RAB & cost inputs'!S82) -> 33000 | T65: =CHOOSE($W$44,'RAB & cost inputs'!T78,'RAB & cost inputs'!T82) -> 33500
B66: ='RAB & cost inputs'!B$79 -> - non-depreciating assets | C66: ='RAB & cost inputs'!$C$37 -> $'000 | F66: =CHOOSE($W$43,'RAB & cost inputs'!F79,'RAB & cost inputs'!F83) -> 0 | G66: =CHOOSE($W$43,'RAB & cost inputs'!G79,'RAB & cost inputs'!G83) -> 2000 | H66: =CHOOSE($W$43,'RAB & cost inputs'!H79,'RAB & cost inputs'!H83) -> 0 | I66: =CHOOSE($W$43,'RAB & cost inputs'!I79,'RAB & cost inputs'!I83) -> 0 | J66: =CHOOSE($W$44,'RAB & cost inputs'!J79,'RAB & cost inputs'!J83) -> 200 | K66: =CHOOSE($W$44,'RAB & cost inputs'!K79,'RAB & cost inputs'!K83) -> 4000 | L66: =CHOOSE($W$44,'RAB & cost inputs'!L79,'RAB & cost inputs'!L83) -> 0 | M66: =CHOOSE($W$44,'RAB & cost inputs'!M79,'RAB & cost inputs'!M83) -> 0 | N66: =CHOOSE($W$44,'RAB & cost inputs'!N79,'RAB & cost inputs'!N83) -> 5000 | O66: =CHOOSE($W$44,'RAB & cost inputs'!O79,'RAB & cost inputs'!O83) -> 0 | P66: =CHOOSE($W$44,'RAB & cost inputs'!P79,'RAB & cost inputs'!P83) -> 0 | Q66: =CHOOSE($W$44,'RAB & cost inputs'!Q79,'RAB & cost inputs'!Q83) -> 0 | R66: =CHOOSE($W$44,'RAB & cost inputs'!R79,'RAB & cost inputs'!R83) -> 0 | S66: =CHOOSE($W$44,'RAB & cost inputs'!S79,'RAB & cost inputs'!S83) -> 0 | T66: =CHOOSE($W$44,'RAB & cost inputs'!T79,'RAB & cost inputs'!T83) -> 0
B68: Selected cash capital contributions (before tax) | I68: =J47 -> Option 1 - Agency cap cons | K68: =J48 -> Option 1 - Agency cap cons
B69: ='RAB & cost inputs'!B$78 -> - depreciating assets | C69: ='RAB & cost inputs'!$C$37 -> $'000 | F69: =CHOOSE($W$47,'RAB & cost inputs'!F87,'RAB & cost inputs'!F91) -> 0 | G69: =CHOOSE($W$47,'RAB & cost inputs'!G87,'RAB & cost inputs'!G91) -> 0 | H69: =CHOOSE($W$47,'RAB & cost inputs'!H87,'RAB & cost inputs'!H91) -> 3000 | I69: =CHOOSE($W$47,'RAB & cost inputs'!I87,'RAB & cost inputs'!I91) -> 200 | J69: =CHOOSE($W$48,'RAB & cost inputs'!J87,'RAB & cost inputs'!J91) -> 350 | K69: =CHOOSE($W$48,'RAB & cost inputs'!K87,'RAB & cost inputs'!K91) -> 1000 | L69: =CHOOSE($W$48,'RAB & cost inputs'!L87,'RAB & cost inputs'!L91) -> 200 | M69: =CHOOSE($W$48,'RAB & cost inputs'!M87,'RAB & cost inputs'!M91) -> 500 | N69: =CHOOSE($W$48,'RAB & cost inputs'!N87,'RAB & cost inputs'!N91) -> 400 | O69: =CHOOSE($W$48,'RAB & cost inputs'!O87,'RAB & cost inputs'!O91) -> 0 | P69: =CHOOSE($W$48,'RAB & cost inputs'!P87,'RAB & cost inputs'!P91) -> 0 | Q69: =CHOOSE($W$48,'RAB & cost inputs'!Q87,'RAB & cost inputs'!Q91) -> 0 | R69: =CHOOSE($W$48,'RAB & cost inputs'!R87,'RAB & cost inputs'!R91) -> 0 | S69: =CHOOSE($W$48,'RAB & cost inputs'!S87,'RAB & cost inputs'!S91) -> 0 | T69: =CHOOSE($W$48,'RAB & cost inputs'!T87,'RAB & cost inputs'!T91) -> 0
B70: ='RAB & cost inputs'!B$79 -> - non-depreciating assets | C70: ='RAB & cost inputs'!$C$37 -> $'000 | F70: =CHOOSE($W$47,'RAB & cost inputs'!F88,'RAB & cost inputs'!F92) -> 0 | G70: =CHOOSE($W$47,'RAB & cost inputs'!G88,'RAB & cost inputs'!G92) -> 0 | H70: =CHOOSE($W$47,'RAB & cost inputs'!H88,'RAB & cost inputs'!H92) -> 0 | I70: =CHOOSE($W$47,'RAB & cost inputs'!I88,'RAB & cost inputs'!I92) -> 0 | J70: =CHOOSE($W$48,'RAB & cost inputs'!J88,'RAB & cost inputs'!J92) -> 0 | K70: =CHOOSE($W$48,'RAB & cost inputs'!K88,'RAB & cost inputs'!K92) -> 0 | L70: =CHOOSE($W$48,'RAB & cost inputs'!L88,'RAB & cost inputs'!L92) -> 0 | M70: =CHOOSE($W$48,'RAB & cost inputs'!M88,'RAB & cost inputs'!M92) -> 0 | N70: =CHOOSE($W$48,'RAB & cost inputs'!N88,'RAB & cost inputs'!N92) -> 0 | O70: =CHOOSE($W$48,'RAB & cost inputs'!O88,'RAB & cost inputs'!O92) -> 0 | P70: =CHOOSE($W$48,'RAB & cost inputs'!P88,'RAB & cost inputs'!P92) -> 0 | Q70: =CHOOSE($W$48,'RAB & cost inputs'!Q88,'RAB & cost inputs'!Q92) -> 0 | R70: =CHOOSE($W$48,'RAB & cost inputs'!R88,'RAB & cost inputs'!R92) -> 0 | S70: =CHOOSE($W$48,'RAB & cost inputs'!S88,'RAB & cost inputs'!S92) -> 0 | T70: =CHOOSE($W$48,'RAB & cost inputs'!T88,'RAB & cost inputs'!T92) -> 0
B75: TABLE 2 - SELECT WACC AND DIVIDENDS
W76: Post-tax WACC
B77: Pre-tax or post-tax WACC for forecast period? | J77: Post-tax WACC | M77: Note: IPART's policy is to use a post-tax WACC | W77: Pre-tax WACC
W78: =IF(W76=J77,2,1) -> 2
B79: ="Use expected dividend payments ("&'RAB & cost inputs'!$C$37&") or dividend payout rate (%)?" -> Use expected dividend payments ($'000) or dividend payout rate (%)? | J79: Dividend payout rate | W79: Expected dividend payments
W80: Dividend payout rate
B81: Selected options | W81: =IF(W79=J79,1,2) -> 2
B83: WACC
B84: Cost of Debt (nominal pre-tax) | D84: =WACC!I34 -> 0.0565
B85: Real pre-tax WACC | D85: =WACC!I42 -> 0.05051978327
B86: Real post-tax WACC | D86: =WACC!I40 -> 0.041328125
B88: WACC used for forecast return on assets | D88: =ROUND(CHOOSE(W78,D85,D86),3) -> 0.041 | E88: =CHOOSE(W78,B85,B86)&" (rounded)" -> Real post-tax WACC (rounded)
B89: Pre-tax WACC for NPV calculations | D89: =ROUND((1+D85)*(1+AVERAGE('Pricing & financial inputs'!K19:N19))-1,3) -> 0.051 | E89: rounded
B96: Spare rows for additional inputs or outputs
B112: SETTING TARIFFS
B114: TABLE 3 - SETTING TARIFFS
B115: =B$57 -> Financial year | I115: =I$57 -> 2017-18 | J115: 2018-19 | K115: 2019-20 | L115: 2020-21 | M115: 2021-22 | N115: 2022-23 | O115: ='RAB & cost inputs'!O$33 -> 2023-24 | P115: ='RAB & cost inputs'!P$33 -> 2024-25 | Q115: ='RAB & cost inputs'!Q$33 -> 2025-26 | R115: ='RAB & cost inputs'!R$33 -> 2026-27 | S115: ='RAB & cost inputs'!S$33 -> 2027-28 | T115: ='RAB & cost inputs'!T$33 -> 2028-29
I116: ='Pricing & financial inputs'!I44 -> nominal | J116: ='Pricing & financial inputs'!J44 -> nominal | K116: =CHOOSE(Scenario!$W$37,"nominal prices","real "&'RAB & cost inputs'!J$33&" prices") -> real 2018-19 prices
K117: ='RAB projected '!K18 -> Next determination period | O117: ='RAB projected '!O18 -> Subsequent determinations
B118: This model uses a very simple tariff structure. Most models will require more tariffs and a more complicated tariff structure. | V118: This macro increases the tariffs by a constant % each year, and sets the increase so that NPV cost = NPV revenue for the first 4 year period
B119: Instructions: | K119: 0.2
B120: Step 1. Enter the usage charges | V120: This macro increases the tariffs by a constant % each year, and sets the increase so that NPV cost = NPV revenue for the second 4 year period
B121: Step 2. The model calculates the default access charges such that required revenue from tariffs = expected revenue from tariffs
B122: Step 3. If you wish to change the access charges, enter alternative charges in the light blue cells. You can use Goal seek or Solver to set the tariffs, eg for NPV neutrality or a glide-path approach. | N122: This option gives an average increase for a Weighted Average Price Cap (WAPC) | V122: This macro keeps usage charges unchanged in real terms
B123: Step 4. If you use Goal seek or Solver, consider developing a macro to automate the calculations. Remember to describe what the macros do. Two examples of a tariff-setting macro are provided.
K124: -0.006393705534 | O124: -0.0001961761561
B125: ='Pricing & financial inputs'!B$47 -> Access charge | C125: ='Pricing & financial inputs'!C47 -> $/year | I125: ='Pricing & financial inputs'!I$47 -> 90 | J125: ='Pricing & financial inputs'!J$47 -> 90 | K125: =J125*(1+$K$124) -> 89.4245665 | L125: =K125*(1+$K$124) -> 88.85281216 | M125: 88.28471344 | N125: 87.72024698 | O125: =N125*(1+$O$124) -> 87.70303836 | P125: =O125*(1+$O$124) -> 87.68583311 | Q125: 87.66863124 | R125: 87.65143275 | S125: 87.63423763 | T125: 87.61704588
B126: Default = the tariff that equates required revenue with expected revenue each year | K126: =(K139-SUM(K134:K135))/'Pricing & financial inputs'!K33*1000 -> 82.30042911 | L126: =(L139-SUM(L134:L135))/'Pricing & financial inputs'!L33*1000 -> 89.58564485 | M126: =(M139-SUM(M134:M135))/'Pricing & financial inputs'!M33*1000 -> 90.04357126 | N126: =(N139-SUM(N134:N135))/'Pricing & financial inputs'!N33*1000 -> 93.02248536 | O126: =(O139-SUM(O134:O135))/'Pricing & financial inputs'!O33*1000 -> 94.09044511 | P126: =(P139-SUM(P134:P135))/'Pricing & financial inputs'!P33*1000 -> 90.21370571 | Q126: =(Q139-SUM(Q134:Q135))/'Pricing & financial inputs'!Q33*1000 -> 84.75524798 | R126: =(R139-SUM(R134:R135))/'Pricing & financial inputs'!R33*1000 -> 80.86616572 | S126: =(S139-SUM(S134:S135))/'Pricing & financial inputs'!S33*1000 -> 73.93741333 | T126: =(T139-SUM(T134:T135))/'Pricing & financial inputs'!T33*1000 -> 67.3947609
B127: Applicable access charge | C127: =C125 -> $/year | I127: =IF(ISBLANK(I125),I126,I125) -> 90 | J127: =IF(ISBLANK(J125),J126,J125) -> 90 | K127: 89.4245665 | L127: 88.85281216 | M127: 88.28471344 | N127: 87.72024698 | O127: 87.70303836 | P127: 87.68583311 | Q127: 87.66863124 | R127: 87.65143275 | S127: 87.63423763 | T127: 87.61704588
B129: ='Pricing & financial inputs'!B$48 -> Usage charge for Tier 1 consumption | C129: ='Pricing & financial inputs'!C48 -> $/kL | I129: ='Pricing & financial inputs'!I$48 -> 2 | J129: ='Pricing & financial inputs'!J$48 -> 2 | K129: =J129*(1+$K$124) -> 1.987212589 | L129: 1.974506937 | M129: 1.961882521 | N129: 1.949338822 | O129: =N129*(1+$O$124) -> 1.948956408 | P129: 1.948574069 | Q129: 1.948191805 | R129: 1.947809617 | S129: 1.947427503 | T129: 1.947045464
B130: ='Pricing & financial inputs'!B$49 -> Usage charge for Tier 2 consumption | C130: ='Pricing & financial inputs'!C49 -> $/kL | I130: ='Pricing & financial inputs'!I$49 -> 2.5 | J130: ='Pricing & financial inputs'!J$49 -> 2.5 | K130: =J130*(1+$K$124) -> 2.484015736 | L130: 2.468133671 | M130: 2.452353151 | N130: 2.436673527 | O130: =N130*(1+$O$124) -> 2.43619551 | P130: 2.435717586 | Q130: 2.435239757 | R130: 2.434762021 | S130: 2.434284379 | T130: 2.43380683
K131: =IF(K129+K130=0,"ok",IF(AND(SUM(K130:N130)=0,SUM('Pricing & financial inputs'!K51:N51)>0),"The model assumes Tier 2 price = Tier 1 price","ok")) -> ok | O131: =IF(O129+O130=0,"ok",IF(AND(SUM(O130:R130)=0,SUM('Pricing & financial inputs'!O51:R51)>0),"The model assumes Tier 2 price = Tier 1 price","ok")) -> ok
K132: =IF(K131="ok","ok","Two consumption tiers have been defined on the Fixed Inputs worksheet,Table 3") -> ok
B133: Expected revenue from access charges | C133: ='RAB & cost inputs'!C$37 -> $'000 | I133: ='Pricing & financial inputs'!I$33*I127/1000 -> 18522 | J133: ='Pricing & financial inputs'!J$33*J127/1000 -> 18900 | K133: ='Pricing & financial inputs'!K$33*K127/1000 -> 19060.84635 | L133: ='Pricing & financial inputs'!L$33*L127/1000 -> 19223.30591 | M133: ='Pricing & financial inputs'!M$33*M127/1000 -> 19387.32307 | N133: ='Pricing & financial inputs'!N$33*N127/1000 -> 19551.96585 | O133: ='Pricing & financial inputs'!O$33*O127/1000 -> 19841.05837 | P133: ='Pricing & financial inputs'!P$33*P127/1000 -> 20134.421 | Q133: ='Pricing & financial inputs'!Q$33*Q127/1000 -> 20432.0512 | R133: ='Pricing & financial inputs'!R$33*R127/1000 -> 20734.82293 | S133: ='Pricing & financial inputs'!S$33*S127/1000 -> 21041.8568 | T133: ='Pricing & financial inputs'!T$33*T127/1000 -> 21353.15025
B134: Expected revenue from Tier 1 sales | C134: =C133 -> $'000 | I134: ='Pricing & financial inputs'!I$36*I129 -> 79970 | J134: ='Pricing & financial inputs'!J$36*J129 -> 81600 | K134: ='Pricing & financial inputs'!K$36*K129 -> 81873.15866 | L134: ='Pricing & financial inputs'!L$36*L129 -> 82139.48857 | M134: ='Pricing & financial inputs'!M$36*M129 -> 83380.00714 | N134: ='Pricing & financial inputs'!N$36*N129 -> 84406.37098 | O134: ='Pricing & financial inputs'!O$36*O129 -> 86143.87323 | P134: ='Pricing & financial inputs'!P$36*P129 -> 87880.69052 | Q134: ='Pricing & financial inputs'!Q$36*Q129 -> 89616.82305 | R134: ='Pricing & financial inputs'!R$36*R129 -> 91352.27102 | S134: ='Pricing & financial inputs'!S$36*S129 -> 93087.03463 | T134: ='Pricing & financial inputs'!T$36*T129 -> 95015.81864
B135: Expected revenue from Tier 2 sales | C135: =C134 -> $'000 | I135: ='Pricing & financial inputs'!I$37*I130 -> 20825 | J135: ='Pricing & financial inputs'!J$37*J130 -> 21250 | K135: ='Pricing & financial inputs'!K$37*K130 -> 21362.53533 | L135: ='Pricing & financial inputs'!L$37*L130 -> 21472.76294 | M135: ='Pricing & financial inputs'!M$37*M130 -> 21580.70773 | N135: ='Pricing & financial inputs'!N$37*N130 -> 21930.06174 | O135: ='Pricing & financial inputs'!O$37*O130 -> 22412.99869 | P135: ='Pricing & financial inputs'!P$37*P130 -> 22895.74531 | Q135: ='Pricing & financial inputs'!Q$37*Q130 -> 23378.30166 | R135: ='Pricing & financial inputs'!R$37*R130 -> 23860.6678 | S135: ='Pricing & financial inputs'!S$37*S130 -> 24342.84379 | T135: ='Pricing & financial inputs'!T$37*T130 -> 24824.82967
B136: Total expected revenue from tariffs | I136: =SUM(I133:I135) -> 119317 | J136: =SUM(J133:J135) -> 121750 | K136: =SUM(K133:K135) -> 122296.5403 | L136: =SUM(L133:L135) -> 122835.5574 | M136: 124348.0379 | N136: 125888.3986 | O136: 128397.9303 | P136: 130910.8568 | Q136: 133427.1759 | R136: 135947.7618 | S136: 138471.7352 | T136: 141193.7986
B137: NPV of expected revenue from tariffs over next determination period | K137: =NPV($D$142,K136:N136)*(1+$D$142)^0.5 -> 448877.2662 | O137: =NPV($D$142,O136:R136)*(1+$D$142)^0.5 -> 478792.993
B139: ='Cost building blocks'!B25 -> Revenue required from tariffs (ie, notional revenue requirement) | K139: ='Cost building blocks'!K$25 -> 120778.0305 | L139: ='Cost building blocks'!L$25 -> 122994.1058 | M139: ='Cost building blocks'!M$25 -> 124734.2831 | N139: ='Cost building blocks'!N$25 -> 127070.2145 | O139: ='Cost building blocks'!O$25 -> 129842.9533 | P139: ='Cost building blocks'!P$25 -> 131491.3069 | Q139: ='Cost building blocks'!Q$25 -> 132748.1828 | R139: ='Cost building blocks'!R$25 -> 134342.639 | S139: ='Cost building blocks'!S$25 -> 135182.9907 | T139: ='Cost building blocks'!T$25 -> 136265.4255
B141: Difference between required and expected revenue | K141: =K136-K139 -> 1518.509885 | L141: =L136-L139 -> -158.5483527 | M141: -386.2451775 | N141: -1181.815914 | O141: -1445.02303 | P141: -580.4501052 | Q141: 678.9931023 | R141: 1605.122768 | S141: 3288.744482 | T141: 4928.373071
B142: WACC (for NPV calculations) | D142: =$D$89 -> 0.051
B143: NPV of difference between required and revenue expected from tariffs | K143: =NPV($D$142,K141:N141)*(1+$D$142)^0.5 -> -2.010334287e-06 | O143: =NPV($D$142,O141:R141) -> -3.985442994e-08
B148: OUTPUT TABLES
B150: TABLE 4 - REGULATORY ASSET BASE
B151: =B$57 -> Financial year | F151: =F$57 -> 2014-15 | G151: 2015-16 | H151: 2016-17 | I151: 2017-18 | J151: 2018-19 | K151: 2019-20 | L151: 2020-21 | M151: 2021-22 | N151: 2022-23 | O151: 2023-24 | P151: 2024-25 | Q151: 2025-26 | R151: 2026-27 | S151: 2027-28 | T151: 2028-29
J152: ='RAB & cost inputs'!J34 -> Previous determinations | K152: ='RAB & cost inputs'!K34 -> Next determination period | O152: ='RAB & cost inputs'!O34 -> Subsequent determinations
F153: ='RAB historical'!F15 -> nominal | G153: ='RAB historical'!G15 -> nominal | H153: ='RAB historical'!H15 -> nominal | I153: ='RAB historical'!I15 -> nominal | J153: ='RAB historical'!J15 -> nominal | K153: ='RAB projected '!K17 -> 2018-19 $'000 | L153: =K153 -> 2018-19 $'000 | M153: =L153 -> 2018-19 $'000 | N153: =M153 -> 2018-19 $'000 | O153: 2018-19 $'000 | P153: 2018-19 $'000 | Q153: 2018-19 $'000 | R153: 2018-19 $'000 | S153: 2018-19 $'000 | T153: 2018-19 $'000
B155: ='RAB historical'!B62 -> Opening value | C155: ='RAB historical'!C62 -> $'000 | F155: ='RAB historical'!F119 -> 660000 | G155: ='RAB historical'!G119 -> 683696.8 | H155: ='RAB historical'!H119 -> 716541.0744 | I155: ='RAB historical'!I119 -> 736436.0965 | J155: ='RAB historical'!J119 -> 761696.7708 | K155: ='RAB projected '!K117 -> 824693.0613 | L155: ='RAB projected '!L117 -> 860358.8847 | M155: ='RAB projected '!M117 -> 861867.3862 | N155: ='RAB projected '!N117 -> 908712.3158 | O155: ='RAB projected '!O117 -> 933708.1735 | P155: ='RAB projected '!P117 -> 963195.3759 | Q155: ='RAB projected '!Q117 -> 980899.923 | R155: ='RAB projected '!R117 -> 987005.1483 | S155: ='RAB projected '!S117 -> 993098.5516 | T155: ='RAB projected '!T117 -> 999171.7997
B156: ='RAB historical'!B63 -> Capex (net of cap cons) | C156: ='RAB historical'!C63 -> $'000 | F156: ='RAB historical'!F120 -> 34000 | G156: ='RAB historical'!G120 -> 35000 | H156: ='RAB historical'!H120 -> 18000 | I156: ='RAB historical'!I120 -> 34800 | J156: ='RAB historical'!J120 -> 64850 | K156: ='RAB projected '!K118 -> 57300 | L156: ='RAB projected '!L118 -> 23860 | M156: ='RAB projected '!M118 -> 69650 | N156: ='RAB projected '!N118 -> 48720 | O156: ='RAB projected '!O118 -> 54000 | P156: ='RAB projected '!P118 -> 43000 | Q156: ='RAB projected '!Q118 -> 32000 | R156: ='RAB projected '!R118 -> 32500 | S156: ='RAB projected '!S118 -> 33000 | T156: ='RAB projected '!T118 -> 33500
B157: ='RAB historical'!B64 -> Disposals | C157: ='RAB historical'!C64 -> $'000 | F157: ='RAB historical'!F121 -> 1700 | G157: ='RAB historical'!G121 -> 1000 | H157: ='RAB historical'!H121 -> 1000 | I157: ='RAB historical'!I121 -> 1300 | J157: ='RAB historical'!J121 -> 1000 | K157: ='RAB projected '!K119 -> 1200 | L157: ='RAB projected '!L119 -> 1300 | M157: ='RAB projected '!M119 -> 1000 | N157: ='RAB projected '!N119 -> 1000 | O157: ='RAB projected '!O119 -> 1000 | P157: ='RAB projected '!P119 -> 1000 | Q157: ='RAB projected '!Q119 -> 1000 | R157: ='RAB projected '!R119 -> 1000 | S157: ='RAB projected '!S119 -> 1000 | T157: ='RAB projected '!T119 -> 1000
B158: ='RAB historical'!B65 -> Allowed depreciation | C158: ='RAB historical'!C65 -> $'000 | F158: ='RAB historical'!F122 -> 16717 | G158: ='RAB historical'!G122 -> 17972.44878 | H158: ='RAB historical'!H122 -> 18856.21012 | I158: ='RAB historical'!I122 -> 19537.11719 | J158: ='RAB historical'!J122 -> 20694.25373 | K158: ='RAB projected '!K120 -> 20434.17659 | L158: ='RAB projected '!L120 -> 21051.4985 | M158: ='RAB projected '!M120 -> 21805.07042 | N158: ='RAB projected '!N120 -> 22724.14234 | O158: ='RAB projected '!O120 -> 23512.79759 | P158: ='RAB projected '!P120 -> 24295.45284 | Q158: ='RAB projected '!Q120 -> 24894.77476 | R158: ='RAB projected '!R120 -> 25406.59668 | S158: ='RAB projected '!S120 -> 25926.75193 | T158: ='RAB projected '!T120 -> 26455.24051
B159: ='RAB historical'!B66 -> Indexation | C159: ='RAB historical'!C66 -> $'000 | F159: ='RAB historical'!F123 -> 8113.8 | G159: ='RAB historical'!G123 -> 16816.7232 | H159: ='RAB historical'!H123 -> 21751.23223 | I159: ='RAB historical'!I123 -> 11297.79145 | J159: ='RAB historical'!J123 -> 19840.54427 | K159: ='RAB projected '!K121 -> 0 | L159: ='RAB projected '!L121 -> 0 | M159: ='RAB projected '!M121 -> 0 | N159: ='RAB projected '!N121 -> 0 | O159: ='RAB projected '!O121 -> 0 | P159: ='RAB projected '!P121 -> 0 | Q159: ='RAB projected '!Q121 -> 0 | R159: ='RAB projected '!R121 -> 0 | S159: ='RAB projected '!S121 -> 0 | T159: ='RAB projected '!T121 -> 0
B160: ='RAB historical'!B67 -> Closing value | C160: ='RAB historical'!C67 -> $'000 | F160: ='RAB historical'!F124 -> 683696.8 | G160: ='RAB historical'!G124 -> 716541.0744 | H160: ='RAB historical'!H124 -> 736436.0965 | I160: ='RAB historical'!I124 -> 761696.7708 | J160: ='RAB historical'!J124 -> 824693.0613 | K160: ='RAB projected '!K122 -> 860358.8847 | L160: ='RAB projected '!L122 -> 861867.3862 | M160: ='RAB projected '!M122 -> 908712.3158 | N160: ='RAB projected '!N122 -> 933708.1735 | O160: ='RAB projected '!O122 -> 963195.3759 | P160: ='RAB projected '!P122 -> 980899.923 | Q160: ='RAB projected '!Q122 -> 987005.1483 | R160: ='RAB projected '!R122 -> 993098.5516 | S160: ='RAB projected '!S122 -> 999171.7997 | T160: ='RAB projected '!T122 -> 1005216.559
B162: Value of working capital (net) | C162: =C160 -> $'000 | J162: ='Working capital'!J47 -> 5053.013699 | K162: ='Working capital'!K47 -> 5628.356164 | L162: ='Working capital'!L47 -> 8249.491275 | M162: ='Working capital'!M47 -> 4791.781052 | N162: ='Working capital'!N47 -> 6572.333444 | O162: ='Working capital'!O47 -> 6345.692975 | P162: ='Working capital'!P47 -> 7487.416063 | Q162: ='Working capital'!Q47 -> 8629.557692 | R162: ='Working capital'!R47 -> 8889.925797 | S162: ='Working capital'!S47 -> 9150.819942 | T162: ='Working capital'!T47 -> 9412.131739
B163: check = 0 | F163: =F155+F156-F157-F158+F159-F160 -> 0 | G163: 0 | H163: 0 | I163: 0 | J163: 0 | K163: 0 | L163: 0 | M163: 0 | N163: 0 | O163: 0 | P163: 0 | Q163: 0 | R163: 0 | S163: 0 | T163: 0
B167: TABLE 5 - NOTIONAL REVENUE REQUIREMENT AND TARGET REVENUE
B168: =B$57 -> Financial year | I168: =I$57 -> 2017-18 | J168: 2018-19 | K168: 2019-20 | L168: 2020-21 | M168: 2021-22 | N168: 2022-23 | O168: 2023-24 | P168: 2024-25 | Q168: 2025-26 | R168: 2026-27 | S168: 2027-28 | T168: 2028-29
I169: =I$153 -> nominal | J169: =J$153 -> nominal | K169: =K$153 -> 2018-19 $'000 | L169: =L$153 -> 2018-19 $'000 | M169: 2018-19 $'000 | N169: 2018-19 $'000 | O169: 2018-19 $'000 | P169: 2018-19 $'000 | Q169: 2018-19 $'000 | R169: 2018-19 $'000 | S169: 2018-19 $'000 | T169: 2018-19 $'000
B171: ='Cost building blocks'!B15 -> Operating expenditure | C171: ='Cost building blocks'!C15 -> $'000 | I171: ='Cost building blocks'!I15 -> 64940 | J171: ='Cost building blocks'!J15 -> 64950 | K171: ='Cost building blocks'!K15 -> 65000 | L171: ='Cost building blocks'!L15 -> 65150 | M171: ='Cost building blocks'!M15 -> 65300 | N171: ='Cost building blocks'!N15 -> 65450 | O171: ='Cost building blocks'!O15 -> 65600 | P171: ='Cost building blocks'!P15 -> 65750 | Q171: ='Cost building blocks'!Q15 -> 65900 | R171: ='Cost building blocks'!R15 -> 66050 | S171: ='Cost building blocks'!S15 -> 66200 | T171: ='Cost building blocks'!T15 -> 66350
B172: ='Cost building blocks'!B16 -> Depreciation (regulatory) | C172: ='Cost building blocks'!C16 -> $'000 | I172: ='Cost building blocks'!I16 -> 19111.83276 | J172: ='Cost building blocks'!J16 -> 20243.78072 | K172: ='Cost building blocks'!K16 -> 20027.73228 | L172: ='Cost building blocks'!L16 -> 20632.77541 | M172: ='Cost building blocks'!M16 -> 21371.35847 | N172: ='Cost building blocks'!N16 -> 22272.14966 | O172: ='Cost building blocks'!O16 -> 23045.11823 | P172: ='Cost building blocks'!P16 -> 23812.20614 | Q172: ='Cost building blocks'!Q16 -> 24399.60729 | R172: ='Cost building blocks'!R16 -> 24901.24886 | S172: ='Cost building blocks'!S16 -> 25411.05801 | T172: ='Cost building blocks'!T16 -> 25929.03473
B173: ='Cost building blocks'!B17 -> Return on RAB | C173: ='Cost building blocks'!C17 -> $'000 | I173: ='Cost building blocks'!I17 -> 33489.2916 | J173: ='Cost building blocks'!J17 -> 34808.96095 | K173: ='Cost building blocks'!K17 -> 34267.04747 | L173: ='Cost building blocks'!L17 -> 35026.36656 | M173: ='Cost building blocks'!M17 -> 36013.03656 | N173: ='Cost building blocks'!N17 -> 37474.94558 | O173: ='Cost building blocks'!O17 -> 38585.47851 | P173: ='Cost building blocks'!P17 -> 39549.39207 | Q173: ='Cost building blocks'!Q17 -> 40039.82561 | R173: ='Cost building blocks'!R17 -> 40295.20711 | S173: ='Cost building blocks'!S17 -> 40550.11356 | T173: ='Cost building blocks'!T17 -> 40804.21008
B174: ='Cost building blocks'!B18 -> Return on working capital | C174: ='Cost building blocks'!C18 -> $'000 | I174: ='Cost building blocks'!I18 -> 415.8756437 | J174: ='Cost building blocks'!J18 -> 347.2583338 | K174: ='Cost building blocks'!K18 -> 226.1726382 | L174: ='Cost building blocks'!L18 -> 331.5016234 | M174: ='Cost building blocks'!M18 -> 192.5552915 | N174: ='Cost building blocks'!N18 -> 264.1058865 | O174: ='Cost building blocks'!O18 -> 254.9984542 | P174: ='Cost building blocks'!P18 -> 300.8780175 | Q174: ='Cost building blocks'!Q18 -> 346.7743996 | R174: ='Cost building blocks'!R18 -> 357.2371599 | S174: ='Cost building blocks'!S18 -> 367.7210588 | T174: ='Cost building blocks'!T18 -> 378.2217408
B175: ='Cost building blocks'!B19 -> Tax allowance | C175: ='Cost building blocks'!C19 -> $'000 | I175: ='Cost building blocks'!I19 -> 3150 | J175: ='Cost building blocks'!J19 -> 3200 | K175: ='Cost building blocks'!K19 -> 3009.437422 | L175: ='Cost building blocks'!L19 -> 3804.616246 | M175: ='Cost building blocks'!M19 -> 3809.777063 | N175: ='Cost building blocks'!N19 -> 3478.684481 | O175: ='Cost building blocks'!O19 -> 4476.477507 | P175: ='Cost building blocks'!P19 -> 4105.10761 | Q175: ='Cost building blocks'!Q19 -> 4082.634006 | R175: ='Cost building blocks'!R19 -> 4985.261135 | S175: ='Cost building blocks'!S19 -> 4872.130813 | T175: ='Cost building blocks'!T19 -> 5071.945251
B176: ='Cost building blocks'!B20 -> less adjustment for franking credits (gamma) | C176: ='Cost building blocks'!C20 -> $'000 | I176: ='Cost building blocks'!I20 -> -790 | J176: ='Cost building blocks'!J20 -> -800 | K176: ='Cost building blocks'!K20 -> -752.3593556 | L176: ='Cost building blocks'!L20 -> -951.1540616 | M176: ='Cost building blocks'!M20 -> -952.4442657 | N176: ='Cost building blocks'!N20 -> -869.6711203 | O176: ='Cost building blocks'!O20 -> -1119.119377 | P176: ='Cost building blocks'!P20 -> -1026.276903 | Q176: ='Cost building blocks'!Q20 -> -1020.658501 | R176: ='Cost building blocks'!R20 -> -1246.315284 | S176: ='Cost building blocks'!S20 -> -1218.032703 | T176: ='Cost building blocks'!T20 -> -1267.986313
B177: ='Cost building blocks'!B21 -> Total revenue requirement | C177: ='Cost building blocks'!C21 -> $'000 | I177: ='Cost building blocks'!I21 -> 120317 | J177: ='Cost building blocks'!J21 -> 122750 | K177: ='Cost building blocks'!K21 -> 121778.0305 | L177: ='Cost building blocks'!L21 -> 123994.1058 | M177: ='Cost building blocks'!M21 -> 125734.2831 | N177: ='Cost building blocks'!N21 -> 128070.2145 | O177: ='Cost building blocks'!O21 -> 130842.9533 | P177: ='Cost building blocks'!P21 -> 132491.3069 | Q177: ='Cost building blocks'!Q21 -> 133748.1828 | R177: ='Cost building blocks'!R21 -> 135342.639 | S177: ='Cost building blocks'!S21 -> 136182.9907 | T177: ='Cost building blocks'!T21 -> 137265.4255
B178: ='Cost building blocks'!B22 -> less
B179: ='Cost building blocks'!B23 -> Profit/loss on asset sales | C179: ='Cost building blocks'!C23 -> $'000 | I179: ='Cost building blocks'!I23 -> 0 | J179: ='Cost building blocks'!J23 -> 0 | K179: ='Cost building blocks'!K23 -> 0 | L179: ='Cost building blocks'!L23 -> 0 | M179: ='Cost building blocks'!M23 -> 0 | N179: ='Cost building blocks'!N23 -> 0 | O179: ='Cost building blocks'!O23 -> 0 | P179: ='Cost building blocks'!P23 -> 0 | Q179: ='Cost building blocks'!Q23 -> 0 | R179: ='Cost building blocks'!R23 -> 0 | S179: ='Cost building blocks'!S23 -> 0 | T179: ='Cost building blocks'!T23 -> 0
B180: ='Cost building blocks'!B24 -> Other regulatory revenue | C180: ='Cost building blocks'!C23 -> $'000 | I180: ='Cost building blocks'!I24 -> 1000 | J180: ='Cost building blocks'!J24 -> 1000 | K180: ='Cost building blocks'!K24 -> 1000 | L180: ='Cost building blocks'!L24 -> 1000 | M180: ='Cost building blocks'!M24 -> 1000 | N180: ='Cost building blocks'!N24 -> 1000 | O180: ='Cost building blocks'!O24 -> 1000 | P180: ='Cost building blocks'!P24 -> 1000 | Q180: ='Cost building blocks'!Q24 -> 1000 | R180: ='Cost building blocks'!R24 -> 1000 | S180: ='Cost building blocks'!S24 -> 1000 | T180: ='Cost building blocks'!T24 -> 1000
B181: ='Cost building blocks'!B25 -> Revenue required from tariffs (ie, notional revenue requirement) | C181: ='Cost building blocks'!C25 -> $'000 | I181: ='Cost building blocks'!I25 -> 119317 | J181: ='Cost building blocks'!J25 -> 121750 | K181: ='Cost building blocks'!K25 -> 120778.0305 | L181: ='Cost building blocks'!L25 -> 122994.1058 | M181: ='Cost building blocks'!M25 -> 124734.2831 | N181: ='Cost building blocks'!N25 -> 127070.2145 | O181: ='Cost building blocks'!O25 -> 129842.9533 | P181: ='Cost building blocks'!P25 -> 131491.3069 | Q181: ='Cost building blocks'!Q25 -> 132748.1828 | R181: ='Cost building blocks'!R25 -> 134342.639 | S181: ='Cost building blocks'!S25 -> 135182.9907 | T181: ='Cost building blocks'!T25 -> 136265.4255
B184: Target revenue from tariffs | C184: =C181 -> $'000 | I184: =I136 -> 119317 | J184: =J136 -> 121750 | K184: =K136 -> 122296.5403 | L184: 122835.5574 | M184: 124348.0379 | N184: 125888.3986 | O184: 128397.9303 | P184: 130910.8568 | Q184: 133427.1759 | R184: 135947.7618 | S184: 138471.7352 | T184: 141193.7986
B185: ="Implied real return on RAB ("&IF($W$78=2,"post-tax","pre-tax")&")" -> Implied real return on RAB (post-tax) | C185: % | I185: ='Implied return'!I29 -> 0.04755198919 | J185: ='Implied return'!J29 -> 0.0463415152 | K185: ='Implied return'!K29 -> 0.04281687393 | L185: ='Implied return'!L29 -> 0.04081441174 | M185: ='Implied return'!M29 -> 0.0405602689 | N185: ='Implied return'!N29 -> 0.0397070174 | O185: ='Implied return'!O29 -> 0.03946455334 | P185: ='Implied return'!P29 -> 0.04039825992 | Q185: ='Implied return'!Q29 -> 0.04169527569 | R185: ='Implied return'!R29 -> 0.04263319755 | S185: ='Implied return'!S29 -> 0.04432523172 | T185: ='Implied return'!T29 -> 0.04595202077
B187: NPV of required revenue from tariffs over next determination period | K187: =NPV($D$89,K181:N181)*(1+$D$89)^0.5 -> 448877.2662
B188: =Scenario!B137 -> NPV of expected revenue from tariffs over next determination period | K188: =NPV($D$89,K184:N184)*(1+$D$89)^0.5 -> 448877.2662
B189: Difference | K189: =K188-K187 -> -2.0104344e-06
B190: check required revenue = 0 | I190: =SUM(I171:I176)-SUM(I179:I181) -> 0 | J190: =SUM(J171:J176)-SUM(J179:J181) -> 0 | K190: =SUM(K171:K176)-SUM(K179:K181) -> 0 | L190: =SUM(L171:L176)-SUM(L179:L181) -> 0 | M190: 0 | N190: 0 | O190: 0 | P190: 0 | Q190: 0 | R190: 0 | S190: 0 | T190: 0
B191: Check NPVs = 0 | K191: ='Cost building blocks'!K26-K187 -> 0 | L191: =K137-K188 -> 0
B195: TABLE 6 - FINANCIAL INDICATORS
B196: =B$57 -> Financial year | D196: ='Financials actual'!D109 -> Target ratios | I196: =I$57 -> 2017-18 | J196: 2018-19 | K196: 2019-20 | L196: 2020-21 | M196: 2021-22 | N196: 2022-23 | O196: 2023-24 | P196: 2024-25 | Q196: 2025-26 | R196: 2026-27 | S196: 2027-28 | T196: 2028-29
B198: ='Financials actual'!B111&'Financials actual'!B112 -> 1. Adjusted FFO Interest Cover - ratio (times) | D198: ='Financials actual'!D111 -> Higher is better | J198: ="Formula for 'actual' "&'Financials actual'!V111 -> Formula for 'actual' = (Inflation adjusted FFO + inflation adjusted net interest payments) / inflation adjusted net interest payments, after adjustment for operating leases and superannuation
B199: - Benchmark | C199: ='Financials actual'!C112 -> > | D199: ='Financials actual'!D112 -> 1.8 | I199: na | J199: ='Financials benchmark'!J107 -> 2.904812066 | K199: ='Financials benchmark'!K107 -> 3.525017763 | L199: ='Financials benchmark'!L107 -> 3.429899699 | M199: ='Financials benchmark'!M107 -> 3.345095074 | N199: ='Financials benchmark'!N107 -> 3.341353717 | O199: ='Financials benchmark'!O107 -> 3.327778308 | P199: ='Financials benchmark'!P107 -> 3.404665158 | Q199: ='Financials benchmark'!Q107 -> 3.505578018 | R199: ='Financials benchmark'!R107 -> 3.572108609 | S199: ='Financials benchmark'!S107 -> 3.677723013 | T199: ='Financials benchmark'!T107 -> 3.780228198
B200: - Actual 1 | C200: =C199 -> > | D200: =D199 -> 1.8 | I200: ='Financials actual'!I112 -> 2.49427027 | J200: ='Financials actual'!J112 -> 2.89377474 | K200: ='Financials actual'!K112 -> 2.821820507 | L200: ='Financials actual'!L112 -> 2.733784322 | M200: ='Financials actual'!M112 -> 2.828856395 | N200: ='Financials actual'!N112 -> 2.769103542 | O200: ='Financials actual'!O112 -> 2.762762527 | P200: ='Financials actual'!P112 -> 2.794165105 | Q200: ='Financials actual'!Q112 -> 2.854108501 | R200: ='Financials actual'!R112 -> 2.932781113 | S200: ='Financials actual'!S112 -> 3.053304724 | T200: ='Financials actual'!T112 -> 3.17643203
B202: ='Financials actual'!B114&'Financials actual'!B115 -> 1a. FFO Interest Cover - ratio (times) | J202: ="Formula for 'actual' "&'Financials actual'!$V115 -> Formula for 'actual' = (FFO + net interest payments) / net interest payments, after adjustment for operating leases and superannuation | V202: This is a coverage ratio and measures a utility’s ability to service its debt prior to repayment.
B203: - Actual 1 | C203: =C200 -> > | D203: =D199 -> 1.8 | I203: ='Financials actual'!I115 -> 1.913444282 | J203: ='Financials actual'!J115 -> 1.9773872 | K203: ='Financials actual'!K115 -> 1.939784697 | L203: ='Financials actual'!L115 -> 1.864707443 | M203: ='Financials actual'!M115 -> 1.931031234 | N203: ='Financials actual'!N115 -> 1.887585654 | O203: ='Financials actual'!O115 -> 1.884202641 | P203: ='Financials actual'!P115 -> 1.905257508 | Q203: ='Financials actual'!Q115 -> 1.946724642 | R203: ='Financials actual'!R115 -> 2.001080556 | S203: ='Financials actual'!S115 -> 2.083523747 | T203: ='Financials actual'!T115 -> 2.167752846
B205: ='Financials actual'!B117&'Financials actual'!B118 -> 2. Adjusted FFO / Net Debt - ratio (%) | D205: ='Financials actual'!D117 -> Higher is better | J205: ="Formula for 'actual' "&'Financials actual'!V118 -> Formula for 'actual' = Inflation adjusted FFO / Inflation adjusted Net Debt, after adjustment for operating leases and superannuation
B206: =B199 -> - Benchmark | C206: ='Financials actual'!C118 -> > | D206: ='Financials actual'!D118 -> 0.06 | I206: na | J206: ='Financials benchmark'!J110 -> 0.07428767057 | K206: ='Financials benchmark'!K110 -> 0.07863498473 | L206: ='Financials benchmark'!L110 -> 0.07712084006 | M206: ='Financials benchmark'!M110 -> 0.07442928702 | N206: ='Financials benchmark'!N110 -> 0.07431054279 | O206: ='Financials benchmark'!O110 -> 0.07387968264 | P206: ='Financials benchmark'!P110 -> 0.07631993909 | Q206: ='Financials benchmark'!Q110 -> 0.07952273983 | R206: ='Financials benchmark'!R110 -> 0.08163430643 | S206: ='Financials benchmark'!S110 -> 0.08498632609 | T206: ='Financials benchmark'!T110 -> 0.0882396645 | V206: This is a more dynamic measure of leverage than debt gearing and a useful indicator of a
B207: - Actual 1 | C207: =C206 -> > | D207: =D206 -> 0.06 | I207: ='Financials actual'!I118 -> 0.07129647373 | J207: ='Financials actual'!J118 -> 0.07199312292 | K207: ='Financials actual'!K118 -> 0.06838732031 | L207: ='Financials actual'!L118 -> 0.06859148823 | M207: ='Financials actual'!M118 -> 0.06727230521 | N207: ='Financials actual'!N118 -> 0.06717085871 | O207: ='Financials actual'!O118 -> 0.06669071936 | P207: ='Financials actual'!P118 -> 0.06922831582 | Q207: ='Financials actual'!Q118 -> 0.07308067639 | R207: ='Financials actual'!R118 -> 0.07633275186 | S207: ='Financials actual'!S118 -> 0.08122753143 | T207: ='Financials actual'!T118 -> 0.08622157412 | V207: utility’s ability to generate cash flows.
B209: ='Financials actual'!B120&'Financials actual'!B121 -> 2a. FFO / Net Debt - ratio (%) | J209: ="Formula for 'actual' "&'Financials actual'!$V121 -> Formula for 'actual' = FFO / Net Debt, after adjustment for operating leases and superannuation
B210: - Actual 1 | C210: =C207 -> > | D210: =D207 -> 0.06 | J210: ='Financials actual'!J121 -> 0.05535053604 | K210: ='Financials actual'!K121 -> 0.05220968822 | L210: ='Financials actual'!L121 -> 0.05109522605 | M210: ='Financials actual'!M121 -> 0.05104278008 | N210: ='Financials actual'!N121 -> 0.05033155548 | O210: ='Financials actual'!O121 -> 0.04993085231 | P210: ='Financials actual'!P121 -> 0.0521652557 | Q210: ='Financials actual'!Q121 -> 0.05573269739 | R210: ='Financials actual'!R121 -> 0.05902997454 | S210: ='Financials actual'!S121 -> 0.06399281118 | T210: ='Financials actual'!T121 -> 0.06906085736
B212: ='Financials actual'!B123&'Financials actual'!B124 -> 3. Adjusted Net Debt / RAB - ratio (%) | D212: ='Financials actual'!D123 -> Lower is better | J212: ="Formula for 'actual' "&'Financials actual'!$V124 -> Formula for 'actual' = Inflation adjusted Net Debt / (RAB + net working capital), after adjustment for operating leases and superannuation | V212: This is a leverage ratio and measures a utility’s ability to repay its debt.
B213: =B199 -> - Benchmark | C213: ='Financials actual'!C124 -> < | D213: ='Financials actual'!D124 -> 0.7 | I213: na | J213: ='Financials benchmark'!J113 -> 0.6 | K213: ='Financials benchmark'!K113 -> 0.6 | L213: ='Financials benchmark'!L113 -> 0.6 | M213: ='Financials benchmark'!M113 -> 0.6 | N213: ='Financials benchmark'!N113 -> 0.6 | O213: ='Financials benchmark'!O113 -> 0.6 | P213: ='Financials benchmark'!P113 -> 0.6 | Q213: ='Financials benchmark'!Q113 -> 0.6 | R213: ='Financials benchmark'!R113 -> 0.6 | S213: ='Financials benchmark'!S113 -> 0.6 | T213: ='Financials benchmark'!T113 -> 0.6
B214: - Actual 1 | C214: =C213 -> < | D214: =D213 -> 0.7 | I214: ='Financials actual'!I124 -> 0.5769322339 | J214: ='Financials actual'!J124 -> 0.5947843742 | K214: ='Financials actual'!K124 -> 0.6070369331 | L214: ='Financials actual'!L124 -> 0.5954865142 | M214: ='Financials actual'!M124 -> 0.6009247707 | N214: ='Financials actual'!N124 -> 0.599120782 | O214: ='Financials actual'!O124 -> 0.5983032851 | P214: ='Financials actual'!P124 -> 0.592463654 | Q214: ='Financials actual'!Q124 -> 0.5811789242 | R214: ='Financials actual'!R124 -> 0.569513371 | S214: ='Financials actual'!S124 -> 0.5572487667 | T214: ='Financials actual'!T124 -> 0.5445596016
B216: ='Financials actual'!B126&'Financials actual'!B127 -> 3a. Net Debt / RAB - ratio (%) | J216: ="Formula "&'Financials actual'!$V127 -> Formula = Net Debt / (RAB + net working capital), after adjustment for operating leases and superannuation
B217: - Actual 1 | C217: =C213 -> < | D217: =D213 -> 0.7 | I217: ='Financials actual'!I127 -> 0.5769322339 | J217: ='Financials actual'!J127 -> 0.5947843742 | K217: ='Financials actual'!K127 -> 0.5966755482 | L217: ='Financials actual'!L127 -> 0.5845067105 | M217: ='Financials actual'!M127 -> 0.5906474648 | N217: ='Financials actual'!N127 -> 0.5884973096 | O217: ='Financials actual'!O127 -> 0.5877488075 | P217: ='Financials actual'!P127 -> 0.5817980364 | Q217: ='Financials actual'!Q127 -> 0.5705015665 | R217: ='Financials actual'!R127 -> 0.5590410257 | S217: ='Financials actual'!S127 -> 0.5469881333 | T217: ='Financials actual'!T127 -> 0.5345213159
B219: 2013 Financial Ratio Benchmarks (for water utilities) | L219: Credit Rating Range
J220: A3 | K220: Baa1 | L220: Baa2 | M220: Baa3 | N220: Ba1
B221: =B202 -> 1a. FFO Interest Cover - ratio (times) | J221: >2.9 | K221: 2.3 - 2.9 | L221: 1.7 - 2.5 | M221: 1.4 / 1.5 - 1.7 | N221: <1.4 / 1.5
B222: =B212 -> 3. Adjusted Net Debt / RAB - ratio (%) | J222: <60% | K222: 80-85% | L222: 60-91% | M222: 90-100% | N222: >100%
B223: =B209 -> 2a. FFO / Net Debt - ratio (%) | J223: >10% | K223: >10% | L223: 6-10% | M223: 5-8% | N223: <4%
J224: Source: Kanangra Ratings Advisory Services advice to IPART, see IPART, Financeability tests in price regulation Research — Final Decision December 2013, p18
B226: 1. Interest expense for Actual ratios is calculated using previous year's closing debt to avoid circular referencing (forecast period only)
B229: TABLE 7 - TARIFFS
B230: =B$57 -> Financial year | I230: =I$57 -> 2017-18 | J230: 2018-19 | K230: 2019-20 | L230: 2020-21 | M230: 2021-22 | N230: 2022-23 | O230: 2023-24 | P230: 2024-25 | Q230: 2025-26 | R230: 2026-27 | S230: 2027-28 | T230: 2028-29
B231: =K231 -> real 2018-19 prices | I231: =K231 -> real 2018-19 prices | J231: =K231 -> real 2018-19 prices | K231: =Scenario!K116 -> real 2018-19 prices | O231: =K231 -> real 2018-19 prices
B233: =Bills!B19 -> Access charge | C233: =Bills!C19 -> $/year | I233: =Bills!I19 -> 92.25 | J233: =Bills!J19 -> 90 | K233: =Bills!K19 -> 89.4245665 | L233: =Bills!L19 -> 88.85281216 | M233: =Bills!M19 -> 88.28471344 | N233: =Bills!N19 -> 87.72024698 | O233: =Bills!O19 -> 87.70303836 | P233: =Bills!P19 -> 87.68583311 | Q233: =Bills!Q19 -> 87.66863124 | R233: =Bills!R19 -> 87.65143275 | S233: =Bills!S19 -> 87.63423763 | T233: =Bills!T19 -> 87.61704588
B234: =Bills!B20 -> Usage charge for Tier 1 consumption | C234: =Bills!C20 -> $/kL | I234: =Bills!I20 -> 2.05 | J234: =Bills!J20 -> 2 | K234: =Bills!K20 -> 1.987212589 | L234: =Bills!L20 -> 1.974506937 | M234: =Bills!M20 -> 1.961882521 | N234: =Bills!N20 -> 1.949338822 | O234: =Bills!O20 -> 1.948956408 | P234: =Bills!P20 -> 1.948574069 | Q234: =Bills!Q20 -> 1.948191805 | R234: =Bills!R20 -> 1.947809617 | S234: =Bills!S20 -> 1.947427503 | T234: =Bills!T20 -> 1.947045464
B235: =Bills!B21 -> Usage charge for Tier 2 consumption | C235: =Bills!C21 -> $/kL | I235: =Bills!I21 -> 2.5625 | J235: =Bills!J21 -> 2.5 | K235: =Bills!K21 -> 2.484015736 | L235: =Bills!L21 -> 2.468133671 | M235: =Bills!M21 -> 2.452353151 | N235: =Bills!N21 -> 2.436673527 | O235: =Bills!O21 -> 2.43619551 | P235: =Bills!P21 -> 2.435717586 | Q235: =Bills!Q21 -> 2.435239757 | R235: =Bills!R21 -> 2.434762021 | S235: =Bills!S21 -> 2.434284379 | T235: =Bills!T21 -> 2.43380683
B237: =K237 -> nominal prices' | K237: =Bills!K67 -> nominal prices' | O237: =K237 -> nominal prices'
B239: =B233 -> Access charge | C239: $/year | I239: =Bills!I72 -> 90 | J239: =Bills!J72 -> 90 | K239: =Bills!K72 -> 91.66018066 | L239: =Bills!L72 -> 93.35098577 | M239: =Bills!M72 -> 95.07298023 | N239: =Bills!N72 -> 96.82673938 | O239: =Bills!O72 -> 99.22793789 | P239: =Bills!P72 -> 101.6886835 | Q239: =Bills!Q72 -> 104.210453 | R239: =Bills!R72 -> 106.7947596 | S239: =Bills!S72 -> 109.4431543 | T239: =Bills!T72 -> 112.1572262
B240: Usage charge for Tier 1 consumption | C240: $/kL | I240: =Bills!I73 -> 2 | J240: =Bills!J73 -> 2 | K240: =Bills!K73 -> 2.036892904 | L240: =Bills!L73 -> 2.07446635 | M240: =Bills!M73 -> 2.112732894 | N240: =Bills!N73 -> 2.15170532 | O240: =Bills!O73 -> 2.205065287 | P240: =Bills!P73 -> 2.259748523 | Q240: =Bills!Q73 -> 2.315787844 | R240: =Bills!R73 -> 2.373216881 | S240: =Bills!S73 -> 2.432070095 | T240: =Bills!T73 -> 2.492382805
B241: Usage charge for Tier 2 consumption | C241: $/kL | I241: =Bills!I74 -> 2.5 | J241: =Bills!J74 -> 2.5 | K241: =Bills!K74 -> 2.54611613 | L241: =Bills!L74 -> 2.593082938 | M241: =Bills!M74 -> 2.640916118 | N241: =Bills!N74 -> 2.68963165 | O241: =Bills!O74 -> 2.756331608 | P241: =Bills!P74 -> 2.824685654 | Q241: =Bills!Q74 -> 2.894734806 | R241: =Bills!R74 -> 2.966521101 | S241: =Bills!S74 -> 3.040087619 | T241: =Bills!T74 -> 3.115478507
B245: TABLE 8 - ANNUAL BILLS
B246: =B$57 -> Financial year | I246: =I$57 -> 2017-18 | J246: 2018-19 | K246: 2019-20 | L246: 2020-21 | M246: 2021-22 | N246: 2022-23 | O246: 2023-24 | P246: 2024-25 | Q246: 2025-26 | R246: 2026-27 | S246: 2027-28 | T246: 2028-29
B247: =K247 -> real 2018-19 prices | I247: =K247 -> real 2018-19 prices | J247: =K247 -> real 2018-19 prices | K247: =K231 -> real 2018-19 prices | O247: =K247 -> real 2018-19 prices
B249: =Bills!B51 -> Bills for non-pensioners
B250: =Bills!B52&" ("&Bills!D26&" kL pa)" -> Small customer (100 kL pa) | C250: =Bills!C52 -> $/year | I250: =Bills!I52 -> 297.25 | J250: =Bills!J52 -> 290 | K250: =Bills!K52 -> 288.1458254 | L250: =Bills!L52 -> 286.3035058 | M250: =Bills!M52 -> 284.4729655 | N250: =Bills!N52 -> 282.6541292 | O250: =Bills!O52 -> 282.5986792 | P250: =Bills!P52 -> 282.54324 | Q250: =Bills!Q52 -> 282.4878118 | R250: =Bills!R52 -> 282.4323944 | S250: =Bills!S52 -> 282.3769879 | T250: =Bills!T52 -> 282.3215923
B251: ---- percentage change | C251: =CHOOSE(Scenario!$W$37,"nominal % pa","real % pa") -> real % pa | K251: =K250/J250-1 -> -0.006393705534 | L251: -0.006393705534 | M251: -0.006393705534 | N251: -0.006393705534 | O251: -0.0001961761561 | P251: -0.0001961761561 | Q251: -0.0001961761561 | R251: -0.0001961761561 | S251: -0.0001961761561 | T251: -0.0001961761561
B252: =Bills!B53&" ("&Bills!D27&" kL pa)" -> Medium customer (200 kL pa) | C252: =Bills!C53 -> $/year | I252: =Bills!I53 -> 527.875 | J252: =Bills!J53 -> 515 | K252: =Bills!K53 -> 511.7072417 | L252: =Bills!L53 -> 508.4355362 | M252: =Bills!M53 -> 505.1847491 | N252: =Bills!N53 -> 501.9547466 | O252: =Bills!O53 -> 501.856275 | P252: =Bills!P53 -> 501.7578228 | Q252: =Bills!Q53 -> 501.6593899 | R252: =Bills!R53 -> 501.5609763 | S252: =Bills!S53 -> 501.462582 | T252: =Bills!T53 -> 501.364207
B253: =B251 -> ---- percentage change | C253: =C251 -> real % pa | K253: =K252/J252-1 -> -0.006393705534 | L253: -0.006393705534 | M253: -0.006393705534 | N253: -0.006393705534 | O253: -0.0001961761561 | P253: -0.0001961761561 | Q253: -0.0001961761561 | R253: -0.0001961761561 | S253: -0.0001961761561 | T253: -0.0001961761561
B254: =Bills!B54&" ("&Bills!D28&" kL pa)" -> Large customer (400 kL pa) | C254: =Bills!C54 -> $/year | I254: =Bills!I54 -> 1040.375 | J254: =Bills!J54 -> 1015 | K254: =Bills!K54 -> 1008.510389 | L254: =Bills!L54 -> 1002.06227 | M254: =Bills!M54 -> 995.6553793 | N254: =Bills!N54 -> 989.289452 | O254: =Bills!O54 -> 989.095377 | P254: =Bills!P54 -> 988.9013401 | Q254: =Bills!Q54 -> 988.7073412 | R254: =Bills!R54 -> 988.5133804 | S254: =Bills!S54 -> 988.3194577 | T254: =Bills!T54 -> 988.125573
B255: =B253 -> ---- percentage change | C255: =C253 -> real % pa | K255: =K254/J254-1 -> -0.006393705534 | L255: -0.006393705534 | M255: -0.006393705534 | N255: -0.006393705534 | O255: -0.0001961761561 | P255: -0.0001961761561 | Q255: -0.0001961761561 | R255: -0.0001961761561 | S255: -0.0001961761561 | T255: -0.0001961761561
B257: =Bills!B56 -> Bills for pensioners
B258: =B250 -> Small customer (100 kL pa) | C258: =Bills!C57 -> $/year | I258: =Bills!I57 -> 205 | J258: =Bills!J57 -> 200 | K258: =Bills!K57 -> 198.1458254 | L258: =Bills!L57 -> 196.3035058 | M258: =Bills!M57 -> 194.4729655 | N258: =Bills!N57 -> 192.6541292 | O258: =Bills!O57 -> 192.5986792 | P258: =Bills!P57 -> 192.54324 | Q258: =Bills!Q57 -> 192.4878118 | R258: =Bills!R57 -> 192.4323944 | S258: =Bills!S57 -> 192.3769879 | T258: =Bills!T57 -> 192.3215923
B259: =B251 -> ---- percentage change | C259: =CHOOSE(Scenario!$W$37,"nominal % pa","real % pa") -> real % pa | K259: =K258/J258-1 -> -0.009270873024 | L259: -0.009297796483 | M259: -0.009325051541 | N259: -0.009352643793 | O259: -0.0002878215007 | P259: -0.0002878478858 | Q259: -0.0002878742809 | R259: -0.0002879006861 | S259: -0.0002879271012 | T259: -0.0002879535264
B260: =B252 -> Medium customer (200 kL pa) | C260: =Bills!C58 -> $/year | I260: =Bills!I58 -> 435.625 | J260: =Bills!J58 -> 425 | K260: =Bills!K58 -> 421.7072417 | L260: =Bills!L58 -> 418.4355362 | M260: =Bills!M58 -> 415.1847491 | N260: =Bills!N58 -> 411.9547466 | O260: =Bills!O58 -> 411.856275 | P260: =Bills!P58 -> 411.7578228 | Q260: =Bills!Q58 -> 411.6593899 | R260: =Bills!R58 -> 411.5609763 | S260: =Bills!S58 -> 411.462582 | T260: =Bills!T58 -> 411.364207
B261: =B259 -> ---- percentage change | C261: =C259 -> real % pa | K261: =K260/J260-1 -> -0.007747666706 | L261: -0.007758238654 | M261: -0.007768907801 | N261: -0.007779675272 | O261: -0.0002390348784 | P261: -0.0002390451256 | Q261: -0.0002390553756 | R261: -0.0002390656286 | S261: -0.0002390758844 | T261: -0.0002390861432
B262: =B254 -> Large customer (400 kL pa) | C262: =Bills!C59 -> $/year | I262: =Bills!I59 -> 948.125 | J262: =Bills!J59 -> 925 | K262: =Bills!K59 -> 918.5103889 | L262: =Bills!L59 -> 912.0622704 | M262: =Bills!M59 -> 905.6553793 | N262: =Bills!N59 -> 899.289452 | O262: =Bills!O59 -> 899.095377 | P262: =Bills!P59 -> 898.9013401 | Q262: =Bills!Q59 -> 898.7073412 | R262: =Bills!R59 -> 898.5133804 | S262: =Bills!S59 -> 898.3194577 | T262: =Bills!T59 -> 898.125573
B263: =B261 -> ---- percentage change | C263: =C261 -> real % pa | K263: =K262/J262-1 -> -0.007015795802 | L263: -0.007020191097 | M263: -0.007024620239 | N263: -0.007029083528 | O263: -0.0002158092721 | P263: -0.00021581351 | Q263: -0.0002158177489 | R263: -0.0002158219888 | S263: -0.0002158262297 | T263: -0.0002158304717
B264: =K264 -> nominal prices' | I264: =J264 -> nominal prices' | J264: =K264 -> nominal prices' | K264: =Bills!K67 -> nominal prices' | O264: =K264 -> nominal prices'
B266: =B249 -> Bills for non-pensioners
B267: =B250 -> Small customer (100 kL pa) | C267: =C250 -> $/year | I267: =Bills!I77 -> 290 | J267: =Bills!J77 -> 290 | K267: =Bills!K77 -> 295.349471 | L267: =Bills!L77 -> 300.7976208 | M267: =Bills!M77 -> 306.3462696 | N267: =Bills!N77 -> 311.9972713 | O267: =Bills!O77 -> 319.7344665 | P267: =Bills!P77 -> 327.6635358 | Q267: =Bills!Q77 -> 335.7892375 | R267: =Bills!R77 -> 344.1164477 | S267: =Bills!S77 -> 352.6501638 | T267: =Bills!T77 -> 361.3955068
B268: =B251 -> ---- percentage change | C268: % | K268: =K267/J267-1 -> 0.01844645183 | L268: =L267/K267-1 -> 0.01844645183 | M268: 0.01844645183 | N268: 0.01844645183 | O268: 0.02479891944 | P268: 0.02479891944 | Q268: 0.02479891944 | R268: 0.02479891944 | S268: 0.02479891944 | T268: 0.02479891944
B269: Medium customer (200 kL pa) | C269: =C267 -> $/year | I269: =Bills!I78 -> 515 | J269: =Bills!J78 -> 515 | K269: =Bills!K78 -> 524.4999227 | L269: =Bills!L78 -> 534.1750852 | M269: =Bills!M78 -> 544.0287202 | N269: =Bills!N78 -> 554.0641198 | O269: =Bills!O78 -> 567.8043113 | P269: =Bills!P78 -> 581.8852447 | Q269: =Bills!Q78 -> 596.31537 | R269: =Bills!R78 -> 611.1033468 | S269: =Bills!S78 -> 626.2580494 | T269: =Bills!T78 -> 641.7885724
B270: ---- percentage change | C270: =C268 -> % | K270: =K269/J269-1 -> 0.01844645183 | L270: =L269/K269-1 -> 0.01844645183 | M270: 0.01844645183 | N270: 0.01844645183 | O270: 0.02479891944 | P270: 0.02479891944 | Q270: 0.02479891944 | R270: 0.02479891944 | S270: 0.02479891944 | T270: 0.02479891944
B271: Large customer (400 kL pa) | C271: =C269 -> $/year | I271: =Bills!I79 -> 1015 | J271: =Bills!J79 -> 1015 | K271: =Bills!K79 -> 1033.723149 | L271: =Bills!L79 -> 1052.791673 | M271: =Bills!M79 -> 1072.211944 | N271: =Bills!N79 -> 1091.99045 | O271: =Bills!O79 -> 1119.070633 | P271: =Bills!P79 -> 1146.822375 | Q271: =Bills!Q79 -> 1175.262331 | R271: =Bills!R79 -> 1204.407567 | S271: =Bills!S79 -> 1234.275573 | T271: =Bills!T79 -> 1264.884274
B272: ---- percentage change | C272: =C270 -> % | K272: =K271/J271-1 -> 0.01844645183 | L272: =L271/K271-1 -> 0.01844645183 | M272: 0.01844645183 | N272: 0.01844645183 | O272: 0.02479891944 | P272: 0.02479891944 | Q272: 0.02479891944 | R272: 0.02479891944 | S272: 0.02479891944 | T272: 0.02479891944
B274: Bills for pensioners
B275: Small customer (100 kL pa) | C275: =C267 -> $/year | I275: =Bills!I82 -> 200 | J275: =Bills!J82 -> 200 | K275: =Bills!K82 -> 203.099471 | L275: =Bills!L82 -> 206.2413708 | M275: =Bills!M82 -> 209.4261134 | N275: =Bills!N82 -> 212.6541112 | O275: =Bills!O82 -> 217.9077274 | P275: =Bills!P82 -> 223.2911282 | Q275: =Bills!Q82 -> 228.8075196 | R275: =Bills!R82 -> 234.4601869 | S275: =Bills!S82 -> 240.2524965 | T275: =Bills!T82 -> 246.1878978
B276: ---- percentage change | C276: % | K276: =K275/J275-1 -> 0.01549735515 | L276: =L275/K275-1 -> 0.01546975861 | M276: 0.01544182217 | N276: 0.01541354011 | O276: 0.02470498296 | P276: 0.02470495592 | Q276: 0.02470492886 | R276: 0.0247049018 | S276: 0.02470487472 | T276: 0.02470484764
B277: Medium customer (200 kL pa) | C277: $/year | I277: =Bills!I83 -> 425 | J277: =Bills!J83 -> 425 | K277: =Bills!K83 -> 432.2499227 | L277: =Bills!L83 -> 439.6188352 | M277: =Bills!M83 -> 447.108564 | N277: =Bills!N83 -> 454.7209597 | O277: =Bills!O83 -> 465.9775721 | P277: =Bills!P83 -> 477.512837 | Q277: =Bills!Q83 -> 489.3336521 | R277: =Bills!R83 -> 501.447086 | S277: =Bills!S83 -> 513.8603821 | T277: =Bills!T83 -> 526.5809634
B278: ---- percentage change | C278: % | K278: =K277/J277-1 -> 0.01705864163 | L278: =L277/K277-1 -> 0.01704780538 | M278: 0.0170368695 | N278: 0.01702583285 | O278: 0.02475498925 | P278: 0.02475497875 | Q278: 0.02475496824 | R278: 0.02475495773 | S278: 0.02475494722 | T278: 0.0247549367
B279: Large customer (400 kL pa) | C279: $/year | I279: =Bills!I84 -> 925 | J279: =Bills!J84 -> 925 | K279: =Bills!K84 -> 941.4731486 | L279: =Bills!L84 -> 958.2354229 | M279: =Bills!M84 -> 975.2917875 | N279: =Bills!N84 -> 992.6472896 | O279: =Bills!O84 -> 1017.243894 | P279: =Bills!P84 -> 1042.449968 | Q279: =Bills!Q84 -> 1068.280613 | R279: =Bills!R84 -> 1094.751306 | S279: =Bills!S84 -> 1121.877906 | T279: =Bills!T84 -> 1149.676665
B280: ---- percentage change | C280: % | K280: =K279/J279-1 -> 0.0178088093 | L280: =L279/K279-1 -> 0.01780430413 | M280: 0.01779976426 | N280: 0.01779518938 | O280: 0.0247787955 | P280: 0.02477879115 | Q280: 0.02477878681 | R280: 0.02477878246 | S280: 0.02477877811 | T280: 0.02477877377

Sheet Financials benchmark
B1: =Cover!B1 -> THE INDEPENDENT PRICING AND REGULATORY TRIBUNAL OF NSW | K1: =Cover!$B$3 -> IPART TEMPLATE FOR COST BUILDING BLOCKS, SIMPLE TARIFF SETTING AND FINANCIAL RATIO ANALYSIS
B3: 5a FINANCIAL STATEMENTS AND FINANCIAL RATIOS - BENCHMARK
B5: Index | L5: row number
B6: =B28 -> TABLE 2 - REGULATORY INCOME STATEMENT ($'000) | L6: =ROW(B28) -> 28
B7: =B58 -> TABLE 3 - REGULATORY BALANCE SHEET ($'000) | L7: =ROW(B58) -> 58
B8: =B78 -> TABLE 4 - REGULATORY CASH FLOW ($'000) | L8: =ROW(B78) -> 78
B9: =B103 -> TABLE 5 - FINANCEABILITY RATIOS | L9: =ROW(B103) -> 103
B10: =B119 -> TABLE 6 - CALCULATIONS FOR FINANCEABILITY RATIOS | L10: =ROW(B119) -> 119
B14: TABLE 1 - ASSUMPTIONS
B15: ='Pricing & financial inputs'!B64 -> Financial year | C15: ='Pricing & financial inputs'!C64 -> Units | D15: Selection options | H15: ='Pricing & financial inputs'!H64 -> 2016-17 | I15: ='Pricing & financial inputs'!I64 -> 2017-18 | J15: ='Pricing & financial inputs'!J64 -> 2018-19 | K15: ='Pricing & financial inputs'!K64 -> 2019-20 | L15: ='Pricing & financial inputs'!L64 -> 2020-21 | M15: ='Pricing & financial inputs'!M64 -> 2021-22 | N15: ='Pricing & financial inputs'!N64 -> 2022-23 | O15: ='Pricing & financial inputs'!O64 -> 2023-24 | P15: ='Pricing & financial inputs'!P64 -> 2024-25 | Q15: ='Pricing & financial inputs'!Q64 -> 2025-26 | R15: ='Pricing & financial inputs'!R64 -> 2026-27 | S15: ='Pricing & financial inputs'!S64 -> 2027-28 | T15: ='Pricing & financial inputs'!T64 -> 2028-29
D16: & messages
B17: ='Pricing & financial inputs'!$B$67 -> Corporate tax rate | C17: % | I17: ='Pricing & financial inputs'!I68 -> 0.3 | J17: ='Pricing & financial inputs'!J68 -> 0.3 | K17: ='Pricing & financial inputs'!K68 -> 0.3 | L17: ='Pricing & financial inputs'!L68 -> 0.3 | M17: ='Pricing & financial inputs'!M68 -> 0.3 | N17: ='Pricing & financial inputs'!N68 -> 0.3 | O17: ='Pricing & financial inputs'!O68 -> 0.3 | P17: ='Pricing & financial inputs'!P68 -> 0.3 | Q17: ='Pricing & financial inputs'!Q68 -> 0.3 | R17: ='Pricing & financial inputs'!R68 -> 0.3 | S17: ='Pricing & financial inputs'!S68 -> 0.3 | T17: ='Pricing & financial inputs'!T68 -> 0.3
B18: Real cost of debt (benchmark) | C18: =C17 -> % | I18: ='Pricing & financial inputs'!I81 -> 0.039 | J18: ='Pricing & financial inputs'!J81 -> 0.039 | K18: ='Pricing & financial inputs'!K81 -> 0.03173828125 | L18: ='Pricing & financial inputs'!L81 -> 0.03173828125 | M18: ='Pricing & financial inputs'!M81 -> 0.03173828125 | N18: ='Pricing & financial inputs'!N81 -> 0.03173828125 | O18: ='Pricing & financial inputs'!O81 -> 0.03173828125 | P18: ='Pricing & financial inputs'!P81 -> 0.03173828125 | Q18: ='Pricing & financial inputs'!Q81 -> 0.03173828125 | R18: ='Pricing & financial inputs'!R81 -> 0.03173828125 | S18: ='Pricing & financial inputs'!S81 -> 0.03173828125 | T18: ='Pricing & financial inputs'!T81 -> 0.03173828125
B19: Gearing ratio | C19: =C18 -> % | D19: =WACC!$I$22 -> 0.6 | I19: =$D19 -> 0.6 | J19: =$D19 -> 0.6 | K19: =$D19 -> 0.6 | L19: 0.6 | M19: 0.6 | N19: 0.6 | O19: 0.6 | P19: 0.6 | Q19: 0.6 | R19: 0.6 | S19: 0.6 | T19: 0.6
B20: Inflator for (real) inputs to nominal values | C20: no. | I20: 1 | J20: 1 | K20: =J20*(1+'Pricing & financial inputs'!K18) -> 1.025 | L20: =K20*(1+'Pricing & financial inputs'!L18) -> 1.050625 | M20: =L20*(1+'Pricing & financial inputs'!M18) -> 1.076890625 | N20: =M20*(1+'Pricing & financial inputs'!N18) -> 1.103812891 | O20: =N20*(1+'Pricing & financial inputs'!O18) -> 1.131408213 | P20: =O20*(1+'Pricing & financial inputs'!P18) -> 1.159693418 | Q20: =P20*(1+'Pricing & financial inputs'!Q18) -> 1.188685754 | R20: =Q20*(1+'Pricing & financial inputs'!R18) -> 1.218402898 | S20: =R20*(1+'Pricing & financial inputs'!S18) -> 1.24886297 | T20: =S20*(1+'Pricing & financial inputs'!T18) -> 1.280084544
B21: Inflator to nominal values for calculated values | C21: no. | D21: =IF(Scenario!W37=1,"Forecasts are nominal, therefore inflator = 1","ok") -> ok | I21: 1 | J21: ='RAB projected '!J23 -> 1 | K21: ='RAB projected '!K23 -> 1.025 | L21: ='RAB projected '!L23 -> 1.050625 | M21: ='RAB projected '!M23 -> 1.076890625 | N21: ='RAB projected '!N23 -> 1.103812891 | O21: ='RAB projected '!O23 -> 1.131408213 | P21: ='RAB projected '!P23 -> 1.159693418 | Q21: ='RAB projected '!Q23 -> 1.188685754 | R21: ='RAB projected '!R23 -> 1.218402898 | S21: ='RAB projected '!S23 -> 1.24886297 | T21: ='RAB projected '!T23 -> 1.280084544
B23: ='Pricing & financial inputs'!B84 -> Retained earnings | C23: ='Pricing & financial inputs'!C84 -> $'000 | F23: ='Pricing & financial inputs'!F84 -> na | G23: ='Pricing & financial inputs'!G84 -> na | H23: ='Pricing & financial inputs'!H84 -> 4000
B24: ='Pricing & financial inputs'!B85 -> Closing cash assets | C24: ='Pricing & financial inputs'!C85 -> $'000 | I24: ='Pricing & financial inputs'!I85 -> 10000 | J24: ='Pricing & financial inputs'!J85 -> 10000
B25: ='Pricing & financial inputs'!B87 -> Closing debt | C25: ='Pricing & financial inputs'!C87 -> $'000 | I25: ='Pricing & financial inputs'!I87 -> 450000
B28: TABLE 2 - REGULATORY INCOME STATEMENT ($'000)
B29: =B15 -> Financial year | I29: =I15 -> 2017-18 | J29: 2018-19 | K29: 2019-20 | L29: 2020-21 | M29: 2021-22 | N29: 2022-23 | O29: 2023-24 | P29: 2024-25 | Q29: 2025-26 | R29: 2026-27 | S29: 2027-28 | T29: 2028-29
J30: nominal | K30: =Scenario!$X$35 -> nominal $'000
B32: Revenue from sales | C32: =$C$23 -> $'000 | J32: =Scenario!J136*J$21 -> 121750 | K32: =Scenario!K136*K$21 -> 125353.9539 | L32: =Scenario!L136*L$21 -> 129054.1075 | M32: =Scenario!M136*M$21 -> 133909.2363 | N32: =Scenario!N136*N$21 -> 138957.2371 | O32: =Scenario!O136*O$21 -> 145270.4728 | P32: =Scenario!P136*P$21 -> 151816.459 | Q32: =Scenario!Q136*Q$21 -> 158602.9832 | R32: =Scenario!R136*R$21 -> 165639.1468 | S32: =Scenario!S136*S$21 -> 172932.2225 | T32: =Scenario!T136*T$21 -> 180739.9993
B33: Profit/loss on the asset sales | C33: =$C$23 -> $'000 | J33: ='RAB & cost inputs'!J110*J20 -> 0 | K33: ='RAB & cost inputs'!K110*K20 -> 307.5 | L33: ='RAB & cost inputs'!L110*L20 -> 52.53125 | M33: ='RAB & cost inputs'!M110*M20 -> 0 | N33: ='RAB & cost inputs'!N110*N20 -> 0 | O33: ='RAB & cost inputs'!O110*O20 -> 0 | P33: ='RAB & cost inputs'!P110*P20 -> 0 | Q33: ='RAB & cost inputs'!Q110*Q20 -> 0 | R33: ='RAB & cost inputs'!R110*R20 -> 0 | S33: ='RAB & cost inputs'!S110*S20 -> 0 | T33: ='RAB & cost inputs'!T110*T20 -> 0 | V33: Total profit or loss, not just share of other revenue used to offset costs
B34: Other regulatory revenue | C34: =$C$23 -> $'000 | J34: ='RAB & cost inputs'!J116*J20 -> 2000 | K34: ='RAB & cost inputs'!K116*K20 -> 2050 | L34: ='RAB & cost inputs'!L116*L20 -> 2101.25 | M34: ='RAB & cost inputs'!M116*M20 -> 2153.78125 | N34: ='RAB & cost inputs'!N116*N20 -> 2207.625781 | O34: ='RAB & cost inputs'!O116*O20 -> 2262.816426 | P34: ='RAB & cost inputs'!P116*P20 -> 2319.386836 | Q34: ='RAB & cost inputs'!Q116*Q20 -> 2377.371507 | R34: ='RAB & cost inputs'!R116*R20 -> 2436.805795 | S34: ='RAB & cost inputs'!S116*S20 -> 2497.72594 | T34: ='RAB & cost inputs'!T116*T20 -> 2560.169088 | V34: Total other revenue, not just share of other revenue used to offset costs
B35: Total revenue | C35: =$C$23 -> $'000 | J35: =SUM(J32:J34) -> 123750 | K35: 127711.4539 | L35: 131207.8888 | M35: 136063.0175 | N35: 141164.8629 | O35: 147533.2893 | P35: 154135.8459 | Q35: 160980.3547 | R35: 168075.9526 | S35: 175429.9484 | T35: 183300.1684
B37: Operating costs | C37: =$C$23 -> $'000 | J37: ='Cost building blocks'!J15*J$21 -> 64950 | K37: ='Cost building blocks'!K15*K$21 -> 66625 | L37: ='Cost building blocks'!L15*L$21 -> 68448.21875 | M37: ='Cost building blocks'!M15*M$21 -> 70320.95781 | N37: ='Cost building blocks'!N15*N$21 -> 72244.55369 | O37: ='Cost building blocks'!O15*O$21 -> 74220.37877 | P37: ='Cost building blocks'!P15*P$21 -> 76249.84225 | Q37: ='Cost building blocks'!Q15*Q$21 -> 78334.39117 | R37: ='Cost building blocks'!R15*R$21 -> 80475.51138 | S37: ='Cost building blocks'!S15*S$21 -> 82674.72861 | T37: ='Cost building blocks'!T15*T$21 -> 84933.60951
B39: EBITDA | J39: =J35-J37 -> 58800 | K39: 61086.45385 | L39: 62759.67001 | M39: 65742.05973 | N39: 68920.30922 | O39: 73312.91051 | P39: 77886.00363 | Q39: 82645.9635 | R39: 87600.44125 | S39: 92755.21983 | T39: 98366.55885
B40: Depreciation | J40: ='RAB historical'!J122 -> 20694.25373 | K40: ='RAB projected '!K137 -> 20945.031 | L40: ='RAB projected '!L137 -> 22117.23062 | M40: ='RAB projected '!M137 -> 23481.67592 | N40: ='RAB projected '!N137 -> 25083.20124 | O40: ='RAB projected '!O137 -> 26602.5723 | P40: ='RAB projected '!P137 -> 28175.27675 | Q40: ='RAB projected '!Q137 -> 29592.0641 | R40: ='RAB projected '!R137 -> 30955.47101 | S40: ='RAB projected '!S137 -> 32378.96042 | T40: ='RAB projected '!T137 -> 33864.9445
B42: EBIT | C42: =$C$23 -> $'000 | J42: =J39-J40 -> 38105.74627 | K42: 40141.42285 | L42: 40642.4394 | M42: 42260.38381 | N42: 43837.10797 | O42: 46710.33821 | P42: 49710.72687 | Q42: 53053.8994 | R42: 56644.97024 | S42: 60376.25941 | T42: 64501.61436
B43: Interest income 1 | C43: =$C$23 -> $'000 | J43: =J62*J18 -> 390 | K43: =J62*K18 -> 317.3828125 | L43: 0 | M43: 0 | N43: 0 | O43: 0 | P43: 0 | Q43: 0 | R43: 0 | S43: 0 | T43: 0
B44: Interest expense | C44: =$C$23 -> $'000 | J44: =J67*J18 -> 19806.05816 | K44: 16903.24217 | L44: 17408.44494 | M44: 18733.40621 | N44: 19764.57814 | O44: 20889.12226 | P44: 21827.55146 | Q44: 22537.2924 | R44: 23248.14497 | S44: 23979.98754 | T44: 24733.20786
B46: Pre Tax Profit | C46: =$C$23 -> $'000 | J46: =J42+J43-J44 -> 18689.68811 | K46: 23555.5635 | L46: 23233.99446 | M46: 23526.97761 | N46: 24072.52983 | O46: 25821.21594 | P46: 27883.17542 | Q46: 30516.607 | R46: 33396.82526 | S46: 36396.27187 | T46: 39768.40649
B47: Tax expense (= tax allowance in total costs) | C47: =$C$23 -> $'000 | J47: =SUM('Cost building blocks'!J19:J20)*J21 -> 2400 | K47: =SUM('Cost building blocks'!K19:K20)*K21 -> 2313.505019 | L47: =SUM('Cost building blocks'!L19:L20)*L21 -> 2997.918708 | M47: =SUM('Cost building blocks'!M19:M20)*M21 -> 3077.034902 | N47: =SUM('Cost building blocks'!N19:N20)*N21 -> 2879.86258 | O47: =SUM('Cost building blocks'!O19:O20)*O21 -> 3798.542562 | P47: =SUM('Cost building blocks'!P19:P20)*P21 -> 3570.499708 | Q47: =SUM('Cost building blocks'!Q19:Q20)*Q21 -> 3639.72666 | R47: =SUM('Cost building blocks'!R19:R20)*R21 -> 4555.542459 | S47: =SUM('Cost building blocks'!S19:S20)*S21 -> 4563.467817 | T47: =SUM('Cost building blocks'!T19:T20)*T21 -> 4869.389043
B49: Profit after tax | C49: =$C$23 -> $'000 | J49: =J46-J47 -> 16289.68811 | K49: 21242.05848 | L49: 20236.07575 | M49: 20449.9427 | N49: 21192.66725 | O49: 22022.67338 | P49: 24312.67571 | Q49: 26876.88034 | R49: 28841.28281 | S49: 31832.80406 | T49: 34899.01745
B50: Retained earnings at the beginning of the year | C50: =$C$23 -> $'000 | J50: =I53 -> 9521.008983 | K50: 16082.58915 | L50: 18621.60138 | M50: 7186.753957 | N50: 12380.24974 | O50: 9575.554009 | P50: 7430.76954 | Q50: 0 | R50: 0 | S50: 0 | T50: 0
B51: Dividends payable | C51: =$C$23 -> $'000 | J51: =MAX(0,MIN(J49+J50,(J67-J62)-(I67-I62)+J86+J91+SUM(J93:J94))) -> 9728.107949 | K51: =MAX(0,MIN(K49+K50,(K67-K62)-(J67-J62)+K86+K91+SUM(K93:K94))) -> 18703.04625 | L51: =MAX(0,MIN(L49+L50,(L67-L62)-(K67-K62)+L86+L91+SUM(L93:L94))) -> 31670.92317 | M51: 15256.44692 | N51: 23997.36299 | O51: 24167.45785 | P51: 31743.44525 | Q51: 26876.88034 | R51: 28841.28281 | S51: 31832.80406 | T51: 34899.01745 | V51: Dividend payments cannot exceed retained earnings or fall below zero
B53: Retained Earnings at year end | C53: =$C$23 -> $'000 | I53: ='Financials actual'!J59 -> 9521.008983 | J53: =SUM(J49:J50)-J51 -> 16082.58915 | K53: 18621.60138 | L53: 7186.753957 | M53: 12380.24974 | N53: 9575.554009 | O53: 7430.76954 | P53: 0 | Q53: 0 | R53: 0 | S53: 0 | T53: 0
B58: TABLE 3 - REGULATORY BALANCE SHEET ($'000)
B59: =B29 -> Financial year | I59: =I29 -> 2017-18 | J59: 2018-19 | K59: 2019-20 | L59: 2020-21 | M59: 2021-22 | N59: 2022-23 | O59: 2023-24 | P59: 2024-25 | Q59: 2025-26 | R59: 2026-27 | S59: 2027-28 | T59: 2028-29
J60: =J30 -> nominal | K60: =K30 -> nominal $'000
B62: Cash assets | C62: =$C$23 -> $'000 | I62: =I24 -> 10000 | J62: =J24 -> 10000 | K62: =IF(J67>=J62,0,J62) -> 0 | L62: =IF(K67>=K62,0,K62) -> 0 | M62: 0 | N62: 0 | O62: 0 | P62: 0 | Q62: 0 | R62: 0 | S62: 0 | T62: 0 | V62: Use cash balance to pay down debt
B63: Receivables | C63: $'000 | I63: ='Working capital'!I44*I$21 -> 14710.31507 | J63: ='Working capital'!J44*J$21 -> 15010.27397 | K63: ='Working capital'!K44*K$21 -> 15385.53082 | L63: ='Working capital'!L44*L$21 -> 15840.96198 | M63: ='Working capital'!M44*M$21 -> 16308.54989 | N63: ='Working capital'!N44*N$21 -> 16922.09185 | O63: ='Working capital'!O44*O$21 -> 17560.00702 | P63: ='Working capital'!P44*P$21 -> 18357.80975 | Q63: ='Working capital'!Q44*Q$21 -> 19185.02513 | R63: ='Working capital'!R44*R$21 -> 20042.63726 | S63: ='Working capital'!S44*S$21 -> 20931.79629 | T63: ='Working capital'!T44*T$21 -> 21853.42127
B64: Inventory | C64: $'000 | I64: ='Working capital'!I45*I$21 -> 546.5205479 | J64: ='Working capital'!J45*J$21 -> 711.2328767 | K64: ='Working capital'!K45*K$21 -> 686.890411 | L64: ='Working capital'!L45*L$21 -> 512.4171575 | M64: ='Working capital'!M45*M$21 -> 796.3089854 | N64: ='Working capital'!N45*N$21 -> 690.5332478 | O64: ='Working capital'!O45*O$21 -> 741.459848 | P64: ='Working capital'!P45*P$21 -> 691.0501876 | Q64: ='Working capital'!Q45*Q$21 -> 637.6566317 | R64: ='Working capital'!R45*R$21 -> 657.9375647 | S64: ='Working capital'!S45*S$21 -> 678.8340089 | T64: ='Working capital'!T45*T$21 -> 700.3640643
B65: RAB | C65: $'000 | I65: ='RAB historical'!I124 -> 761696.7708 | J65: ='RAB historical'!J124 -> 824693.0613 | K65: ='RAB projected '!K139 -> 881867.8569 | L65: ='RAB projected '!L139 -> 905499.4227 | M65: ='RAB projected '!M139 -> 978583.7737 | N65: ='RAB projected '!N139 -> 1030639.118 | O65: ='RAB projected '!O139 -> 1089767.159 | P65: ='RAB projected '!P139 -> 1137543.185 | Q65: ='RAB projected '!Q139 -> 1173238.959 | R65: ='RAB projected '!R139 -> 1209994.153 | S65: ='RAB projected '!S139 -> 1247828.661 | T65: ='RAB projected '!T139 -> 1286762.181
B66: Payables | C66: $'000 | I66: ='Working capital'!I46*I$21 -> 8197.808219 | J66: ='Working capital'!J46*J$21 -> 10668.49315 | K66: ='Working capital'!K46*K$21 -> 10303.35616 | L66: ='Working capital'!L46*L$21 -> 7686.257363 | M66: ='Working capital'!M46*M$21 -> 11944.63478 | N66: ='Working capital'!N46*N$21 -> 10357.99872 | O66: ='Working capital'!O46*O$21 -> 11121.89772 | P66: ='Working capital'!P46*P$21 -> 10365.75281 | Q66: ='Working capital'!Q46*Q$21 -> 9564.849475 | R66: ='Working capital'!R46*R$21 -> 9869.06347 | S66: ='Working capital'!S46*S$21 -> 10182.51013 | T66: ='Working capital'!T46*T$21 -> 10505.46096
B67: Debt | C67: $'000 | I67: =(I63+I64+I65-I66)*I19+I62 -> 471253.4789 | J67: 507847.645 | K67: 532582.1532 | L67: 548499.9267 | M67: 590246.3987 | N67: 622736.2466 | O67: 658168.0368 | P67: 687735.7751 | Q67: 710098.0745 | R67: 732495.3985 | S67: 755554.0688 | T67: 779286.3032 | V67: (RAB + net working capital) x gearing ratio
B68: Net assets employed | C68: $'000 | I68: =SUM(I62:I65)-SUM(I66:I67) -> 307502.3193 | J68: 331898.43 | K68: 355054.7688 | L68: 365666.6178 | M68: 393497.5991 | N68: 415157.4977 | O68: 438778.6912 | P68: 458490.5167 | Q68: 473398.7163 | R68: 488330.2657 | S68: 503702.7126 | T68: 519524.2021
B70: Owner contributions | C70: =$C$23 -> $'000 | I70: =(I63+I64+I65-I66)*(1-I19)-SUM(I71:I72) -> 243397.121 | J70: 242503.4912 | K70: 242503.4912 | L70: 242503.4912 | M70: 242503.4912 | N70: 242503.4912 | O70: 242503.4912 | P70: 242401.9073 | Q70: 228871.5273 | R70: 214472.1026 | S70: 199594.6957 | T70: 184220.4687 | V70: Owner contributions = (1- gearing ratio) x (RAB + net working capital- retained earnings - asset reval reserve)
B71: Retained earnings | C71: =$C$23 -> $'000 | I71: =MAX(0,I53) -> 9521.008983 | J71: =MAX(0,J53) -> 16082.58915 | K71: 18621.60138 | L71: 7186.753957 | M71: 12380.24974 | N71: 9575.554009 | O71: 7430.76954 | P71: 0 | Q71: 0 | R71: 0 | S71: 0 | T71: 0
B72: Asset revaluation reserve | C72: =$C$23 -> $'000 | I72: ='Pricing & financial inputs'!I91 -> 54584.18933 | J72: ='Pricing & financial inputs'!J91 -> 73312.34966 | K72: =J72+'RAB projected '!K138 -> 93929.67619 | L72: =K72+'RAB projected '!L138 -> 115976.3726 | M72: =L72+'RAB projected '!M138 -> 138613.8582 | N72: =M72+'RAB projected '!N138 -> 163078.4525 | O72: =N72+'RAB projected '!O138 -> 188844.4305 | P72: =O72+'RAB projected '!P138 -> 216088.6094 | Q72: =P72+'RAB projected '!Q138 -> 244527.1891 | R72: =Q72+'RAB projected '!R138 -> 273858.163 | S72: =R72+'RAB projected '!S138 -> 304108.0168 | T72: =S72+'RAB projected '!T138 -> 335303.7334
B73: Total equity | C73: =$C$23 -> $'000 | I73: =SUM(I70:I72) -> 307502.3193 | J73: =SUM(J70:J72) -> 331898.43 | K73: 355054.7688 | L73: 365666.6178 | M73: 393497.5991 | N73: 415157.4977 | O73: 438778.6912 | P73: 458490.5167 | Q73: 473398.7163 | R73: 488330.2657 | S73: 503702.7126 | T73: 519524.2021
B74: check net assets = total equity | I74: =I68-SUM(I73) -> 0 | J74: 0 | K74: 0 | L74: 0 | M74: 0 | N74: 0 | O74: 0 | P74: 0 | Q74: 0 | R74: 0 | S74: 0 | T74: 0
N75: =N74-M74 -> 0
B78: TABLE 4 - REGULATORY CASH FLOW ($'000)
B79: =B29 -> Financial year | J79: =J29 -> 2018-19 | K79: 2019-20 | L79: 2020-21 | M79: 2021-22 | N79: 2022-23 | O79: 2023-24 | P79: 2024-25 | Q79: 2025-26 | R79: 2026-27 | S79: 2027-28 | T79: 2028-29
J80: =J30 -> nominal | K80: =K30 -> nominal $'000
B82: Receipts from customers | C82: =$C$23 -> $'000 | J82: =J35-J33 -> 123750 | K82: 127403.9539 | L82: 131155.3575 | M82: 136063.0175 | N82: 141164.8629 | O82: 147533.2893 | P82: 154135.8459 | Q82: 160980.3547 | R82: 168075.9526 | S82: 175429.9484 | T82: 183300.1684 | V82: Revenue excluding profit/loss on asset sales
B83: Operating costs | C83: =$C$23 -> $'000 | J83: =-J37 -> -64950 | K83: -66625 | L83: -68448.21875 | M83: -70320.95781 | N83: -72244.55369 | O83: -74220.37877 | P83: -76249.84225 | Q83: -78334.39117 | R83: -80475.51138 | S83: -82674.72861 | T83: -84933.60951
B84: Tax paid | C84: =$C$23 -> $'000 | J84: =-J47 -> -2400 | K84: =-K47 -> -2313.505019 | L84: =-L47 -> -2997.918708 | M84: -3077.034902 | N84: -2879.86258 | O84: -3798.542562 | P84: -3570.499708 | Q84: -3639.72666 | R84: -4555.542459 | S84: -4563.467817 | T84: -4869.389043 | V84: Assume tax paid = tax payable
B85: Change in working capital | C85: =$C$23 -> $'000 | J85: 0 | K85: =(J63+J64-J66)-(K63+K64-K66) -> -716.0513699 | L85: -2898.056703 | M85: 3506.89768 | N85: -2094.402286 | O85: 75.05722902 | P85: -1503.537979 | Q85: -1574.725161 | R85: -573.6790615 | S85: -596.6088206 | T85: -620.2041965
B86: Cash Flow From Operations | C86: =$C$23 -> $'000 | J86: =SUM(J82:J85) -> 56400 | K86: 57749.39747 | L86: 56811.16335 | M86: 66171.92251 | N86: 63946.04435 | O86: 69589.42518 | P86: 72811.96594 | Q86: 77431.51168 | R86: 82471.21972 | S86: 87595.14319 | T86: 92876.96561
B88: Sale of assets | C88: =$C$23 -> $'000 | J88: =SUM('RAB & cost inputs'!J107:J108)*J$20 -> 1000 | K88: =SUM('RAB & cost inputs'!K107:K108)*K$20 -> 1537.5 | L88: =SUM('RAB & cost inputs'!L107:L108)*L$20 -> 1418.34375 | M88: =SUM('RAB & cost inputs'!M107:M108)*M$20 -> 1076.890625 | N88: =SUM('RAB & cost inputs'!N107:N108)*N$20 -> 1103.812891 | O88: =SUM('RAB & cost inputs'!O107:O108)*O$20 -> 1131.408213 | P88: =SUM('RAB & cost inputs'!P107:P108)*P$20 -> 1159.693418 | Q88: =SUM('RAB & cost inputs'!Q107:Q108)*Q$20 -> 1188.685754 | R88: =SUM('RAB & cost inputs'!R107:R108)*R$20 -> 1218.402898 | S88: =SUM('RAB & cost inputs'!S107:S108)*S$20 -> 1248.86297 | T88: =SUM('RAB & cost inputs'!T107:T108)*T$20 -> 1280.084544
B89: Purchase of assets | C89: =$C$23 -> $'000 | J89: =-SUM(Scenario!J65:J66)*J$20 -> -65200 | K89: =-SUM(Scenario!K65:K66)*K$20 -> -59450 | L89: =-SUM(Scenario!L65:L66)*L$20 -> -25215 | M89: =-SUM(Scenario!M65:M66)*M$20 -> -75382.34375 | N89: =-SUM(Scenario!N65:N66)*N$20 -> -54086.83164 | O89: =-SUM(Scenario!O65:O66)*O$20 -> -61096.0435 | P89: =-SUM(Scenario!P65:P66)*P$20 -> -49866.81698 | Q89: =-SUM(Scenario!Q65:Q66)*Q$20 -> -38037.94412 | R89: =-SUM(Scenario!R65:R66)*R$20 -> -39598.09417 | S89: =-SUM(Scenario!S65:S66)*S$20 -> -41212.47801 | T89: =-SUM(Scenario!T65:T66)*T$20 -> -42882.83223
B90: Cash capital contributions | C90: =$C$23 -> $'000 | J90: =SUM(Scenario!$J69:J$70)*'RAB historical'!J$40 -> 350 | K90: =SUM(Scenario!K$69:K$70)*'RAB projected '!K$35*K20 -> 717.5 | L90: =SUM(Scenario!L$69:L$70)*'RAB projected '!L$35*L20 -> 147.0875 | M90: =SUM(Scenario!M$69:M$70)*'RAB projected '!M$35*M20 -> 376.9117187 | N90: =SUM(Scenario!N$69:N$70)*'RAB projected '!N$35*N20 -> 309.0676094 | O90: =SUM(Scenario!O$69:O$70)*'RAB projected '!O$35*O20 -> 0 | P90: =SUM(Scenario!P$69:P$70)*'RAB projected '!P$35*P20 -> 0 | Q90: =SUM(Scenario!Q$69:Q$70)*'RAB projected '!Q$35*Q20 -> 0 | R90: =SUM(Scenario!R$69:R$70)*'RAB projected '!R$35*R20 -> 0 | S90: =SUM(Scenario!S$69:S$70)*'RAB projected '!S$35*S20 -> 0 | T90: =SUM(Scenario!T$69:T$70)*'RAB projected '!T$35*T20 -> 0 | V90: Value of cash capital contributions included in the RAB
B91: Cash Flow From Investing | C91: =$C$23 -> $'000 | J91: =SUM(J88:J90) -> -63850 | K91: -57195 | L91: -23649.56875 | M91: -73928.54141 | N91: -52673.95114 | O91: -59964.63528 | P91: -48707.12356 | Q91: -36849.25836 | R91: -38379.69127 | S91: -39963.61504 | T91: -41602.74769
B93: Interest received | C93: =$C$23 -> $'000 | J93: =J43 -> 390 | K93: 317.3828125 | L93: 0 | M93: 0 | N93: 0 | O93: 0 | P93: 0 | Q93: 0 | R93: 0 | S93: 0 | T93: 0
B94: Interest paid | C94: $'000 | J94: =-J44 -> -19806.05816 | K94: =-K44 -> -16903.24217 | L94: -17408.44494 | M94: -18733.40621 | N94: -19764.57814 | O94: -20889.12226 | P94: -21827.55146 | Q94: -22537.2924 | R94: -23248.14497 | S94: -23979.98754 | T94: -24733.20786
B95: Dividends paid | C95: $'000 | J95: =-J51 -> -9728.107949 | K95: -18703.04625 | L95: -31670.92317 | M95: -15256.44692 | N95: -23997.36299 | O95: -24167.45785 | P95: -31743.44525 | Q95: -26876.88034 | R95: -28841.28281 | S95: -31832.80406 | T95: -34899.01745 | V95: Assume dividends paid = dividends payable
B96: Change in owner contributions | C96: $'000 | K96: =K70-J70 -> 0 | L96: =L70-K70 -> 0 | M96: 0 | N96: 0 | O96: 0 | P96: -101.5839272 | Q96: -13530.38 | R96: -14399.42465 | S96: -14877.40691 | T96: -15374.22696
B97: Cash Flow from Financing | C97: $'000 | J97: =SUM(J93:J95) -> -29144.1661 | K97: =SUM(K93:K96) -> -35288.90561 | L97: =SUM(L93:L96) -> -49079.36811 | M97: =SUM(M93:M96) -> -33989.85313 | N97: -43761.94113 | O97: -45056.58011 | P97: -53672.58063 | Q97: -62944.55274 | R97: -66488.85243 | S97: -70690.19851 | T97: -75006.45228
B98: NET CASH FLOW | C98: $'000 | J98: =J86+J91+J97 -> -36594.1661 | K98: -34734.50814 | L98: -15917.7735 | M98: -41746.47203 | N98: -32489.84792 | O98: -35431.79022 | P98: -29567.73826 | Q98: -22362.29943 | R98: -22397.32397 | S98: -23058.67036 | T98: -23732.23435
B99: check = net cash flow = 0 | J99: =(I67-I62)-(J67-J62)-J98 -> 0 | K99: =(J67-J62)-(K67-K62)-K98 -> 0 | L99: =(K67-K62)-(L67-L62)-L98 -> 0 | M99: 0 | N99: 0 | O99: 0 | P99: -9.458744898e-11 | Q99: 5.09317033e-11 | R99: 6.548361853e-11 | S99: -2.910383046e-11 | T99: 0
B103: TABLE 5 - FINANCEABILITY RATIOS
B104: =B29 -> Financial year | D104: Target ratios | J104: =J29 -> 2018-19 | K104: 2019-20 | L104: 2020-21 | M104: 2021-22 | N104: 2022-23 | O104: 2023-24 | P104: 2024-25 | Q104: 2025-26 | R104: 2026-27 | S104: 2027-28 | T104: 2028-29
J105: =J30 -> nominal | K105: =K30 -> nominal $'000
B106: 1. Adjusted FFO Interest Cover | D106: Higher is better | V106: = (FFO + net interest payments) / net interest payments
B107: - ratio (times) | C107: > | D107: 1.8 | J107: =(J122-J93-J94)/(-J93-J94) -> 2.904812066 | K107: 3.525017763 | L107: 3.429899699 | M107: 3.345095074 | N107: 3.341353717 | O107: 3.327778308 | P107: 3.404665158 | Q107: 3.505578018 | R107: 3.572108609 | S107: 3.677723013 | T107: 3.780228198
B109: 2. Adjusted FFO / Net Debt | D109: Higher is better
B110: - ratio (%) | C110: > | D110: 0.06 | J110: =J122/(J67-J62) -> 0.07428767057 | K110: 0.07863498473 | L110: 0.07712084006 | M110: 0.07442928702 | N110: 0.07431054279 | O110: 0.07387968264 | P110: 0.07631993909 | Q110: 0.07952273983 | R110: 0.08163430643 | S110: 0.08498632609 | T110: 0.0882396645 | V110: = FFO / Net Debt
B112: 2. Net Debt / RAB | D112: Lower is better
B113: - ratio (%) | C113: < | D113: 0.7 | J113: =(J67-J62)/(J65+J63+J64-J66) -> 0.6 | K113: =(K67-K62)/(K65+K63+K64-K66) -> 0.6 | L113: =(L67-L62)/(L65+L63+L64-L66) -> 0.6 | M113: 0.6 | N113: 0.6 | O113: 0.6 | P113: 0.6 | Q113: 0.6 | R113: 0.6 | S113: 0.6 | T113: 0.6 | V113: = Net Debt / (RAB + net working capital)
B119: TABLE 6 - CALCULATIONS FOR FINANCEABILITY RATIOS
B120: =B$15 -> Financial year | J120: =J$15 -> 2018-19 | K120: 2019-20 | L120: 2020-21 | M120: 2021-22 | N120: 2022-23 | O120: 2023-24 | P120: 2024-25 | Q120: 2025-26 | R120: 2026-27 | S120: 2027-28 | T120: 2028-29
B122: Funds From Operations (FFO) | C122: =$C$23 -> $'000 | J122: =J86-J85+J93+J94 -> 36983.94184 | K122: =K86-K85+K93+K94 -> 41879.58948 | L122: =L86-L85+L93+L94 -> 42300.77512 | M122: 43931.61862 | N122: 46275.8685 | O122: 48625.24568 | P122: 52487.95247 | Q122: 56468.94443 | R122: 59796.75382 | S122: 64211.76447 | T122: 68763.96194 | V122: Cash flow from operations (CFO) minus change in working capital minus interest paid plus interest received.

Sheet Financials actual
B1: =Cover!B1 -> THE INDEPENDENT PRICING AND REGULATORY TRIBUNAL OF NSW | K1: =Cover!$B$3 -> IPART TEMPLATE FOR COST BUILDING BLOCKS, SIMPLE TARIFF SETTING AND FINANCIAL RATIO ANALYSIS
B3: 5b FINANCIAL STATEMENTS AND FINANCIAL RATIOS - ACTUAL
B5: Index | L5: row number
B6: =B34 -> TABLE 2 - REGULATORY INCOME STATEMENT ($'000) | L6: =ROW(B34) -> 34
B7: =B64 -> TABLE 3 - REGULATORY BALANCE SHEET ($'000) | L7: =ROW(B64) -> 64
B8: =B85 -> TABLE 4 - REGULATORY CASH FLOW ($'000) | L8: =ROW(B85) -> 85
B9: =B108 -> TABLE 5 - FINANCEABILITY RATIOS | L9: =ROW(B108) -> 108
B10: =B134 -> TABLE 6 - CALCULATION OF TAX PAYABLE | L10: =ROW(B134) -> 134
B11: =B155 -> TABLE 7 - CALCULATIONS FOR FINANCEABILITY RATIOS | L11: =ROW(B155) -> 155
I13: added column
B15: TABLE 1 - ASSUMPTIONS
B16: ='Pricing & financial inputs'!B64 -> Financial year | C16: ='Pricing & financial inputs'!C64 -> Units | D16: Selection options | H16: ='Pricing & financial inputs'!H64 -> 2016-17 | I16: ='Pricing & financial inputs'!I64 -> 2017-18 | J16: ='Pricing & financial inputs'!J64 -> 2018-19 | K16: ='Pricing & financial inputs'!K64 -> 2019-20 | L16: ='Pricing & financial inputs'!L64 -> 2020-21 | M16: ='Pricing & financial inputs'!M64 -> 2021-22 | N16: ='Pricing & financial inputs'!N64 -> 2022-23 | O16: ='Pricing & financial inputs'!O64 -> 2023-24 | P16: ='Pricing & financial inputs'!P64 -> 2024-25 | Q16: ='Pricing & financial inputs'!Q64 -> 2025-26 | R16: ='Pricing & financial inputs'!R64 -> 2026-27 | S16: ='Pricing & financial inputs'!S64 -> 2027-28 | T16: ='Pricing & financial inputs'!T64 -> 2028-29
D17: & messages
B18: ='Pricing & financial inputs'!$B$67 -> Corporate tax rate | C18: % | I18: ='Pricing & financial inputs'!I68 -> 0.3 | J18: ='Pricing & financial inputs'!J68 -> 0.3 | K18: ='Pricing & financial inputs'!K68 -> 0.3 | L18: ='Pricing & financial inputs'!L68 -> 0.3 | M18: ='Pricing & financial inputs'!M68 -> 0.3 | N18: ='Pricing & financial inputs'!N68 -> 0.3 | O18: ='Pricing & financial inputs'!O68 -> 0.3 | P18: ='Pricing & financial inputs'!P68 -> 0.3 | Q18: ='Pricing & financial inputs'!Q68 -> 0.3 | R18: ='Pricing & financial inputs'!R68 -> 0.3 | S18: ='Pricing & financial inputs'!S68 -> 0.3 | T18: ='Pricing & financial inputs'!T68 -> 0.3
B19: =CHOOSE($D$19,Scenario!W79,Scenario!W80) -> Dividend payout rate | C19: =CHOOSE($D$19,'Pricing & financial inputs'!C70,'Pricing & financial inputs'!C72) -> % | D19: =Scenario!$W$81 -> 2 | I19: =CHOOSE($D$19,'Pricing & financial inputs'!I70,'Pricing & financial inputs'!I72) -> 0.5 | J19: =CHOOSE($D$19,'Pricing & financial inputs'!J70,'Pricing & financial inputs'!J72) -> 0.5 | K19: =CHOOSE($D$19,'Pricing & financial inputs'!K70,'Pricing & financial inputs'!K72) -> 0.5 | L19: =CHOOSE($D$19,'Pricing & financial inputs'!L70,'Pricing & financial inputs'!L72) -> 0.5 | M19: =CHOOSE($D$19,'Pricing & financial inputs'!M70,'Pricing & financial inputs'!M72) -> 0.5 | N19: =CHOOSE($D$19,'Pricing & financial inputs'!N70,'Pricing & financial inputs'!N72) -> 0.5 | O19: =CHOOSE($D$19,'Pricing & financial inputs'!O70,'Pricing & financial inputs'!O72) -> 0.5 | P19: =CHOOSE($D$19,'Pricing & financial inputs'!P70,'Pricing & financial inputs'!P72) -> 0.5 | Q19: =CHOOSE($D$19,'Pricing & financial inputs'!Q70,'Pricing & financial inputs'!Q72) -> 0.5 | R19: =CHOOSE($D$19,'Pricing & financial inputs'!R70,'Pricing & financial inputs'!R72) -> 0.5 | S19: =CHOOSE($D$19,'Pricing & financial inputs'!S70,'Pricing & financial inputs'!S72) -> 0.5 | T19: =CHOOSE($D$19,'Pricing & financial inputs'!T70,'Pricing & financial inputs'!T72) -> 0.5
B20: ='Pricing & financial inputs'!B79 -> Expected actual average cost of debt | C20: =C18 -> % | I20: ='Pricing & financial inputs'!I79 -> 0.063 | J20: ='Pricing & financial inputs'!J79 -> 0.05651829268 | K20: ='Pricing & financial inputs'!K79 -> 0.0595 | L20: ='Pricing & financial inputs'!L79 -> 0.0595 | M20: ='Pricing & financial inputs'!M79 -> 0.0595 | N20: ='Pricing & financial inputs'!N79 -> 0.0595 | O20: ='Pricing & financial inputs'!O79 -> 0.0595 | P20: ='Pricing & financial inputs'!P79 -> 0.0595 | Q20: ='Pricing & financial inputs'!Q79 -> 0.0595 | R20: ='Pricing & financial inputs'!R79 -> 0.0595 | S20: ='Pricing & financial inputs'!S79 -> 0.0595 | T20: ='Pricing & financial inputs'!T79 -> 0.0595
B21: Share of debt paid at nominal cost of debt | C21: =C20 -> % | I21: ='Pricing & financial inputs'!I75 -> 1 | J21: ='Pricing & financial inputs'!J75 -> 0.75 | K21: ='Pricing & financial inputs'!K75 -> 0.75 | L21: ='Pricing & financial inputs'!L75 -> 0.75 | M21: ='Pricing & financial inputs'!M75 -> 0.75 | N21: ='Pricing & financial inputs'!N75 -> 0.75 | O21: ='Pricing & financial inputs'!O75 -> 0.75 | P21: ='Pricing & financial inputs'!P75 -> 0.75 | Q21: ='Pricing & financial inputs'!Q75 -> 0.75 | R21: ='Pricing & financial inputs'!R75 -> 0.75 | S21: ='Pricing & financial inputs'!S75 -> 0.75 | T21: ='Pricing & financial inputs'!T75 -> 0.75
B22: Inflator for (real) inputs to nominal values | C22: no. | I22: 1 | J22: 1 | K22: =J22*(1+'Pricing & financial inputs'!K18) -> 1.025 | L22: =K22*(1+'Pricing & financial inputs'!L18) -> 1.050625 | M22: =L22*(1+'Pricing & financial inputs'!M18) -> 1.076890625 | N22: =M22*(1+'Pricing & financial inputs'!N18) -> 1.103812891 | O22: =N22*(1+'Pricing & financial inputs'!O18) -> 1.131408213 | P22: =O22*(1+'Pricing & financial inputs'!P18) -> 1.159693418 | Q22: =P22*(1+'Pricing & financial inputs'!Q18) -> 1.188685754 | R22: =Q22*(1+'Pricing & financial inputs'!R18) -> 1.218402898 | S22: =R22*(1+'Pricing & financial inputs'!S18) -> 1.24886297 | T22: =S22*(1+'Pricing & financial inputs'!T18) -> 1.280084544
B23: Inflator to nominal values for calculated values | C23: no. | D23: =IF(Scenario!W37=1,"Forecasts are nominal, therefore inflator = 1","ok") -> ok | I23: 1 | J23: 1 | K23: ='RAB projected '!K23 -> 1.025 | L23: ='RAB projected '!L23 -> 1.050625 | M23: ='RAB projected '!M23 -> 1.076890625 | N23: ='RAB projected '!N23 -> 1.103812891 | O23: ='RAB projected '!O23 -> 1.131408213 | P23: ='RAB projected '!P23 -> 1.159693418 | Q23: ='RAB projected '!Q23 -> 1.188685754 | R23: ='RAB projected '!R23 -> 1.218402898 | S23: ='RAB projected '!S23 -> 1.24886297 | T23: ='RAB projected '!T23 -> 1.280084544
B25: Tax treatment of cash capital contributions
B26: =Scenario!J53&" up to "&$J$16 -> Use gross amount & include tax in tax allowance up to 2018-19 | D26: =Scenario!W54 -> 2
B27: =Scenario!J54&" from "&$K$16 -> Use net of tax & do not included tax in tax allowance from 2019-20 | D27: =Scenario!W55 -> 1
B29: ='Pricing & financial inputs'!B84 -> Retained earnings | C29: ='Pricing & financial inputs'!C84 -> $'000 | H29: ='Pricing & financial inputs'!H84 -> 4000 | I29: ='Pricing & financial inputs'!I84 -> na | J29: ='Pricing & financial inputs'!J84 -> na
B30: ='Pricing & financial inputs'!B85 -> Closing cash assets | C30: ='Pricing & financial inputs'!C85 -> $'000 | H30: ='Pricing & financial inputs'!H85 -> na | I30: ='Pricing & financial inputs'!I85 -> 10000 | J30: ='Pricing & financial inputs'!J85 -> 10000
B31: ='Pricing & financial inputs'!B87 -> Closing debt | C31: ='Pricing & financial inputs'!C87 -> $'000 | H31: ='Pricing & financial inputs'!H87 -> na | I31: ='Pricing & financial inputs'!I87 -> 450000 | J31: ='Pricing & financial inputs'!J87 -> 500000
B34: TABLE 2 - REGULATORY INCOME STATEMENT ($'000)
B35: =B16 -> Financial year | H35: =H16 -> 2016-17 | I35: 2017-18 | J35: 2018-19 | K35: 2019-20 | L35: 2020-21 | M35: 2021-22 | N35: 2022-23 | O35: 2023-24 | P35: 2024-25 | Q35: 2025-26 | R35: 2026-27 | S35: 2027-28 | T35: 2028-29
J36: =K36 -> nominal $'000 | K36: =Scenario!$X$35 -> nominal $'000
B38: Revenue from sales | C38: =$C$29 -> $'000 | I38: =Scenario!I136*I$23 -> 119317 | J38: =Scenario!J136*J$23 -> 121750 | K38: =Scenario!K136*K$23 -> 125353.9539 | L38: =Scenario!L136*L$23 -> 129054.1075 | M38: =Scenario!M136*M$23 -> 133909.2363 | N38: =Scenario!N136*N$23 -> 138957.2371 | O38: =Scenario!O136*O$23 -> 145270.4728 | P38: =Scenario!P136*P$23 -> 151816.459 | Q38: =Scenario!Q136*Q$23 -> 158602.9832 | R38: =Scenario!R136*R$23 -> 165639.1468 | S38: =Scenario!S136*S$23 -> 172932.2225 | T38: =Scenario!T136*T$23 -> 180739.9993
B39: Profit/loss on the asset sales | C39: =$C$29 -> $'000 | I39: ='RAB & cost inputs'!I110*I22 -> 200 | J39: ='RAB & cost inputs'!J110*J22 -> 0 | K39: ='RAB & cost inputs'!K110*K22 -> 307.5 | L39: ='RAB & cost inputs'!L110*L22 -> 52.53125 | M39: ='RAB & cost inputs'!M110*M22 -> 0 | N39: ='RAB & cost inputs'!N110*N22 -> 0 | O39: ='RAB & cost inputs'!O110*O22 -> 0 | P39: ='RAB & cost inputs'!P110*P22 -> 0 | Q39: ='RAB & cost inputs'!Q110*Q22 -> 0 | R39: ='RAB & cost inputs'!R110*R22 -> 0 | S39: ='RAB & cost inputs'!S110*S22 -> 0 | T39: ='RAB & cost inputs'!T110*T22 -> 0 | V39: Total profit or loss, not just share of other revenue used to offset costs
B40: Other regulatory revenue | C40: =$C$29 -> $'000 | I40: ='RAB & cost inputs'!I116*I22 -> 2000 | J40: ='RAB & cost inputs'!J116*J22 -> 2000 | K40: ='RAB & cost inputs'!K116*K22 -> 2050 | L40: ='RAB & cost inputs'!L116*L22 -> 2101.25 | M40: ='RAB & cost inputs'!M116*M22 -> 2153.78125 | N40: ='RAB & cost inputs'!N116*N22 -> 2207.625781 | O40: ='RAB & cost inputs'!O116*O22 -> 2262.816426 | P40: ='RAB & cost inputs'!P116*P22 -> 2319.386836 | Q40: ='RAB & cost inputs'!Q116*Q22 -> 2377.371507 | R40: ='RAB & cost inputs'!R116*R22 -> 2436.805795 | S40: ='RAB & cost inputs'!S116*S22 -> 2497.72594 | T40: ='RAB & cost inputs'!T116*T22 -> 2560.169088 | V40: Total other revenue, not just share of other revenue used to offset costs
B41: Total revenue | C41: =$C$29 -> $'000 | I41: =SUM(I38:I40) -> 121517 | J41: =SUM(J38:J40) -> 123750 | K41: 127711.4539 | L41: 131207.8888 | M41: 136063.0175 | N41: 141164.8629 | O41: 147533.2893 | P41: 154135.8459 | Q41: 160980.3547 | R41: 168075.9526 | S41: 175429.9484 | T41: 183300.1684
B43: Operating costs | C43: =$C$29 -> $'000 | I43: ='Cost building blocks'!I15*I$23 -> 64940 | J43: ='Cost building blocks'!J15*J$23 -> 64950 | K43: ='Cost building blocks'!K15*K$23 -> 66625 | L43: ='Cost building blocks'!L15*L$23 -> 68448.21875 | M43: ='Cost building blocks'!M15*M$23 -> 70320.95781 | N43: ='Cost building blocks'!N15*N$23 -> 72244.55369 | O43: ='Cost building blocks'!O15*O$23 -> 74220.37877 | P43: ='Cost building blocks'!P15*P$23 -> 76249.84225 | Q43: ='Cost building blocks'!Q15*Q$23 -> 78334.39117 | R43: ='Cost building blocks'!R15*R$23 -> 80475.51138 | S43: ='Cost building blocks'!S15*S$23 -> 82674.72861 | T43: ='Cost building blocks'!T15*T$23 -> 84933.60951
B45: EBITDA | C45: =C43 -> $'000 | I45: =I41-I43 -> 56577 | J45: 58800 | K45: 61086.45385 | L45: 62759.67001 | M45: 65742.05973 | N45: 68920.30922 | O45: 73312.91051 | P45: 77886.00363 | Q45: 82645.9635 | R45: 87600.44125 | S45: 92755.21983 | T45: 98366.55885
B46: Depreciation | C46: =C45 -> $'000 | I46: ='RAB historical'!I122 -> 19537.11719 | J46: ='RAB historical'!J122 -> 20694.25373 | K46: ='RAB projected '!K137 -> 20945.031 | L46: ='RAB projected '!L137 -> 22117.23062 | M46: ='RAB projected '!M137 -> 23481.67592 | N46: ='RAB projected '!N137 -> 25083.20124 | O46: ='RAB projected '!O137 -> 26602.5723 | P46: ='RAB projected '!P137 -> 28175.27675 | Q46: ='RAB projected '!Q137 -> 29592.0641 | R46: ='RAB projected '!R137 -> 30955.47101 | S46: ='RAB projected '!S137 -> 32378.96042 | T46: ='RAB projected '!T137 -> 33864.9445
B48: EBIT | C48: =$C$29 -> $'000 | I48: =I45-I46 -> 37039.88281 | J48: 38105.74627 | K48: 40141.42285 | L48: 40642.4394 | M48: 42260.38381 | N48: 43837.10797 | O48: 46710.33821 | P48: 49710.72687 | Q48: 53053.8994 | R48: 56644.97024 | S48: 60376.25941 | T48: 64501.61436
B49: Interest income 1 | C49: =$C$29 -> $'000 | I49: =I68*I20 -> 630 | J49: =J68*J20 -> 565.1829268 | K49: =J68*K20 -> 595 | L49: -2.597516868e-12 | M49: 1.190528565e-12 | N49: 2.705746738e-12 | O49: -3.138666216e-12 | P49: -1.190528565e-12 | Q49: -1.082298695e-12 | R49: 0 | S49: 2.056367521e-12 | T49: 5.736183084e-12
B50: Interest expense 1,2 | C50: =$C$29 -> $'000 | I50: =I74*I20+I175 -> 28350 | J50: =J74*J20+J175 -> 31209.35777 | K50: =J74*K20+K175 -> 32815.71592 | L50: 34644.17294 | M50: 34943.05698 | N50: 38022.03216 | O50: 39970.51238 | P50: 42199.49162 | Q50: 43648.21626 | R50: 44186.29063 | S50: 44659.99383 | T50: 45067.8935 | V50: Interest expense includes the indexation on debt that carries a real cost of debt
B52: Pre Tax Profit | C52: =$C$29 -> $'000 | I52: =I48+I49-I50 -> 9319.882809 | J52: 7461.571428 | K52: 7920.706937 | L52: 5998.266454 | M52: 7317.32683 | N52: 5815.075811 | O52: 6739.82583 | P52: 7511.235253 | Q52: 9405.683141 | R52: 12458.6796 | S52: 15716.26558 | T52: 19433.72086
B53: Tax expense (incl tax on capital contributions) | C53: =$C$29 -> $'000 | I53: =(I52+I139+I140)*I18 -> 3125.964843 | J53: 2613.471428 | K53: =(K52+K139+K140)*K18 -> 2683.712081 | L53: =(L52+L139+L140)*L18 -> 2114.667436 | M53: 2518.265237 | N53: 2075.666611 | O53: 2361.370213 | P53: 2601.278601 | Q53: 3178.310668 | R53: 4103.12475 | S53: 5089.538566 | T53: 6214.141621 | V53: Including tax on in-kind and cash capital contributions, the latter if cash capital contributions are deducted from capex at full value (see comment)
B55: Profit after tax | C55: =$C$29 -> $'000 | I55: =I52-I53 -> 6193.917966 | J55: 4848.1 | K55: 5236.994856 | L55: 3883.599018 | M55: 4799.061594 | N55: 3739.409201 | O55: 4378.455617 | P55: 4909.956652 | Q55: 6227.372473 | R55: 8355.554853 | S55: 10626.72702 | T55: 13219.57924
B56: Retained earnings at the beginning of the year | C56: =$C$29 -> $'000 | I56: =H59 -> 4000 | J56: 7096.958983 | K56: 9521.008983 | L56: 12139.50641 | M56: 14081.30592 | N56: 16480.83672 | O56: 18350.54132 | P56: 20539.76913 | Q56: 22994.74745 | R56: 26108.43369 | S56: 30286.21111 | T56: 35599.57462
B57: Dividends payable | C57: =$C$29 -> $'000 | I57: =MAX(0,CHOOSE($D$19,MIN(I55+I56,I19),I55*I19)) -> 3096.958983 | J57: 2424.05 | K57: =MAX(0,CHOOSE($D$19,MIN(K55+K56,K19),K55*K19)) -> 2618.497428 | L57: 1941.799509 | M57: 2399.530797 | N57: 1869.7046 | O57: 2189.227809 | P57: 2454.978326 | Q57: 3113.686236 | R57: 4177.777427 | S57: 5313.363508 | T57: 6609.78962 | V57: Dividend payments cannot exceed profit after tax plus retained earnings
B59: Retained Earnings at year end | C59: =$C$29 -> $'000 | H59: =H29 -> 4000 | I59: =SUM(I55:I56)-I57 -> 7096.958983 | J59: =SUM(J55:J56)-J57 -> 9521.008983 | K59: =SUM(K55:K56)-K57 -> 12139.50641 | L59: 14081.30592 | M59: 16480.83672 | N59: 18350.54132 | O59: 20539.76913 | P59: 22994.74745 | Q59: 26108.43369 | R59: 30286.21111 | S59: 35599.57462 | T59: 42209.36424
B60: 1. Interest expense and income are calculated on the closing value of debt/cash balance of the previous year to avoid circular referencing.
B61: 2. Interest expense includes the indexation on debt that carries a real cost of debt
B64: TABLE 3 - REGULATORY BALANCE SHEET ($'000) | K64: =-K91-K53 -> 1368.224075
B65: =B35 -> Financial year | H65: =H35 -> 2016-17 | I65: =I35 -> 2017-18 | J65: 2018-19 | K65: 2019-20 | L65: 2020-21 | M65: 2021-22 | N65: 2022-23 | O65: 2023-24 | P65: 2024-25 | Q65: 2025-26 | R65: 2026-27 | S65: 2027-28 | T65: 2028-29
J66: =K66 -> nominal $'000 | K66: =K36 -> nominal $'000
B68: Cash assets | C68: =$C$29 -> $'000 | I68: =I30 -> 10000 | J68: =J30 -> 10000 | K68: =J68+K74-J74+K104-K175 -> -4.365574569e-11 | L68: =K68+L74-K74+L104-L175 -> 2.000888344e-11 | M68: 4.547473509e-11 | N68: -5.27506927e-11 | O68: -2.000888344e-11 | P68: -1.818989404e-11 | Q68: 0 | R68: 3.456079867e-11 | S68: 9.640643839e-11 | T68: -1.091393642e-11
B69: Receivables | C69: $'000 | I69: ='Working capital'!I44*I$23 -> 14710.31507 | J69: ='Working capital'!J44*J$23 -> 15010.27397 | K69: ='Working capital'!K44*K$23 -> 15385.53082 | L69: ='Working capital'!L44*L$23 -> 15840.96198 | M69: ='Working capital'!M44*M$23 -> 16308.54989 | N69: ='Working capital'!N44*N$23 -> 16922.09185 | O69: ='Working capital'!O44*O$23 -> 17560.00702 | P69: ='Working capital'!P44*P$23 -> 18357.80975 | Q69: ='Working capital'!Q44*Q$23 -> 19185.02513 | R69: ='Working capital'!R44*R$23 -> 20042.63726 | S69: ='Working capital'!S44*S$23 -> 20931.79629 | T69: ='Working capital'!T44*T$23 -> 21853.42127
B70: Inventory | C70: $'000 | I70: ='Working capital'!I45*I$23 -> 546.5205479 | J70: ='Working capital'!J45*J$23 -> 711.2328767 | K70: ='Working capital'!K45*K$23 -> 686.890411 | L70: ='Working capital'!L45*L$23 -> 512.4171575 | M70: ='Working capital'!M45*M$23 -> 796.3089854 | N70: ='Working capital'!N45*N$23 -> 690.5332478 | O70: ='Working capital'!O45*O$23 -> 741.459848 | P70: ='Working capital'!P45*P$23 -> 691.0501876 | Q70: ='Working capital'!Q45*Q$23 -> 637.6566317 | R70: ='Working capital'!R45*R$23 -> 657.9375647 | S70: ='Working capital'!S45*S$23 -> 678.8340089 | T70: ='Working capital'!T45*T$23 -> 700.3640643
B71: RAB | C71: $'000 | I71: ='RAB historical'!I124 -> 761696.7708 | J71: ='RAB historical'!J124 -> 824693.0613 | K71: ='RAB projected '!K139 -> 881867.8569 | L71: ='RAB projected '!L139 -> 905499.4227 | M71: ='RAB projected '!M139 -> 978583.7737 | N71: ='RAB projected '!N139 -> 1030639.118 | O71: ='RAB projected '!O139 -> 1089767.159 | P71: ='RAB projected '!P139 -> 1137543.185 | Q71: ='RAB projected '!Q139 -> 1173238.959 | R71: ='RAB projected '!R139 -> 1209994.153 | S71: ='RAB projected '!S139 -> 1247828.661 | T71: ='RAB projected '!T139 -> 1286762.181
B72: Net tax assets/-liabilities | C72: $'000 | H72: 0 | I72: =H72-I91-I53 -> 32.13515727 | J72: 1293.474704 | K72: =J72-K91-K53 -> 2661.698779 | L72: =K72-L91-L53 -> 4735.604888 | M72: 6812.131465 | N72: 8653.695394 | O72: 11390.23705 | P72: 13853.34121 | Q72: 16347.6223 | R72: 19727.75439 | S72: 23059.51974 | T72: 26644.78618 | V72: Difference between tax paid and tax expense
B73: Payables | C73: $'000 | I73: ='Working capital'!I46*I$23 -> 8197.808219 | J73: ='Working capital'!J46*J$23 -> 10668.49315 | K73: ='Working capital'!K46*K$23 -> 10303.35616 | L73: ='Working capital'!L46*L$23 -> 7686.257363 | M73: ='Working capital'!M46*M$23 -> 11944.63478 | N73: ='Working capital'!N46*N$23 -> 10357.99872 | O73: ='Working capital'!O46*O$23 -> 11121.89772 | P73: ='Working capital'!P46*P$23 -> 10365.75281 | Q73: ='Working capital'!Q46*Q$23 -> 9564.849475 | R73: ='Working capital'!R46*R$23 -> 9869.06347 | S73: ='Working capital'!S46*S$23 -> 10182.51013 | T73: ='Working capital'!T46*T$23 -> 10505.46096
B74: Debt | C74: $'000 | I74: =I31 -> 450000 | J74: =J31 -> 500000 | K74: =MAX(0,J74-K104-J68)+K175 -> 526023.247 | L74: 530638.2797 | M74: 577255.2433 | N74: 606912.2548 | O74: 640746.5744 | P74: 662790.085 | Q74: 671002.5993 | R74: 678202.8533 | S74: 684402.5186 | T74: 689736.0028 | V74: Debt includes the indexation on debt that carries a real cost of debt, lagged by 1 year
B75: Net assets employed | C75: $'000 | I75: =SUM(I68:I72)-SUM(I73:I74) -> 328787.9333 | J75: =SUM(J68:J72)-SUM(J73:J74) -> 341039.5497 | K75: =SUM(K68:K72)-SUM(K73:K74) -> 364275.3737 | L75: 388263.8696 | M75: 413300.886 | N75: 439635.1849 | O75: 467590.3907 | P75: 497289.548 | Q75: 528841.8138 | R75: 562350.5652 | S75: 597913.7826 | T75: 635719.2887
B77: Owner contributions | C77: =$C$29 -> $'000 | I77: =I75-I78-I79 -> 267106.785 | J77: =J75-J78-J79 -> 258206.1911 | K77: =J77 -> 258206.1911 | L77: 258206.1911 | M77: 258206.1911 | N77: 258206.1911 | O77: 258206.1911 | P77: 258206.1911 | Q77: 258206.1911 | R77: 258206.1911 | S77: 258206.1911 | T77: 258206.1911
B78: Retained earnings | C78: =$C$29 -> $'000 | I78: =I59 -> 7096.958983 | J78: 9521.008983 | K78: 12139.50641 | L78: 14081.30592 | M78: 16480.83672 | N78: 18350.54132 | O78: 20539.76913 | P78: 22994.74745 | Q78: 26108.43369 | R78: 30286.21111 | S78: 35599.57462 | T78: 42209.36424
B79: Asset revaluation reserve | C79: =$C$29 -> $'000 | I79: ='Pricing & financial inputs'!I91 -> 54584.18933 | J79: ='Pricing & financial inputs'!J91 -> 73312.34966 | K79: =J79+'RAB projected '!K138 -> 93929.67619 | L79: =K79+'RAB projected '!L138 -> 115976.3726 | M79: =L79+'RAB projected '!M138 -> 138613.8582 | N79: =M79+'RAB projected '!N138 -> 163078.4525 | O79: =N79+'RAB projected '!O138 -> 188844.4305 | P79: =O79+'RAB projected '!P138 -> 216088.6094 | Q79: =P79+'RAB projected '!Q138 -> 244527.1891 | R79: =Q79+'RAB projected '!R138 -> 273858.163 | S79: =R79+'RAB projected '!S138 -> 304108.0168 | T79: =S79+'RAB projected '!T138 -> 335303.7334
B80: Total equity | C80: =$C$29 -> $'000 | I80: =SUM(I77:I79) -> 328787.9333 | J80: =SUM(J77:J79) -> 341039.5497 | K80: 364275.3737 | L80: 388263.8696 | M80: 413300.886 | N80: 439635.1849 | O80: 467590.3907 | P80: 497289.548 | Q80: 528841.8138 | R80: 562350.5652 | S80: 597913.7826 | T80: 635719.2887
B81: check net assets = total equity | I81: =I75-SUM(I80) -> 0 | J81: =J75-SUM(J80) -> 0 | K81: 0 | L81: 0 | M81: 0 | N81: 0 | O81: 0 | P81: 0 | Q81: 0 | R81: 0 | S81: 0 | T81: 0
L82: =L81-K81 -> 0 | M82: =M81-L81 -> 0 | N82: 0 | O82: 0 | P82: 0 | Q82: 0 | R82: 0 | S82: 0 | T82: 0 | U82: 0
B85: TABLE 4 - REGULATORY CASH FLOW ($'000)
B86: =B35 -> Financial year | I86: =I35 -> 2017-18 | J86: 2018-19 | K86: 2019-20 | L86: 2020-21 | M86: 2021-22 | N86: 2022-23 | O86: 2023-24 | P86: 2024-25 | Q86: 2025-26 | R86: 2026-27 | S86: 2027-28 | T86: 2028-29
J87: =K87 -> nominal $'000 | K87: =K36 -> nominal $'000
B89: Receipts from customers | C89: =$C$29 -> $'000 | I89: =I41-I39 -> 121317 | J89: 123750 | K89: 127403.9539 | L89: 131155.3575 | M89: 136063.0175 | N89: 141164.8629 | O89: 147533.2893 | P89: 154135.8459 | Q89: 160980.3547 | R89: 168075.9526 | S89: 175429.9484 | T89: 183300.1684 | V89: Revenue excluding profit/loss on asset sales
B90: Operating costs | C90: =$C$29 -> $'000 | I90: =-I43 -> -64940 | J90: -64950 | K90: -66625 | L90: -68448.21875 | M90: -70320.95781 | N90: -72244.55369 | O90: -74220.37877 | P90: -76249.84225 | Q90: -78334.39117 | R90: -80475.51138 | S90: -82674.72861 | T90: -84933.60951
B91: Tax paid | C91: =$C$29 -> $'000 | I91: =-I150 -> -3158.1 | J91: -3874.810976 | K91: =-K150 -> -4051.936156 | L91: =-L150 -> -4188.573545 | M91: -4594.791814 | N91: -3917.23054 | O91: -5097.911868 | P91: -5064.382761 | Q91: -5672.591758 | R91: -7483.256845 | S91: -8421.303907 | T91: -9799.408063 | V91: Including tax on both cash and in-kind capital contributions. Assume tax paid = tax payable
B92: Change in working capital | C92: =$C$29 -> $'000 | I92: 0 | J92: =(I69+I70-I73)-(J69+J70-J73) -> 2006.013699 | K92: -716.0513699 | L92: -2898.056703 | M92: 3506.89768 | N92: -2094.402286 | O92: 75.05722902 | P92: -1503.537979 | Q92: -1574.725161 | R92: -573.6790615 | S92: -596.6088206 | T92: -620.2041965
B93: Cash Flow From Operations | C93: =$C$29 -> $'000 | I93: =SUM(I89:I92) -> 53218.9 | J93: =SUM(J89:J92) -> 56931.20272 | K93: 56010.96633 | L93: 55620.50852 | M93: 64654.1656 | N93: 62908.67639 | O93: 68290.05587 | P93: 71318.08289 | Q93: 75398.64658 | R93: 79543.50534 | S93: 83737.3071 | T93: 87946.94659
B95: Sale of assets | C95: =$C$29 -> $'000 | I95: =SUM('RAB & cost inputs'!I107:I108)*I$22 -> 1500 | J95: =SUM('RAB & cost inputs'!J107:J108)*J$22 -> 1000 | K95: =SUM('RAB & cost inputs'!K107:K108)*K$22 -> 1537.5 | L95: =SUM('RAB & cost inputs'!L107:L108)*L$22 -> 1418.34375 | M95: =SUM('RAB & cost inputs'!M107:M108)*M$22 -> 1076.890625 | N95: =SUM('RAB & cost inputs'!N107:N108)*N$22 -> 1103.812891 | O95: =SUM('RAB & cost inputs'!O107:O108)*O$22 -> 1131.408213 | P95: =SUM('RAB & cost inputs'!P107:P108)*P$22 -> 1159.693418 | Q95: =SUM('RAB & cost inputs'!Q107:Q108)*Q$22 -> 1188.685754 | R95: =SUM('RAB & cost inputs'!R107:R108)*R$22 -> 1218.402898 | S95: =SUM('RAB & cost inputs'!S107:S108)*S$22 -> 1248.86297 | T95: =SUM('RAB & cost inputs'!T107:T108)*T$22 -> 1280.084544
B96: Purchase of assets | C96: =$C$29 -> $'000 | I96: =-SUM(Scenario!I65:I66)*I$22 -> -35000 | J96: =-SUM(Scenario!J65:J66)*J$22 -> -65200 | K96: =-SUM(Scenario!K65:K66)*K$22 -> -59450 | L96: =-SUM(Scenario!L65:L66)*L$22 -> -25215 | M96: =-SUM(Scenario!M65:M66)*M$22 -> -75382.34375 | N96: =-SUM(Scenario!N65:N66)*N$22 -> -54086.83164 | O96: =-SUM(Scenario!O65:O66)*O$22 -> -61096.0435 | P96: =-SUM(Scenario!P65:P66)*P$22 -> -49866.81698 | Q96: =-SUM(Scenario!Q65:Q66)*Q$22 -> -38037.94412 | R96: =-SUM(Scenario!R65:R66)*R$22 -> -39598.09417 | S96: =-SUM(Scenario!S65:S66)*S$22 -> -41212.47801 | T96: =-SUM(Scenario!T65:T66)*T$22 -> -42882.83223
B97: Cash capital contributions | C97: =$C$29 -> $'000 | I97: =SUM(Scenario!I69:I70)*I22*'RAB historical'!I40 -> 200 | J97: =SUM(Scenario!J69:J70)*J22*'RAB historical'!J40 -> 350 | K97: =SUM(Scenario!K69:K70)*K22*'RAB projected '!K35 -> 717.5 | L97: =SUM(Scenario!L69:L70)*L22*'RAB projected '!L35 -> 147.0875 | M97: =SUM(Scenario!M69:M70)*M22*'RAB projected '!M35 -> 376.9117187 | N97: =SUM(Scenario!N69:N70)*N22*'RAB projected '!N35 -> 309.0676094 | O97: =SUM(Scenario!O69:O70)*O22*'RAB projected '!O35 -> 0 | P97: =SUM(Scenario!P69:P70)*P22*'RAB projected '!P35 -> 0 | Q97: =SUM(Scenario!Q69:Q70)*Q22*'RAB projected '!Q35 -> 0 | R97: =SUM(Scenario!R69:R70)*R22*'RAB projected '!R35 -> 0 | S97: =SUM(Scenario!S69:S70)*S22*'RAB projected '!S35 -> 0 | T97: =SUM(Scenario!T69:T70)*T22*'RAB projected '!T35 -> 0 | V97: Value of cash capital contributions included in the RAB
B98: Cash Flow From Investing | C98: =$C$29 -> $'000 | I98: =SUM(I95:I97) -> -33300 | J98: =SUM(J95:J97) -> -63850 | K98: -57195 | L98: -23649.56875 | M98: -73928.54141 | N98: -52673.95114 | O98: -59964.63528 | P98: -48707.12356 | Q98: -36849.25836 | R98: -38379.69127 | S98: -39963.61504 | T98: -41602.74769
B100: Interest received | C100: =$C$29 -> $'000 | I100: =I49 -> 630 | J100: 565.1829268 | K100: 595 | L100: -2.597516868e-12 | M100: 1.190528565e-12 | N100: 2.705746738e-12 | O100: -3.138666216e-12 | P100: -1.190528565e-12 | Q100: -1.082298695e-12 | R100: 0 | S100: 2.056367521e-12 | T100: 5.736183084e-12
B101: Interest paid | C101: =$C$29 -> $'000 | I101: =-I50+I175 -> -28350 | J101: -28259.14634 | K101: -29750 | L101: -31298.3832 | M101: -31572.97764 | N101: -34346.68698 | O101: -36111.27916 | P101: -38124.42118 | Q101: -39436.01006 | R101: -39924.65466 | S101: -40353.06977 | T101: -40721.94986 | V101: Interest paid excludes the indexation on debt that carries a real cost of debt
B102: Dividends paid | C102: =$C$29 -> $'000 | I102: =-I57 -> -3096.958983 | J102: =-J57 -> -2424.05 | K102: =-K57 -> -2618.497428 | L102: -1941.799509 | M102: -2399.530797 | N102: -1869.7046 | O102: -2189.227809 | P102: -2454.978326 | Q102: -3113.686236 | R102: -4177.777427 | S102: -5313.363508 | T102: -6609.78962 | V102: Assume dividends paid = dividends payable
B103: Cash Flow from Financing | C103: =$C$29 -> $'000 | I103: =SUM(I100:I102) -> -30816.95898 | J103: -30118.01341 | K103: -31773.49743 | L103: -33240.18271 | M103: -33972.50844 | N103: -36216.39158 | O103: -38300.50697 | P103: -40579.3995 | Q103: -42549.6963 | R103: -44102.43209 | S103: -45666.43328 | T103: -47331.73947
B104: NET CASH FLOW | C104: =$C$29 -> $'000 | I104: =I93+I98+I103 -> -10898.05898 | J104: -37036.81069 | K104: -32957.5311 | L104: -1269.242941 | M104: -43246.88425 | N104: -25981.66632 | O104: -29975.08638 | P104: -17968.44018 | Q104: -4000.308079 | R104: -2938.618018 | S104: -1892.74122 | T104: -987.5405675
B108: TABLE 5 - FINANCEABILITY RATIOS
B109: =B35 -> Financial year | D109: Target ratios | I109: =I35 -> 2017-18 | J109: 2018-19 | K109: 2019-20 | L109: 2020-21 | M109: 2021-22 | N109: 2022-23 | O109: 2023-24 | P109: 2024-25 | Q109: 2025-26 | R109: 2026-27 | S109: 2027-28 | T109: 2028-29
B111: 1. Adjusted FFO Interest Cover | D111: ='Financials benchmark'!D106 -> Higher is better | V111: = (Inflation adjusted FFO + inflation adjusted net interest payments) / inflation adjusted net interest payments, after adjustment for operating leases and superannuation
B112: - ratio (times) | C112: ='Financials benchmark'!C107 -> > | D112: ='Financials benchmark'!D107 -> 1.8 | I112: =(I189+I182)/I182 -> 2.49427027 | J112: 2.89377474 | K112: 2.821820507 | L112: 2.733784322 | M112: 2.828856395 | N112: 2.769103542 | O112: 2.762762527 | P112: 2.794165105 | Q112: 2.854108501 | R112: 2.932781113 | S112: 3.053304724 | T112: 3.17643203
B114: 1a. FFO Interest Cover
B115: - ratio (times) | C115: =C112 -> > | D115: =D112 -> 1.8 | I115: =(I188+I181)/I181 -> 1.913444282 | J115: 1.9773872 | K115: 1.939784697 | L115: 1.864707443 | M115: 1.931031234 | N115: 1.887585654 | O115: 1.884202641 | P115: 1.905257508 | Q115: 1.946724642 | R115: 2.001080556 | S115: 2.083523747 | T115: 2.167752846 | V115: = (FFO + net interest payments) / net interest payments, after adjustment for operating leases and superannuation
B117: 2. Adjusted FFO / Net Debt | D117: ='Financials benchmark'!D109 -> Higher is better
B118: - ratio (%) | C118: ='Financials benchmark'!C110 -> > | D118: ='Financials benchmark'!D110 -> 0.06 | I118: =I189/I180 -> 0.07129647373 | J118: 0.07199312292 | K118: 0.06838732031 | L118: 0.06859148823 | M118: 0.06727230521 | N118: 0.06717085871 | O118: 0.06669071936 | P118: 0.06922831582 | Q118: 0.07308067639 | R118: 0.07633275186 | S118: 0.08122753143 | T118: 0.08622157412 | V118: = Inflation adjusted FFO / Inflation adjusted Net Debt, after adjustment for operating leases and superannuation
B120: 2a. FFO / Net Debt
B121: - ratio (%) | C121: =C118 -> > | D121: =D118 -> 0.06 | I121: =I188/I179 -> 0.05764805796 | J121: 0.05535053604 | K121: 0.05220968822 | L121: 0.05109522605 | M121: 0.05104278008 | N121: 0.05033155548 | O121: 0.04993085231 | P121: 0.0521652557 | Q121: 0.05573269739 | R121: 0.05902997454 | S121: 0.06399281118 | T121: 0.06906085736 | V121: = FFO / Net Debt, after adjustment for operating leases and superannuation
B123: 3. Adjusted Net Debt / RAB | D123: ='Financials benchmark'!D112 -> Lower is better
B124: - ratio (%) | C124: ='Financials benchmark'!C113 -> < | D124: ='Financials benchmark'!D113 -> 0.7 | I124: =I179/(I71+I69+I70-I73) -> 0.5769322339 | J124: =J179/(J71+J69+J70-J73) -> 0.5947843742 | K124: =K180/(K71+K69+K70-K73) -> 0.6070369331 | L124: 0.5954865142 | M124: 0.6009247707 | N124: 0.599120782 | O124: 0.5983032851 | P124: 0.592463654 | Q124: 0.5811789242 | R124: 0.569513371 | S124: 0.5572487667 | T124: 0.5445596016 | V124: = Inflation adjusted Net Debt / (RAB + net working capital), after adjustment for operating leases and superannuation
B126: 3a. Net Debt / RAB
B127: - ratio (%) | C127: =C124 -> < | D127: =D124 -> 0.7 | I127: =I179/(I71+I69+I70-I73) -> 0.5769322339 | J127: 0.5947843742 | K127: 0.5966755482 | L127: 0.5845067105 | M127: 0.5906474648 | N127: 0.5884973096 | O127: 0.5877488075 | P127: 0.5817980364 | Q127: 0.5705015665 | R127: 0.5590410257 | S127: 0.5469881333 | T127: 0.5345213159 | V127: = Net Debt / (RAB + net working capital), after adjustment for operating leases and superannuation
B134: TABLE 6 - CALCULATION OF TAX PAYABLE
B135: =B16 -> Financial year | H135: =H16 -> 2016-17 | I135: 2017-18 | J135: 2018-19 | K135: 2019-20 | L135: 2020-21 | M135: 2021-22 | N135: 2022-23 | O135: 2023-24 | P135: 2024-25 | Q135: 2025-26 | R135: 2026-27 | S135: 2027-28 | T135: 2028-29 | V135: =V$17 -> 0
B138: Total revenue excluding cash and in-kind capital contributions | I138: =I41 -> 121517 | J138: 123750 | K138: 127711.4539 | L138: 131207.8888 | M138: 136063.0175 | N138: 141164.8629 | O138: 147533.2893 | P138: 154135.8459 | Q138: 160980.3547 | R138: 168075.9526 | S138: 175429.9484 | T138: 183300.1684
B139: Cash capital contributions included in taxable income | I139: =CHOOSE($D$26,0,I97) -> 200 | J139: =CHOOSE($D$26,0,J97) -> 350 | K139: =CHOOSE($D$27,0,K97) -> 0 | L139: =CHOOSE($D$27,0,L97) -> 0 | M139: 0 | N139: 0 | O139: 0 | P139: 0 | Q139: 0 | R139: 0 | S139: 0 | T139: 0 | V139: Zero if cash capital contributions are included in the RAB net of tax | X139: Cash capital contributions will be valued at zero if they are included in the RAB net of tax.
B140: Assets contributed in-kind | I140: ='RAB & cost inputs'!I94*I22 -> 900 | J140: ='RAB & cost inputs'!J94*J22 -> 900 | K140: ='RAB & cost inputs'!K94*K22 -> 1025 | L140: ='RAB & cost inputs'!L94*L22 -> 1050.625 | M140: ='RAB & cost inputs'!M94*M22 -> 1076.890625 | N140: ='RAB & cost inputs'!N94*N22 -> 1103.812891 | O140: ='RAB & cost inputs'!O94*O22 -> 1131.408213 | P140: ='RAB & cost inputs'!P94*P22 -> 1159.693418 | Q140: ='RAB & cost inputs'!Q94*Q22 -> 1188.685754 | R140: ='RAB & cost inputs'!R94*R22 -> 1218.402898 | S140: ='RAB & cost inputs'!S94*S22 -> 1248.86297 | T140: ='RAB & cost inputs'!T94*T22 -> 1280.084544
B141: Total revenue | I141: =SUM(I138:I140) -> 122617 | J141: 125000 | K141: 128736.4539 | L141: 132258.5138 | M141: 137139.9082 | N141: 142268.6758 | O141: 148664.6975 | P141: 155295.5393 | Q141: 162169.0404 | R141: 169294.3555 | S141: 176678.8114 | T141: 184580.2529
B142: less
B143: =B43 -> Operating costs | I143: =I43 -> 64940 | J143: 64950 | K143: 66625 | L143: 68448.21875 | M143: 70320.95781 | N143: 72244.55369 | O143: 74220.37877 | P143: 76249.84225 | Q143: 78334.39117 | R143: 80475.51138 | S143: 82674.72861 | T143: 84933.60951
B144: Tax depreciation | I144: =IF(Scenario!$W$33=1,'RAB & cost inputs'!I129,I46*$K144/$K46) -> 19430 | J144: =IF(Scenario!$W$33=1,'RAB & cost inputs'!J129,J46*$K144/$K46) -> 19440 | K144: =Tax!K39 -> 19450 | L144: =Tax!L39 -> 18550 | M144: =Tax!M39 -> 19930 | N144: =Tax!N39 -> 22620 | O144: =Tax!O39 -> 21340 | P144: =Tax!P39 -> 24040 | Q144: =Tax!Q39 -> 25490 | R144: =Tax!R39 -> 23950 | S144: =Tax!S39 -> 25580 | T144: =Tax!T39 -> 26260
B145: Net interest payments | I145: =-I101-I100 -> 27720 | J145: 27693.96341 | K145: =-K101-K100 -> 29155 | L145: =-L101-L100 -> 31298.3832 | M145: 31572.97764 | N145: 34346.68698 | O145: 36111.27916 | P145: 38124.42118 | Q145: 39436.01006 | R145: 39924.65466 | S145: 40353.06977 | T145: 40721.94986 | V145: Net interest payments from Cash Flow statement, ie, excluding indexation on debt that carries a real cost of debt
B146: gives
B147: Income before tax | I147: =I141-SUM(I143:I145) -> 10527 | J147: 12916.03659 | K147: =K141-SUM(K143:K145) -> 13506.45385 | L147: =L141-SUM(L143:L145) -> 13961.91182 | M147: 15315.97271 | N147: 13057.43513 | O147: 16993.03956 | P147: 16881.27587 | Q147: 18908.63919 | R147: 24944.18948 | S147: 28071.01302 | T147: 32664.69354 | V147: Assume zero historical losses
B148: Accumulated tax losses | I148: 0 | J148: =MAX(0,I148-I147) -> 0 | K148: 0 | L148: 0 | M148: 0 | N148: 0 | O148: 0 | P148: 0 | Q148: 0 | R148: 0 | S148: 0 | T148: 0
B149: Taxable income | I149: =MAX(0,SUM(I147:I148)) -> 10527 | J149: 12916.03659 | K149: =MAX(0,SUM(K147:K148)) -> 13506.45385 | L149: =MAX(0,SUM(L147:L148)) -> 13961.91182 | M149: 15315.97271 | N149: 13057.43513 | O149: 16993.03956 | P149: 16881.27587 | Q149: 18908.63919 | R149: 24944.18948 | S149: =MAX(0,SUM(S147:S148)) -> 28071.01302 | T149: 32664.69354
B150: Tax payable | I150: =I149*I18 -> 3158.1 | J150: 3874.810976 | K150: 4051.936156 | L150: 4188.573545 | M150: 4594.791814 | N150: 3917.23054 | O150: 5097.911868 | P150: 5064.382761 | Q150: 5672.591758 | R150: 7483.256845 | S150: 8421.303907 | T150: 9799.408063
B155: TABLE 7 - CALCULATIONS FOR FINANCEABILITY RATIOS
B156: =B$16 -> Financial year | D156: ='Pricing & financial inputs'!D64 -> Constants | J156: =J$16 -> 2018-19 | K156: 2019-20 | L156: 2020-21 | M156: 2021-22 | N156: 2022-23 | O156: 2023-24 | P156: 2024-25 | Q156: 2025-26 | R156: 2026-27 | S156: 2027-28 | T156: 2028-29
B158: Operating lease and superannuation adjustments for calculation of ratios | V158: see comment
B160: Operating lease adjustments
B161: Operating lease expense | C161: =$C$29 -> $'000 | I161: ='Pricing & financial inputs'!I98*I$22 -> 340 | J161: ='Pricing & financial inputs'!J98*J$22 -> 340 | K161: ='Pricing & financial inputs'!K98*K$22 -> 348.5 | L161: ='Pricing & financial inputs'!L98*L$22 -> 357.2125 | M161: ='Pricing & financial inputs'!M98*M$22 -> 366.1428125 | N161: ='Pricing & financial inputs'!N98*N$22 -> 375.2963828 | O161: ='Pricing & financial inputs'!O98*O$22 -> 384.6787924 | P161: ='Pricing & financial inputs'!P98*P$22 -> 394.2957622 | Q161: ='Pricing & financial inputs'!Q98*Q$22 -> 404.1531562 | R161: ='Pricing & financial inputs'!R98*R$22 -> 414.2569852 | S161: ='Pricing & financial inputs'!S98*S$22 -> 424.6134098 | T161: ='Pricing & financial inputs'!T98*T$22 -> 435.228745
B162: Operating lease interest adjustment | C162: =$C$29 -> $'000 | D162: ='Pricing & financial inputs'!D100 -> 0.3333333333 | I162: =$D162*I$161 -> 113.3333333 | J162: 113.3333333 | K162: 116.1666667 | L162: 119.0708333 | M162: 122.0476042 | N162: 125.0987943 | O162: 128.2262641 | P162: 131.4319207 | Q162: 134.7177187 | R162: 138.0856617 | S162: 141.5378033 | T162: 145.0762483 | V162: A share of operating lease expense is allocated to interest - we use 1/3. (See comment on 'Pricing & financial inputs' worksheet).
B163: Operating lease depreciation adjustment | C163: =$C$29 -> $'000 | D163: ='Pricing & financial inputs'!D101 -> 0.6666666667 | I163: 226.6666667 | J163: 226.6666667 | K163: 232.3333333 | L163: 238.1416667 | M163: 244.0952083 | N163: 250.1975885 | O163: 256.4525283 | P163: 262.8638415 | Q163: 269.4354375 | R163: 276.1713234 | S163: 283.0756065 | T163: 290.1524967 | V163: The remainder of the operating lease expense is allocated to depreciation.
B165: Operating lease debt multiplier | C165: times | D165: ='Pricing & financial inputs'!D99 -> 3 | V165: This factor converts the lease expense to debt and an asset value.
B166: Operating lease debt adjustment | C166: =$C$29 -> $'000 | I166: =I161*$D$165 -> 1020 | J166: 1020 | K166: 1045.5 | L166: 1071.6375 | M166: 1098.428437 | N166: 1125.889148 | O166: 1154.036377 | P166: 1182.887287 | Q166: 1212.459469 | R166: 1242.770955 | S166: 1273.840229 | T166: 1305.686235 | V166: This is the capitalised value of the operating lease(s).
B168: Superannuation adjustment | C168: =$C$29 -> $'000 | I168: ='Pricing & financial inputs'!I106*I22 -> 2500 | J168: ='Pricing & financial inputs'!J106*J22 -> 2500 | K168: ='Pricing & financial inputs'!K106*K22 -> 2562.5 | L168: ='Pricing & financial inputs'!L106*L22 -> 2626.5625 | M168: ='Pricing & financial inputs'!M106*M22 -> 2692.226562 | N168: ='Pricing & financial inputs'!N106*N22 -> 2759.532227 | O168: ='Pricing & financial inputs'!O106*O22 -> 2828.520532 | P168: ='Pricing & financial inputs'!P106*P22 -> 2899.233546 | Q168: ='Pricing & financial inputs'!Q106*Q22 -> 2971.714384 | R168: ='Pricing & financial inputs'!R106*R22 -> 3046.007244 | S168: ='Pricing & financial inputs'!S106*S22 -> 3122.157425 | T168: ='Pricing & financial inputs'!T106*T22 -> 3200.21136 | V168: This is the unfunded defined benefits liability.
B169: Interest on superannuation adjustment | C169: =C168 -> $'000 | I169: =I168*I20 -> 157.5 | J169: 141.2957317 | K169: 152.46875 | L169: 156.2804688 | M169: 160.1874805 | N169: 164.1921675 | O169: 168.2969717 | P169: 172.504396 | Q169: 176.8170059 | R169: 181.237431 | S169: 185.7683668 | T169: 190.4125759 | V169: This is the interest costs of the unfunded defined benefits liability.
B171: Debt portion of RAB inflationary gain
B172: Total RAB inflationary gain | I172: ='RAB historical'!I123 -> 11297.79145 | J172: ='RAB historical'!J123 -> 19840.54427 | K172: ='RAB projected '!K138 -> 20617.32653 | L172: ='RAB projected '!L138 -> 22046.69642 | M172: ='RAB projected '!M138 -> 22637.48557 | N172: ='RAB projected '!N138 -> 24464.59434 | O172: ='RAB projected '!O138 -> 25765.97795 | P172: ='RAB projected '!P138 -> 27244.17897 | Q172: ='RAB projected '!Q138 -> 28438.57962 | R172: ='RAB projected '!R138 -> 29330.97396 | S172: ='RAB projected '!S138 -> 30249.85382 | T172: ='RAB projected '!T138 -> 31195.71653
B173: Share of inflationary gain that is debt1 | I173: =I172*I124 -> 6518.060059 | J173: =J172*J124 -> 11800.84571 | K173: =K172*J124 -> 12262.86366 | L173: 13383.15898 | M173: 13480.31737 | N173: 14701.38075 | O173: 15436.93286 | P173: 16300.28178 | Q173: 16848.8248 | R173: 17046.5439 | S173: 17227.69622 | T173: 17383.77456
B174: Inflationary gain that represents the inflation component of interest payments | I174: =I173*I21 -> 6518.060059 | J174: 8850.634281 | K174: 9197.147745 | L174: 10037.36923 | M174: 10110.23803 | N174: 11026.03556 | O174: 11577.69964 | P174: 12225.21133 | Q174: 12636.6186 | R174: 12784.90792 | S174: 12920.77217 | T174: 13037.83092 | V174: Share of inflationary gain that is debt x share of debt paid at nominal cost of debt
B175: Inflationary gain that is added to interest expense (P&L) and debt (balance sheet) | I175: =I173-I174 -> 0 | J175: =J173-J174 -> 2950.211427 | K175: =K173-K174 -> 3065.715915 | L175: =L173-L174 -> 3345.789745 | M175: 3370.079343 | N175: 3675.345187 | O175: 3859.233214 | P175: 4075.070445 | Q175: 4212.206199 | R175: 4261.635974 | S175: 4306.924055 | T175: 4345.943641 | V175: Represents the indexation on principle for loans that carry a real cost of debt
B178: Adjusted Values for calculation of ratios
B179: Adjusted net debt excl inflation component of interest payments | I179: =I74-I68+I166+I168 -> 443520 | J179: 493520 | K179: 529631.247 | L179: 534336.4797 | M179: 581045.8983 | N179: 610797.6762 | O179: 644729.1313 | P179: 666872.2059 | Q179: 675186.7732 | R179: 682491.6315 | S179: 688798.5162 | T179: 694241.9004 | V179: Net debt plus the capitalised value of operating leases plus the unfunded defined benefits superannuation liability.
B180: Adjusted net debt incl inflation component of interest payments | I180: =I179+I174 -> 450038.0601 | J180: =J179+J174 -> 502370.6343 | K180: =K179+K174 -> 538828.3948 | L180: 544373.8489 | M180: 591156.1363 | N180: 621823.7117 | O180: 656306.831 | P180: 679097.4172 | Q180: 687823.3918 | R180: 695276.5394 | S180: 701719.2884 | T180: 707279.7313 | V180: As above plus inflationary component of nominal interest payments
B181: Adjusted net interest payments including inflation component of interest payments | I181: =-I100-I101+I162+I169 -> 27990.83333 | J181: 27948.59248 | K181: 29423.63542 | L181: 31573.7345 | M181: 31855.21273 | N181: 34635.97794 | O181: 36407.8024 | P181: 38428.35749 | Q181: 39747.54478 | R181: 40243.97775 | S181: 40680.37594 | T181: 41057.43868 | V181: Net interest expense plus interest portion of operating leases plus interest on unfunded superannuation liabilities
B182: Adjusted net interest payments net of inflation component of interest payments | I182: =I181-I174 -> 21472.77327 | J182: =J181-J174 -> 19097.9582 | K182: =K181-K174 -> 20226.48767 | L182: 21536.36526 | M182: 21744.9747 | N182: 23609.94238 | O182: 24830.10275 | P182: 26203.14616 | Q182: 27110.92619 | R182: 27459.06983 | S182: 27759.60377 | T182: 28019.60776 | V182: Above minus inflation component of nominal interest payments
B184: Funds from Operations ($ '000)
B185: Funds From Operations (FFO) | C185: =$C$29 -> $'000 | I185: =I93-I92+I100+I101 -> 25498.9 | J185: 27231.22561 | K185: 27572.0177 | L185: 27220.18202 | M185: 29574.29027 | N185: 30656.3917 | O185: 32103.71948 | P185: 34697.19969 | Q185: 37537.36168 | R185: 40192.52974 | S185: 43980.84615 | T185: 47845.20094 | V185: Cash flow from operations (CFO) minus change in working capital minus interest paid plus interest received.
B186: Adjustments to FFO for operating leases | C186: =$C$29 -> $'000 | I186: =I163 -> 226.6666667 | J186: 226.6666667 | K186: 232.3333333 | L186: 238.1416667 | M186: 244.0952083 | N186: 250.1975885 | O186: 256.4525283 | P186: 262.8638415 | Q186: 269.4354375 | R186: 276.1713234 | S186: 283.0756065 | T186: 290.1524967 | V186: Add back share of operating lease that is classified as depreciation (because depreciation is a non-cash expense).
B187: Adjustments to FFO for interest on superannuation adjustment | I187: =-I169 -> -157.5 | J187: -141.2957317 | K187: -152.46875 | L187: -156.2804688 | M187: -160.1874805 | N187: -164.1921675 | O187: -168.2969717 | P187: -172.504396 | Q187: -176.8170059 | R187: -181.237431 | S187: -185.7683668 | T187: -190.4125759 | V187: Subtract notional interest payments on unfunded superannuation liabilities
B188: Adjusted FFO excluding inflation component of interest payments | I188: =SUM(I185:I187) -> 25568.06667 | J188: 27316.59654 | K188: 27651.88228 | L188: 27302.04322 | M188: 29658.198 | N188: 30742.39712 | O188: 32191.87504 | P188: 34787.55914 | Q188: 37629.98011 | R188: 40287.46363 | S188: 44078.15339 | T188: 47944.94086 | V188: FFO measures a company's operating cash flows before changes in working capital.
B189: Adjusted FFO including inflation component of interest payments | I189: =I188+I174 -> 32086.12673 | J189: 36167.23083 | K189: 36849.03003 | L189: 37339.41245 | M189: 39768.43603 | N189: 41768.43268 | O189: 43769.57468 | P189: 47012.77047 | Q189: 50266.59871 | R189: 53072.37156 | S189: 56998.92555 | T189: 60982.77178 | V189: FFO plus inflationary component of nominal interest payments
B190: 1. Share of inflationary gain calculated using the gearing ratio of the previous year to avoid circular referencing

Sheet RAB historical
B1: =Cover!B1 -> THE INDEPENDENT PRICING AND REGULATORY TRIBUNAL OF NSW | F1: =Cover!$B$3 -> IPART TEMPLATE FOR COST BUILDING BLOCKS, SIMPLE TARIFF SETTING AND FINANCIAL RATIO ANALYSIS
B3: 6 Regulatory Asset Base roll forward to start of new determination period
B6: List of tables | G6: row number
B7: =B13 -> TABLE 1 - ASSUMPTION MADE IN ROLL FORWARD OF REGULATORY ASSET BASE | G7: =ROW(B13) -> 13
B8: =B58 -> TABLE 2 - CALCULATION OF ROLLED FORWARD REGULATORY ASSET BASE (nominal $ million) | G8: =ROW(B58) -> 58
B9: =B131 -> TABLE 3 - CALCULATION OF AVERAGE REMAINING LIFE OF DEPRECIATING ASSETS | G9: =ROW(B131) -> 131
B13: TABLE 1 - ASSUMPTION MADE IN ROLL FORWARD OF REGULATORY ASSET BASE
B14: ='RAB & cost inputs'!B$33 -> Financial year | F14: ='RAB & cost inputs'!F$33 -> 2014-15 | G14: ='RAB & cost inputs'!G$33 -> 2015-16 | H14: ='RAB & cost inputs'!H$33 -> 2016-17 | I14: ='RAB & cost inputs'!I$33 -> 2017-18 | J14: ='RAB & cost inputs'!J$33 -> 2018-19
F15: ='RAB & cost inputs'!F71 -> nominal | G15: ='RAB & cost inputs'!G71 -> nominal | H15: ='RAB & cost inputs'!H71 -> nominal | I15: ='RAB & cost inputs'!I71 -> nominal | J15: ='RAB & cost inputs'!J71 -> nominal
B17: Inflation rate to roll forward RAB (actual to June) | F17: ='Pricing & financial inputs'!F18 -> 0.012 | G17: ='Pricing & financial inputs'!G18 -> 0.024 | H17: ='Pricing & financial inputs'!H18 -> 0.03 | I17: ='Pricing & financial inputs'!I18 -> 0.015 | J17: ='Pricing & financial inputs'!J18 -> 0.025
B19: RAB opening value
B20: ='RAB & cost inputs'!B37 -> Depreciating assets | C20: ='RAB & cost inputs'!C37 -> $'000 | F20: ='RAB & cost inputs'!F37 -> 620000
B21: ='RAB & cost inputs'!B38 -> Non-depreciating assets (eg land) | C21: ='RAB & cost inputs'!C38 -> $'000 | F21: ='RAB & cost inputs'!F38 -> 40000
B23: Allowed depreciation from previous Determination
B24: Enter the value of depreciation in the projected RAB used to set prices at the last determination
B25: Allowed depreciation | C25: =C20 -> $'000 | F25: ='RAB & cost inputs'!F43 -> 16717 | G25: ='RAB & cost inputs'!G43 -> 17990 | H25: ='RAB & cost inputs'!H43 -> 18783 | I25: ='RAB & cost inputs'!I43 -> 19653 | J25: ='RAB & cost inputs'!J43 -> 20817
B26: Forecast inflation from previous determination | C26: % | F26: ='RAB & cost inputs'!F45 -> 0.012 | G26: ='RAB & cost inputs'!G45 -> 0.025 | H26: ='RAB & cost inputs'!H45 -> 0.025 | I26: ='RAB & cost inputs'!I45 -> 0.025 | J26: ='RAB & cost inputs'!J45 -> 0.025
B28: Use allowed or actual depreciation? | D28: =Scenario!$W$51 -> 1 | E28: =Scenario!$J$50 -> Allowed depreciation
B30: Asset lives for calculated depreciation
B31: ='RAB & cost inputs'!B48 -> Ave remaining life of depreciating assets on 1 July 2014 | C31: years | D31: ='RAB & cost inputs'!D48 -> 40
B32: Expected life of new assets | C32: years | D32: ='RAB & cost inputs'!D49 -> 60
B34: Actual capex, capital contributions and asset disposals | D34: ="Selected: "&Scenario!$J$43&" & "&Scenario!$J$47 -> Selected: Option 1 - Agency capex & Option 1 - Agency cap cons
B35: ='RAB & cost inputs'!$B$76 -> Capital expenditure
B36: =Scenario!B65 -> - depreciating assets | C36: =C$20 -> $'000 | F36: =Scenario!F65 -> 34000 | G36: =Scenario!G65 -> 33000 | H36: =Scenario!H65 -> 21000 | I36: =Scenario!I65 -> 35000 | J36: =Scenario!J65 -> 65000
B37: =Scenario!B66 -> - non-depreciating assets | C37: =C$20 -> $'000 | F37: =Scenario!F66 -> 0 | G37: =Scenario!G66 -> 2000 | H37: =Scenario!H66 -> 0 | I37: =Scenario!I66 -> 0 | J37: =Scenario!J66 -> 200
B39: Cash capital contributions
B40: Share of cash capital contributions included in RAB calculations | F40: =CHOOSE(Scenario!$W$54,(1-'Pricing & financial inputs'!F$68),1) -> 1 | G40: =CHOOSE(Scenario!$W$54,(1-'Pricing & financial inputs'!G$68),1) -> 1 | H40: =CHOOSE(Scenario!$W$54,(1-'Pricing & financial inputs'!H$68),1) -> 1 | I40: =CHOOSE(Scenario!$W$54,(1-'Pricing & financial inputs'!I$68),1) -> 1 | J40: =CHOOSE(Scenario!$W$54,(1-'Pricing & financial inputs'!J$68),1) -> 1
B41: ='RAB & cost inputs'!B87 -> - depreciating assets | C41: =CHOOSE(Scenario!$W$54,$C$20&", net of tax",$C$20&" before tax") -> $'000 before tax | F41: =Scenario!F69*F$40 -> 0 | G41: =Scenario!G69*G$40 -> 0 | H41: =Scenario!H69*H$40 -> 3000 | I41: =Scenario!I69*I$40 -> 200 | J41: =Scenario!J69*J$40 -> 350
B42: ='RAB & cost inputs'!B88 -> - non-depreciating assets | C42: =C41 -> $'000 before tax | F42: =Scenario!F70*F$40 -> 0 | G42: =Scenario!G70*G$40 -> 0 | H42: =Scenario!H70*H$40 -> 0 | I42: =Scenario!I70*I$40 -> 0 | J42: =Scenario!J70*J$40 -> 0
B44: ='RAB & cost inputs'!B104 -> Cost of assets disposed - depreciating assets | C44: =C$20 -> $'000 | F44: ='RAB & cost inputs'!F104 -> 1000 | G44: ='RAB & cost inputs'!G104 -> 1000 | H44: ='RAB & cost inputs'!H104 -> 1000 | I44: ='RAB & cost inputs'!I104 -> 1000 | J44: ='RAB & cost inputs'!J104 -> 1000
B45: ='RAB & cost inputs'!B105 -> Cost of assets disposed - non-depreciating assets | C45: =C$20 -> $'000 | F45: ='RAB & cost inputs'!F105 -> 700 | G45: ='RAB & cost inputs'!G105 -> 0 | H45: ='RAB & cost inputs'!H105 -> 0 | I45: ='RAB & cost inputs'!I105 -> 300 | J45: ='RAB & cost inputs'!J105 -> 0
B47: Timing and depreciation assumptions
B48: 1. Half of capital expenditure and disposals occurs at the beginning of the year, and half at the end of the year:
B49: % of capex in year depreciated and indexed | D49: ='RAB & cost inputs'!C154 -> 0.5
B50: % of disposals in year depreciated and indexed | D50: ='RAB & cost inputs'!C155 -> 0.5
B52: 2. Depreciation occurs at the end of the year
B53: 3. Depreciation = allowed (ie forecast) depreciation at the last determination, adjusted for actual inflation
B54: This is the amount of depreciation that has been recovered through prices
B58: TABLE 2 - CALCULATION OF ROLLED FORWARD REGULATORY ASSET BASE (nominal $ million)
B59: =B$14 -> Financial year | F59: =F$14 -> 2014-15 | G59: =G$14 -> 2015-16 | H59: =H$14 -> 2016-17 | I59: =I$14 -> 2017-18 | J59: =J$14 -> 2018-19
B61: =B20 -> Depreciating assets
B62: Opening value | C62: =C$20 -> $'000 | F62: =F$20 -> 620000 | G62: =F67 -> 643921 | H62: =G67 -> 673786.6552 | I62: =H67 -> 692399.0448 | J62: =I67 -> 717301.4132
B63: Capex (net of cap cons) | C63: =C62 -> $'000 | F63: =F36-F$41 -> 34000 | G63: =G36-G$41 -> 33000 | H63: =H36-H$41 -> 18000 | I63: =I36-I$41 -> 34800 | J63: =J36-J$41 -> 64650
B64: Disposals | C64: =C63 -> $'000 | F64: =F$44 -> 1000 | G64: =G$44 -> 1000 | H64: =H$44 -> 1000 | I64: =I$44 -> 1000 | J64: =J$44 -> 1000
B65: =E28 -> Allowed depreciation | C65: =C64 -> $'000 | F65: =CHOOSE($D$28,F74,F85+F107) -> 16717 | G65: =CHOOSE($D$28,G74,G85+G107) -> 17972.44878 | H65: =CHOOSE($D$28,H74,H85+H107) -> 18856.21012 | I65: =CHOOSE($D$28,I74,I85+I107) -> 19537.11719 | J65: =CHOOSE($D$28,J74,J85+J107) -> 20694.25373 | M65: Note that both the label and values change depending on what depreciation option has been selected.
B66: Indexation | C66: =C65 -> $'000 | F66: =(F62+F63*$D$49-F64*$D$50)*F$17 -> 7638 | G66: =(G62+G63*$D$49-G64*$D$50)*G$17 -> 15838.104 | H66: =(H62+H63*$D$49-H64*$D$50)*H$17 -> 20468.59966 | I66: =(I62+I63*$D$49-I64*$D$50)*I$17 -> 10639.48567 | J66: =(J62+J63*$D$49-J64*$D$50)*J$17 -> 18728.16033 | M66: Formula = (Opening value + 50 capex - 50 % disposals) x inflation rate
B67: Closing value | C67: =C66 -> $'000 | F67: =F62+F63-F65-F64+F66 -> 643921 | G67: =G62+G63-G65-G64+G66 -> 673786.6552 | H67: =H62+H63-H65-H64+H66 -> 692399.0448 | I67: =I62+I63-I65-I64+I66 -> 717301.4132 | J67: =J62+J63-J65-J64+J66 -> 778985.3198 | L67: This is the value of depreciating assets at the start of the new determination period
B69: Calculation of depreciation
B71: Calculation of allowed depreciation
B72: Index of forecast inflation | E72: 1 | F72: =E72*(1+F26) -> 1.012 | G72: =F72*(1+G26) -> 1.0373 | H72: =G72*(1+H26) -> 1.0632325 | I72: =H72*(1+I26) -> 1.089813312 | J72: =I72*(1+J26) -> 1.117058645
B73: Index of actual inflation | E73: 1 | F73: =E73*(1+F17) -> 1.012 | G73: =F73*(1+G17) -> 1.036288 | H73: =G73*(1+H17) -> 1.06737664 | I73: =H73*(1+I17) -> 1.08338729 | J73: =I73*(1+J17) -> 1.110471972
B74: Allowed depreciation adjusted for actual inflation | C74: =C67 -> $'000 | F74: =F25/F72*F73 -> 16717 | G74: =G25/G72*G73 -> 17972.44878 | H74: =H25/H72*H73 -> 18856.21012 | I74: =I25/I72*I73 -> 19537.11719 | J74: =J25/J72*J73 -> 20694.25373
B76: Calculation of actual depreciation
B77: Existing assets
B78: period | E78: 0 | F78: 1 | G78: =F78+1 -> 2 | H78: =G78+1 -> 3 | I78: =H78+1 -> 4 | J78: =I78+1 -> 5
B79: % depreciation remaining | C79: % | F79: =IF(F78<1/$D85,1,MAX(0,1/$D85-E78)) -> 1 | G79: =IF(G78<1/$D85,1,MAX(0,1/$D85-F78)) -> 1 | H79: =IF(H78<1/$D85,1,MAX(0,1/$D85-G78)) -> 1 | I79: =IF(I78<1/$D85,1,MAX(0,1/$D85-H78)) -> 1 | J79: =IF(J78<1/$D85,1,MAX(0,1/$D85-I78)) -> 1
B80: Opening value of existing assets | C80: =C67 -> $'000 | F80: =F62 -> 620000 | G80: =F83 -> 626434 | H80: =G83 -> 640456.416 | I80: =H83 -> 658655.1085 | J80: =I83 -> 667527.4351
B81: disposals at regulatory value | C81: =C80 -> $'000 | F81: =F64 -> 1000 | G81: =G64 -> 1000 | H81: =H64 -> 1000 | I81: =I64 -> 1000 | J81: =J64 -> 1000
B82: Indexation | C82: =C81 -> $'000 | F82: =(F80-F81*$D$50)*F$17 -> 7434 | G82: =(G80-G81*$D$50)*G$17 -> 15022.416 | H82: =(H80-H81*$D$50)*H$17 -> 19198.69248 | I82: =(I80-I81*$D$50)*I$17 -> 9872.326627 | J82: =(J80-J81*$D$50)*J$17 -> 16675.68588
B83: Closing value before further depreciation | C83: =C82 -> $'000 | F83: =F80+F82-F81 -> 626434 | G83: =G80+G82-G81 -> 640456.416 | H83: =H80+H82-H81 -> 658655.1085 | I83: =I80+I82-I81 -> 667527.4351 | J83: =J80+J82-J81 -> 683203.121
B85: Depreciation | D85: =IF($D$31=0,0,1/$D$31) -> 0.025 | F85: =(F83+F81*$D$50)*$D85*F79 -> 15673.35 | G85: =(G83+G81*$D$50)*$D85*G79 -> 16023.9104 | H85: =(H83+H81*$D$50)*$D85*H79 -> 16478.87771 | I85: =(I83+I81*$D$50)*$D85*I79 -> 16700.68588 | J85: =(J83+J81*$D$50)*$D85*J79 -> 17092.57802
B87: Depreciation on new assets (undepreciated values)
B90: New assets (ie net capex during period)
B91: Expected life (years) | D91: =$D$32 -> 60
B92: % of 1 year's depreciation in | F92: This matrix shows the proportion of a full year's worth of straight line depreciation that occurs each year
B93: =TRANSPOSE($F$14:$J$14) -> 2014-15 | C93: % | F93: =$D$49 -> 0.5 | G93: =IF(SUM($F93:F93)+1<$D$91,1,$D$91-SUM($F93:F93)) -> 1 | H93: =IF(SUM($F93:G93)+1<$D$91,1,$D$91-SUM($F93:G93)) -> 1 | I93: =IF(SUM($F93:H93)+1<$D$91,1,$D$91-SUM($F93:H93)) -> 1 | J93: =IF(SUM($F93:I93)+1<$D$91,1,$D$91-SUM($F93:I93)) -> 1
B94: 2015-16 | C94: % | F94: 0 | G94: =$D$49 -> 0.5 | H94: =IF(SUM($F94:G94)+1<$D$91,1,$D$91-SUM($F94:G94)) -> 1 | I94: =IF(SUM($F94:H94)+1<$D$91,1,$D$91-SUM($F94:H94)) -> 1 | J94: =IF(SUM($F94:I94)+1<$D$91,1,$D$91-SUM($F94:I94)) -> 1
B95: 2016-17 | C95: % | F95: 0 | G95: 0 | H95: =$D$49 -> 0.5 | I95: =IF(SUM($F95:H95)+1<$D$91,1,$D$91-SUM($F95:H95)) -> 1 | J95: =IF(SUM($F95:I95)+1<$D$91,1,$D$91-SUM($F95:I95)) -> 1
B96: 2017-18 | C96: % | F96: 0 | G96: 0 | H96: 0 | I96: =$D$49 -> 0.5 | J96: =IF(SUM($F96:I96)+1<$D$91,1,$D$91-SUM($F96:I96)) -> 1
B97: 2018-19 | C97: % | F97: 0 | G97: 0 | H97: 0 | I97: 0 | J97: =I96 -> 0.5
B99: Capex after indexation in first year (net of cap cons) | F99: =F63*(1+F$17*$D$49) -> 34204 | G99: =G63*(1+G$17*$D$49) -> 33396 | H99: =H63*(1+H$17*$D$49) -> 18270 | I99: =I63*(1+I$17*$D$49) -> 35061 | J99: =J63*(1+J$17*$D$49) -> 65458.125
B100: Depreciation for capex (after indexation) occurring in: | D100: Depreciation rate
B101: =B93 -> 2014-15 | C101: =$C$44 -> $'000 | D101: =IF(D91=0,0,1/D91) -> 0.01666666667 | F101: =F93*F$99*$D101 -> 285.0333333 | G101: =IF(F93=0,0,F101*G93/F93*(1+G$17)) -> 583.7482667 | H101: =IF(G93=0,0,G101*H93/G93*(1+H$17)) -> 601.2607147 | I101: 610.2796254 | J101: 625.536616
B102: =B94 -> 2015-16 | C102: =$C$44 -> $'000 | D102: =D101 -> 0.01666666667 | F102: =F94 -> 0 | G102: =G94*G$99*$D102 -> 278.3 | H102: 573.298 | I102: 581.89747 | J102: 596.4449067
B103: =B95 -> 2016-17 | C103: $'000 | D103: =D102 -> 0.01666666667 | F103: =F95 -> 0 | G103: 0 | H103: =H95*H$99*$D103 -> 152.25 | I103: 309.0675 | J103: 316.7941875
B104: =B96 -> 2017-18 | C104: $'000 | D104: =D103 -> 0.01666666667 | F104: 0 | G104: 0 | H104: 0 | I104: =I96*I$99*$D104 -> 292.175 | J104: 598.95875
B105: =B97 -> 2018-19 | C105: $'000 | D105: =D104 -> 0.01666666667 | F105: 0 | G105: 0 | H105: 0 | I105: 0 | J105: =J97*J$99*$D105 -> 545.484375
B107: Depreciation for the year | C107: $'000 | F107: =SUM(F101:F106) -> 285.0333333 | G107: =SUM(G101:G106) -> 862.0482667 | H107: =SUM(H101:H106) -> 1326.808715 | I107: =SUM(I101:I106) -> 1793.419595 | J107: =SUM(J101:J106) -> 2683.218835
B110: =B21 -> Non-depreciating assets (eg land)
B111: =B62 -> Opening value | C111: =C62 -> $'000 | F111: =F21 -> 40000 | G111: =F116 -> 39775.8 | H111: =G116 -> 42754.4192 | I111: =H116 -> 44037.05178 | J111: =I116 -> 44395.35755
B112: =B63 -> Capex (net of cap cons) | C112: =C111 -> $'000 | F112: =F37-F42 -> 0 | G112: =G37-G42 -> 2000 | H112: =H37-H42 -> 0 | I112: =I37-I42 -> 0 | J112: =J37-J42 -> 200
B113: =B64 -> Disposals | C113: =C112 -> $'000 | F113: =F45 -> 700 | G113: =G45 -> 0 | H113: =H45 -> 0 | I113: =I45 -> 300 | J113: =J45 -> 0
B114: =B65 -> Allowed depreciation | C114: =C113 -> $'000 | F114: 0 | G114: 0 | H114: 0 | I114: 0 | J114: 0 | M114: Kept as placeholder to reduce risk of calculation error when adding depreciating and non-depreciating assets to total RAB
B115: =B66 -> Indexation | C115: =C114 -> $'000 | F115: =(F111+F112*$D$49-F113*$D$50)*F$17 -> 475.8 | G115: =(G111+G112*$D$49-G113*$D$50)*G$17 -> 978.6192 | H115: =(H111+H112*$D$49-H113*$D$50)*H$17 -> 1282.632576 | I115: =(I111+I112*$D$49-I113*$D$50)*I$17 -> 658.3057766 | J115: =(J111+J112*$D$49-J113*$D$50)*J$17 -> 1112.383939
B116: =B67 -> Closing value | C116: =C115 -> $'000 | F116: =F111+F112-F114-F113+F115 -> 39775.8 | G116: =G111+G112-G114-G113+G115 -> 42754.4192 | H116: =H111+H112-H114-H113+H115 -> 44037.05178 | I116: =I111+I112-I114-I113+I115 -> 44395.35755 | J116: =J111+J112-J114-J113+J115 -> 45707.74149 | L116: This is the value of non - depreciating assets at the start of the new determination period
B118: Total RAB
B119: =B62 -> Opening value | F119: =F62+F111 -> 660000 | G119: 683696.8 | H119: 716541.0744 | I119: 736436.0965 | J119: 761696.7708
B120: Capex (net of cap cons) | F120: 34000 | G120: 35000 | H120: 18000 | I120: 34800 | J120: 64850
B121: Disposals | F121: 1700 | G121: 1000 | H121: 1000 | I121: 1300 | J121: 1000
B122: Allowed depreciation | F122: 16717 | G122: 17972.44878 | H122: 18856.21012 | I122: 19537.11719 | J122: 20694.25373
B123: Indexation | F123: 8113.8 | G123: 16816.7232 | H123: 21751.23223 | I123: 11297.79145 | J123: 19840.54427
B124: Closing value | F124: 683696.8 | G124: 716541.0744 | H124: 736436.0965 | I124: 761696.7708 | J124: 824693.0613
B125: check closing value = 0 | F125: =SUM(F119:F120)-F121-F122+F123-F124 -> 0 | G125: =SUM(G119:G120)-G121-G122+G123-G124 -> 0 | H125: =SUM(H119:H120)-H121-H122+H123-H124 -> 0 | I125: =SUM(I119:I120)-I121-I122+I123-I124 -> 0 | J125: =SUM(J119:J120)-J121-J122+J123-J124 -> 0
B126: check net capex = 0 | F126: =F120-(SUM(F36:F37)-SUM(F41:F42)) -> 0 | G126: =G120-(SUM(G36:G37)-SUM(G41:G42)) -> 0 | H126: =H120-(SUM(H36:H37)-SUM(H41:H42)) -> 0 | I126: =I120-(SUM(I36:I37)-SUM(I41:I42)) -> 0 | J126: =J120-(SUM(J36:J37)-SUM(J41:J42)) -> 0
B127: check disposals = 0 | F127: =F121-SUM(F44:F45) -> 0 | G127: =G121-SUM(G44:G45) -> 0 | H127: =H121-SUM(H44:H45) -> 0 | I127: =I121-SUM(I44:I45) -> 0 | J127: =J121-SUM(J44:J45) -> 0
B131: TABLE 3 - CALCULATION OF AVERAGE REMAINING LIFE OF DEPRECIATING ASSETS
B132: =B$14 -> Financial year | F132: =F$14 -> 2014-15 | G132: =G$14 -> 2015-16 | H132: =H$14 -> 2016-17 | I132: =I$14 -> 2017-18 | J132: =J$14 -> 2018-19
B135: Value of depreciating assets rolled forward using actual depreciation
B136: =B62 -> Opening value | C136: =C20 -> $'000 | F136: =F$20 -> 620000 | G136: =F141 -> 644679.6167 | H136: =G141 -> 675649.9688 | I136: =H141 -> 695368.7814 | J136: =I141 -> 721358.7077
B137: =B63 -> Capex (net of cap cons) | C137: =C136 -> $'000 | F137: =F$36-F$41 -> 34000 | G137: =G$36-G$41 -> 33000 | H137: =H$36-H$41 -> 18000 | I137: =I$36-I$41 -> 34800 | J137: =J$36-J$41 -> 64650
B138: =B64 -> Disposals | C138: =C137 -> $'000 | F138: =F$44 -> 1000 | G138: =G$44 -> 1000 | H138: =H$44 -> 1000 | I138: =I$44 -> 1000 | J138: =J$44 -> 1000
B139: Actual (calculated) depreciation | C139: =C138 -> $'000 | F139: =F85+F107 -> 15958.38333 | G139: =G85+G107 -> 16885.95867 | H139: =H85+H107 -> 17805.68643 | I139: =I85+I107 -> 18494.10547 | J139: =J85+J107 -> 19775.79686
B140: =B66 -> Indexation | C140: =C139 -> $'000 | F140: =(F136+F137*$D$49-F138*$D$50)*F$17 -> 7638 | G140: =(G136+G137*$D$49-G138*$D$50)*G$17 -> 15856.3108 | H140: =(H136+H137*$D$49-H138*$D$50)*H$17 -> 20524.49906 | I140: =(I136+I137*$D$49-I138*$D$50)*I$17 -> 10684.03172 | J140: =(J136+J137*$D$49-J138*$D$50)*J$17 -> 18829.59269
B141: =B67 -> Closing value | C141: =C140 -> $'000 | F141: =F136+F137-F139-F138+F140 -> 644679.6167 | G141: =G136+G137-G139-G138+G140 -> 675649.9688 | H141: =H136+H137-H139-H138+H140 -> 695368.7814 | I141: =I136+I137-I139-I138+I140 -> 721358.7077 | J141: =J136+J137-J139-J138+J140 -> 784062.5035
B143: Calculation of average remaining life
B144: Remaining life at beginning of yr | C144: ='RAB & cost inputs'!$C$57 -> years | F144: =((F136+F137*$D$49-F138*$D$50)*(1+F$17))/F139 -> 40.36361244 | G144: =((G136+G137*$D$49-G138*$D$50)*(1+G$17))/G139 -> 40.06499961 | H144: =((H136+H137*$D$49-H138*$D$50)*(1+H$17))/H139 -> 39.57581028 | I144: =((I136+I137*$D$49-I138*$D$50)*(1+I$17))/I139 -> 39.09098573 | J144: =((J136+J137*$D$49-J138*$D$50)*(1+J$17))/J139 -> 39.03829038 | M144: Formula = (opening value + 50% capex - 50% disposals)*CPI / value of depreciation.
B145: Value of assets at year end excluding 50% of capex that occurs at year end | C145: =C$20 -> $'000 | F145: =F141-F146 -> 627679.6167 | G145: =G141-G146 -> 659149.9688 | H145: =H141-H146 -> 686368.7814 | I145: =I141-I146 -> 703958.7077 | J145: =J141-J146 -> 751737.5035
B146: Value of capex that occurs at year end | C146: =C$20 -> $'000 | F146: =F137*$D$49 -> 17000 | G146: =G137*$D$49 -> 16500 | H146: =H137*$D$49 -> 9000 | I146: =I137*$D$49 -> 17400 | J146: =J137*$D$49 -> 32325
B147: Remaining life of assets at year end excluding 50% of capex that occurs at year end | C147: =C$144 -> years | F147: =F144-1 -> 39.36361244 | G147: =G144-1 -> 39.06499961 | H147: =H144-1 -> 38.57581028 | I147: =I144-1 -> 38.09098573 | J147: =J144-1 -> 38.03829038
B148: Remaining life of capex that occurs at year end | C148: =C$144 -> years | F148: =$D$91 -> 60 | G148: =$D$91 -> 60 | H148: =$D$91 -> 60 | I148: =$D$91 -> 60 | J148: =$D$91 -> 60
B149: Average remaining life | C149: =C$144 -> years | F149: =IF(SUM(F145:F146)=0,0,SUMPRODUCT(F145:F146,F147:F148)/SUM(F145:F146)) -> 39.90778753 | G149: =IF(SUM(G145:G146)=0,0,SUMPRODUCT(G145:G146,G147:G148)/SUM(G145:G146)) -> 39.57625177 | H149: =IF(SUM(H145:H146)=0,0,SUMPRODUCT(H145:H146,H147:H148)/SUM(H145:H146)) -> 38.85309869 | I149: =IF(SUM(I145:I146)=0,0,SUMPRODUCT(I145:I146,I147:I148)/SUM(I145:I146)) -> 38.6194563 | J149: =IF(SUM(J145:J146)=0,0,SUMPRODUCT(J145:J146,J147:J148)/SUM(J145:J146)) -> 38.94371853 | L149: This is the average remaining life of depreciating assets at the start of the new determination period (with unchanged asset life assumptions)
B152: This option is for illustration only, and the results are not used anywhere in the model
B153: Simpler estimate of average remaining life - for illustration only | M153: Logic = remaining life at the beginning of the year - 1
B154: Estimated average remaining life | C154: =C$144 -> years | F154: =((F136+F137*$D$49-F138*$D$50)*(1+F$17))/F139-1 -> 39.36361244 | G154: =((G136+G137*$D$49-G138*$D$50)*(1+G$17))/G139-1 -> 39.06499961 | H154: =((H136+H137*$D$49-H138*$D$50)*(1+H$17))/H139-1 -> 38.57581028 | I154: =((I136+I137*$D$49-I138*$D$50)*(1+I$17))/I139-1 -> 38.09098573 | J154: =((J136+J137*$D$49-J138*$D$50)*(1+J$17))/J139-1 -> 38.03829038 | M154: Formula = [(opening value + 50% capex - 50% disposals)*CPI] / value of depreciation -1.
B155: Difference | C155: =C$144 -> years | F155: =F149-F154 -> 0.5441750902 | G155: =G149-G154 -> 0.5112521606 | H155: =H149-H154 -> 0.2772884154 | I155: =I149-I154 -> 0.5284705712 | J155: =J149-J154 -> 0.9054281517

Sheet RAB projected
B1: =Cover!B1 -> THE INDEPENDENT PRICING AND REGULATORY TRIBUNAL OF NSW | F1: =Cover!B4 -> 0 | K1: =Cover!$B$3 -> IPART TEMPLATE FOR COST BUILDING BLOCKS, SIMPLE TARIFF SETTING AND FINANCIAL RATIO ANALYSIS
B3: 7 Regulatory Asset Base roll forward for new determination period
B5: List of tables | G5: row number | M5: row number
B6: =B15 -> TABLE 1 - ASSUMPTIONS FOR ROLL FORWARD OF REGULATORY ASSET BASE | G6: =ROW(B15) -> 15 | H6: ADDED | M6: =ROW(B15) -> 15
B7: =B53 -> TABLE 2 - ROLL FORWARD OF REGULATORY ASSET BASE FOR COST BUILDING BLOCKS | G7: =ROW(B60) -> 60 | M7: =ROW(B53) -> 53
B8: =B130 -> TABLE 3 - ROLL FORWARD OF REGULATORY ASSET BASE FOR REGULATORY FINANCIAL STATEMENTS (nominal) | G8: =ROW(B133) -> 133 | M8: =ROW(B130) -> 130
B9: =B148 -> The option for depreciation in Table 4 below is for illustration only, and the results are not used anywhere in the model
B10: =B151 -> This method is simpler but is suitable ONLY for long-lived assets since it assumes that all capex continues to be depreciated
B11: =B150 -> Table 4 - Depreciation of new assets (ie net capex during period) - Method 2 for long-lived assets | M11: =ROW(B150) -> 150
B15: TABLE 1 - ASSUMPTIONS FOR ROLL FORWARD OF REGULATORY ASSET BASE
B16: ='RAB & cost inputs'!B$33 -> Financial year | I16: ='RAB & cost inputs'!I$33 -> 2017-18 | J16: ='RAB & cost inputs'!J$33 -> 2018-19 | K16: ='RAB & cost inputs'!K$33 -> 2019-20 | L16: ='RAB & cost inputs'!L$33 -> 2020-21 | M16: ='RAB & cost inputs'!M$33 -> 2021-22 | N16: ='RAB & cost inputs'!N$33 -> 2022-23 | O16: ='RAB & cost inputs'!O$33 -> 2023-24 | P16: ='RAB & cost inputs'!P$33 -> 2024-25 | Q16: ='RAB & cost inputs'!Q$33 -> 2025-26 | R16: ='RAB & cost inputs'!R$33 -> 2026-27 | S16: ='RAB & cost inputs'!S$33 -> 2027-28 | T16: ='RAB & cost inputs'!T$33 -> 2028-29
F17: =G17-1 -> -3 | G17: =H17-1 -> -2 | H17: =I17-1 -> -1 | K17: =CHOOSE(Scenario!$W$37,Scenario!$X$35,Scenario!$X$36) -> 2018-19 $'000 | O17: =K17 -> 2018-19 $'000
K18: ='RAB & cost inputs'!K34 -> Next determination period | O18: ='RAB & cost inputs'!O34 -> Subsequent determinations
B20: ='Pricing & financial inputs'!B19 -> Inflation applied to costs and prices | K20: ='Pricing & financial inputs'!K19 -> 0 | L20: ='Pricing & financial inputs'!L19 -> 0 | M20: ='Pricing & financial inputs'!M19 -> 0 | N20: ='Pricing & financial inputs'!N19 -> 0 | O20: ='Pricing & financial inputs'!O19 -> 0 | P20: ='Pricing & financial inputs'!P19 -> 0 | Q20: ='Pricing & financial inputs'!Q19 -> 0 | R20: ='Pricing & financial inputs'!R19 -> 0 | S20: ='Pricing & financial inputs'!S19 -> 0 | T20: ='Pricing & financial inputs'!T19 -> 0
B21: ='Pricing & financial inputs'!B20 -> Index applied to forecast costs and revenue | J21: ='Pricing & financial inputs'!J20 -> 1 | K21: ='Pricing & financial inputs'!K20 -> 1 | L21: ='Pricing & financial inputs'!L20 -> 1 | M21: ='Pricing & financial inputs'!M20 -> 1 | N21: ='Pricing & financial inputs'!N20 -> 1 | O21: ='Pricing & financial inputs'!O20 -> 1 | P21: ='Pricing & financial inputs'!P20 -> 1 | Q21: ='Pricing & financial inputs'!Q20 -> 1 | R21: ='Pricing & financial inputs'!R20 -> 1 | S21: ='Pricing & financial inputs'!S20 -> 1 | T21: ='Pricing & financial inputs'!T20 -> 1
B22: inflation rate | K22: ='Pricing & financial inputs'!K18 -> 0.025 | L22: ='Pricing & financial inputs'!L18 -> 0.025 | M22: ='Pricing & financial inputs'!M18 -> 0.025 | N22: ='Pricing & financial inputs'!N18 -> 0.025 | O22: ='Pricing & financial inputs'!O18 -> 0.025 | P22: ='Pricing & financial inputs'!P18 -> 0.025 | Q22: ='Pricing & financial inputs'!Q18 -> 0.025 | R22: ='Pricing & financial inputs'!R18 -> 0.025 | S22: ='Pricing & financial inputs'!S18 -> 0.025 | T22: ='Pricing & financial inputs'!T18 -> 0.025
B23: Inflator for nominal RAB capex, cap cons and disposals | J23: 1 | K23: =J23*(1+K22)/(1+K20) -> 1.025 | L23: 1.050625 | M23: 1.076890625 | N23: 1.103812891 | O23: 1.131408213 | P23: 1.159693418 | Q23: 1.188685754 | R23: 1.218402898 | S23: 1.24886297 | T23: 1.280084544
B25: RAB opening value
B26: ='RAB historical'!B20 -> Depreciating assets | C26: ='RAB & cost inputs'!$C$37 -> $'000 | K26: ='RAB historical'!J67 -> 778985.3198
B27: ='RAB historical'!B21 -> Non-depreciating assets (eg land) | C27: =C26 -> $'000 | K27: ='RAB historical'!J116 -> 45707.74149
B29: Forecast capex, capital contributions, asset disposals and asset lives | K29: ="Selected: "&Scenario!$J$44&" & "&Scenario!$J$48 -> Selected: Option 1 - Agency capex & Option 1 - Agency cap cons
B30: ='RAB & cost inputs'!$B$76 -> Capital expenditure
B31: =Scenario!B65 -> - depreciating assets | C31: =$C$26 -> $'000 | K31: =Scenario!K65*K$21 -> 54000 | L31: =Scenario!L65*L$21 -> 24000 | M31: =Scenario!M65*M$21 -> 70000 | N31: =Scenario!N65*N$21 -> 44000 | O31: =Scenario!O65*O$21 -> 54000 | P31: =Scenario!P65*P$21 -> 43000 | Q31: =Scenario!Q65*Q$21 -> 32000 | R31: =Scenario!R65*R$21 -> 32500 | S31: =Scenario!S65*S$21 -> 33000 | T31: =Scenario!T65*T$21 -> 33500
B32: =Scenario!B66 -> - non-depreciating assets | C32: =$C$26 -> $'000 | K32: =Scenario!K66*K$21 -> 4000 | L32: =Scenario!L66*L$21 -> 0 | M32: =Scenario!M66*M$21 -> 0 | N32: =Scenario!N66*N$21 -> 5000 | O32: =Scenario!O66*O$21 -> 0 | P32: =Scenario!P66*P$21 -> 0 | Q32: =Scenario!Q66*Q$21 -> 0 | R32: =Scenario!R66*R$21 -> 0 | S32: =Scenario!S66*S$21 -> 0 | T32: =Scenario!T66*T$21 -> 0
B34: Cash capital contributions
B35: Share of cash capital contributions included in RAB calculations | K35: =CHOOSE(Scenario!$W$55,(1-'Pricing & financial inputs'!K$68),1) -> 0.7 | L35: =CHOOSE(Scenario!$W$55,(1-'Pricing & financial inputs'!L$68),1) -> 0.7 | M35: =CHOOSE(Scenario!$W$55,(1-'Pricing & financial inputs'!M$68),1) -> 0.7 | N35: =CHOOSE(Scenario!$W$55,(1-'Pricing & financial inputs'!N$68),1) -> 0.7 | O35: =CHOOSE(Scenario!$W$55,(1-'Pricing & financial inputs'!O$68),1) -> 0.7 | P35: =CHOOSE(Scenario!$W$55,(1-'Pricing & financial inputs'!P$68),1) -> 0.7 | Q35: =CHOOSE(Scenario!$W$55,(1-'Pricing & financial inputs'!Q$68),1) -> 0.7 | R35: =CHOOSE(Scenario!$W$55,(1-'Pricing & financial inputs'!R$68),1) -> 0.7 | S35: =CHOOSE(Scenario!$W$55,(1-'Pricing & financial inputs'!S$68),1) -> 0.7 | T35: =CHOOSE(Scenario!$W$55,(1-'Pricing & financial inputs'!T$68),1) -> 0.7
B36: ='RAB & cost inputs'!B87 -> - depreciating assets | C36: =CHOOSE(Scenario!$W$55,$C$26&", net of tax",$C$26&" before tax") -> $'000, net of tax | K36: =Scenario!K69*K$21*K$35 -> 700 | L36: =Scenario!L69*L$21*L$35 -> 140 | M36: =Scenario!M69*M$21*M$35 -> 350 | N36: =Scenario!N69*N$21*N$35 -> 280 | O36: =Scenario!O69*O$21*O$35 -> 0 | P36: =Scenario!P69*P$21*P$35 -> 0 | Q36: =Scenario!Q69*Q$21*Q$35 -> 0 | R36: =Scenario!R69*R$21*R$35 -> 0 | S36: =Scenario!S69*S$21*S$35 -> 0 | T36: =Scenario!T69*T$21*T$35 -> 0
B37: ='RAB & cost inputs'!B88 -> - non-depreciating assets | C37: =C36 -> $'000, net of tax | K37: =Scenario!K70*K$21*K$35 -> 0 | L37: =Scenario!L70*L$21*L$35 -> 0 | M37: =Scenario!M70*M$21*M$35 -> 0 | N37: =Scenario!N70*N$21*N$35 -> 0 | O37: =Scenario!O70*O$21*O$35 -> 0 | P37: =Scenario!P70*P$21*P$35 -> 0 | Q37: =Scenario!Q70*Q$21*Q$35 -> 0 | R37: =Scenario!R70*R$21*R$35 -> 0 | S37: =Scenario!S70*S$21*S$35 -> 0 | T37: =Scenario!T70*T$21*T$35 -> 0
B39: ='RAB & cost inputs'!B104 -> Cost of assets disposed - depreciating assets | C39: =$C$26 -> $'000 | K39: ='RAB & cost inputs'!K104*K$21 -> 1000 | L39: ='RAB & cost inputs'!L104*L$21 -> 1000 | M39: ='RAB & cost inputs'!M104*M$21 -> 1000 | N39: ='RAB & cost inputs'!N104*N$21 -> 1000 | O39: ='RAB & cost inputs'!O104*O$21 -> 1000 | P39: ='RAB & cost inputs'!P104*P$21 -> 1000 | Q39: ='RAB & cost inputs'!Q104*Q$21 -> 1000 | R39: ='RAB & cost inputs'!R104*R$21 -> 1000 | S39: ='RAB & cost inputs'!S104*S$21 -> 1000 | T39: ='RAB & cost inputs'!T104*T$21 -> 1000
B40: ='RAB & cost inputs'!B105 -> Cost of assets disposed - non-depreciating assets | C40: =$C$26 -> $'000 | K40: ='RAB & cost inputs'!K105*K$21 -> 200 | L40: ='RAB & cost inputs'!L105*L$21 -> 300 | M40: ='RAB & cost inputs'!M105*M$21 -> 0 | N40: ='RAB & cost inputs'!N105*N$21 -> 0 | O40: ='RAB & cost inputs'!O105*O$21 -> 0 | P40: ='RAB & cost inputs'!P105*P$21 -> 0 | Q40: ='RAB & cost inputs'!Q105*Q$21 -> 0 | R40: ='RAB & cost inputs'!R105*R$21 -> 0 | S40: ='RAB & cost inputs'!S105*S$21 -> 0 | T40: ='RAB & cost inputs'!T105*T$21 -> 0
B42: Remaining lives of existing assets | C42: years | D42: ='RAB & cost inputs'!D58 -> 38.94371853 | E42: depreciating assets only
B43: Average expected life of new assets | C43: years | D43: ='RAB & cost inputs'!D59 -> 60 | E43: =E42 -> depreciating assets only
B45: Timing and depreciation assumptions
B46: 1. Half of capital expenditure and disposals occurs at the beginning of the year, and half at the end of the year:
B47: % of capex in year depreciated and indexed | D47: ='RAB & cost inputs'!$C$154 -> 0.5
B48: % of disposals in year depreciated and indexed | D48: ='RAB & cost inputs'!$C$155 -> 0.5
B53: TABLE 2 - ROLL FORWARD OF REGULATORY ASSET BASE FOR COST BUILDING BLOCKS
B54: =B$16 -> Financial year | F54: =F$17 -> -3 | G54: =G$17 -> -2 | H54: =H$17 -> -1 | J54: =J$16 -> 2018-19 | K54: 2019-20 | L54: 2020-21 | M54: 2021-22 | N54: 2022-23 | O54: 2023-24 | P54: 2024-25 | Q54: 2025-26 | R54: 2026-27 | S54: 2027-28 | T54: 2028-29
K55: =K$17 -> 2018-19 $'000 | O55: =O$17 -> 2018-19 $'000
B57: =$B$26 -> Depreciating assets
B58: Opening RAB | C58: =$C$26 -> $'000 | K58: =K$26 -> 778985.3198 | L58: =K63 -> 810851.1432 | M58: 812659.6447 | N58: 859504.5743 | O58: 879500.432 | P58: 908987.6344 | Q58: 926692.1815 | R58: 932797.4068 | S58: 938890.8101 | T58: 944964.0582
B59: capex net of capital contributions | C59: =C58 -> $'000 | K59: =K$31-K$36 -> 53300 | L59: =L$31-L$36 -> 23860 | M59: =M$31-M$36 -> 69650 | N59: 43720 | O59: 54000 | P59: 43000 | Q59: 32000 | R59: 32500 | S59: 33000 | T59: 33500
B60: disposals | C60: =C59 -> $'000 | K60: =K$39 -> 1000 | L60: =L$39 -> 1000 | M60: 1000 | N60: 1000 | O60: 1000 | P60: 1000 | Q60: 1000 | R60: 1000 | S60: 1000 | T60: 1000
B61: depreciation | C61: =C60 -> $'000 | K61: =K76+K104 -> 20434.17659 | L61: =L76+L104 -> 21051.4985 | M61: 21805.07042 | N61: 22724.14234 | O61: 23512.79759 | P61: 24295.45284 | Q61: 24894.77476 | R61: 25406.59668 | S61: 25926.75193 | T61: 26455.24051
B62: indexation | C62: =C61 -> $'000 | K62: =(K58+K59*$D$47-K60*$D$48)*K$20 -> 0 | L62: 0 | M62: 0 | N62: 0 | O62: 0 | P62: 0 | Q62: 0 | R62: 0 | S62: 0 | T62: 0 | V62: Formula = (Opening value + 50 capex - 50 % disposals) x inflation rate
B63: Closing RAB | C63: =C62 -> $'000 | K63: =SUM(K58:K59)-K60-K61+K62 -> 810851.1432 | L63: 812659.6447 | M63: 859504.5743 | N63: 879500.432 | O63: 908987.6344 | P63: 926692.1815 | Q63: 932797.4068 | R63: 938890.8101 | S63: 944964.0582 | T63: 951008.8177
B66: Calculation of depreciation (straight line)
B67: Existing assets at start of period
B68: period | J68: 0 | K68: 1 | L68: 2 | M68: 3 | N68: 4 | O68: 5 | P68: 6 | Q68: 7 | R68: 8 | S68: 9 | T68: 10
B69: % depreciation remaining | K69: =IF(K68<1/$D76,1,MAX(0,1/$D76-J68)) -> 1 | L69: =IF(L68<1/$D76,1,MAX(0,1/$D76-K68)) -> 1 | M69: 1 | N69: 1 | O69: 1 | P69: 1 | Q69: 1 | R69: 1 | S69: 1 | T69: 1
B71: Opening value of existing assets | C71: =C122 -> $'000 | K71: =K58 -> 778985.3198 | L71: =K74 -> 777985.3198 | M71: 776985.3198 | N71: 775985.3198 | O71: 774985.3198 | P71: 773985.3198 | Q71: 772985.3198 | R71: 771985.3198 | S71: 770985.3198 | T71: 769985.3198
B72: disposals | C72: =C71 -> $'000 | K72: =K60 -> 1000 | L72: =L60 -> 1000 | M72: 1000 | N72: 1000 | O72: 1000 | P72: 1000 | Q72: 1000 | R72: 1000 | S72: 1000 | T72: 1000
B73: indexation | C73: =C72 -> $'000 | K73: =(K71-K72*$D$48)*K$20 -> 0 | L73: 0 | M73: 0 | N73: 0 | O73: 0 | P73: 0 | Q73: 0 | R73: 0 | S73: 0 | T73: 0
B74: Closing value before further depreciation | K74: =K71-K72+K73 -> 777985.3198 | L74: =L71-L72+L73 -> 776985.3198 | M74: 775985.3198 | N74: 774985.3198 | O74: 773985.3198 | P74: 772985.3198 | Q74: 771985.3198 | R74: 770985.3198 | S74: 769985.3198 | T74: 768985.3198
B76: Depreciation | C76: =C73 -> $'000 | D76: =1/D$42 -> 0.02567808205 | K76: =(K74+K72*$D$48)*$D$76*K69 -> 19990.00992 | L76: 19964.33184 | M76: 19938.65376 | N76: 19912.97567 | O76: 19887.29759 | P76: 19861.61951 | Q76: 19835.94143 | R76: 19810.26335 | S76: 19784.58526 | T76: 19758.90718 | V76: formula = (closing value + 50% disposals) x depreciation rate x % depreciation remaining
B78: New assets (ie net capex during period) - Method 1, suitable for long-live and short-lived assets | V78: ="Method 2 is suitable only for long-lived assets and is shown below from row "&ROW($B$150) -> Method 2 is suitable only for long-lived assets and is shown below from row 150
B79: Expected life (years) | D79: =$D$43 -> 60
B80: % of 1 year's depreciation in | K80: This matrix shows the proportion of a full year's worth of straight line depreciation that occurs each year
B81: =TRANSPOSE($K$16:$T$16) -> 2019-20 | C81: % | K81: =$D$47 -> 0.5 | L81: =IF(SUM($K81:K81)+1<$D79,1,$D79-SUM($K81:K81)) -> 1 | M81: =IF(SUM($K81:L81)+1<$D79,1,$D79-SUM($K81:L81)) -> 1 | N81: =IF(SUM($K81:M81)+1<$D79,1,$D79-SUM($K81:M81)) -> 1 | O81: =IF(SUM($K81:N81)+1<$D79,1,$D79-SUM($K81:N81)) -> 1 | P81: =IF(SUM($K81:O81)+1<$D79,1,$D79-SUM($K81:O81)) -> 1 | Q81: =IF(SUM($K81:P81)+1<$D79,1,$D79-SUM($K81:P81)) -> 1 | R81: =IF(SUM($K81:Q81)+1<$D79,1,$D79-SUM($K81:Q81)) -> 1 | S81: =IF(SUM($K81:R81)+1<$D79,1,$D79-SUM($K81:R81)) -> 1 | T81: =IF(SUM($K81:S81)+1<$D79,1,$D79-SUM($K81:S81)) -> 1
B82: 2020-21 | C82: % | K82: 0 | L82: =$D$47 -> 0.5 | M82: =IF(SUM($K82:L82)+1<$D79,1,$D79-SUM($K82:L82)) -> 1 | N82: =IF(SUM($K82:M82)+1<$D79,1,$D79-SUM($K82:M82)) -> 1 | O82: =IF(SUM($K82:N82)+1<$D79,1,$D79-SUM($K82:N82)) -> 1 | P82: =IF(SUM($K82:O82)+1<$D79,1,$D79-SUM($K82:O82)) -> 1 | Q82: =IF(SUM($K82:P82)+1<$D79,1,$D79-SUM($K82:P82)) -> 1 | R82: =IF(SUM($K82:Q82)+1<$D79,1,$D79-SUM($K82:Q82)) -> 1 | S82: =IF(SUM($K82:R82)+1<$D79,1,$D79-SUM($K82:R82)) -> 1 | T82: =IF(SUM($K82:S82)+1<$D79,1,$D79-SUM($K82:S82)) -> 1
B83: 2021-22 | C83: % | K83: 0 | L83: 0 | M83: =$D$47 -> 0.5 | N83: =IF(SUM($K83:M83)+1<$D79,1,$D79-SUM($K83:M83)) -> 1 | O83: =IF(SUM($K83:N83)+1<$D79,1,$D79-SUM($K83:N83)) -> 1 | P83: =IF(SUM($K83:O83)+1<$D79,1,$D79-SUM($K83:O83)) -> 1 | Q83: =IF(SUM($K83:P83)+1<$D79,1,$D79-SUM($K83:P83)) -> 1 | R83: =IF(SUM($K83:Q83)+1<$D79,1,$D79-SUM($K83:Q83)) -> 1 | S83: =IF(SUM($K83:R83)+1<$D79,1,$D79-SUM($K83:R83)) -> 1 | T83: =IF(SUM($K83:S83)+1<$D79,1,$D79-SUM($K83:S83)) -> 1
B84: 2022-23 | C84: % | K84: 0 | L84: 0 | M84: 0 | N84: =$D$47 -> 0.5 | O84: =IF(SUM($K84:N84)+1<$D79,1,$D79-SUM($K84:N84)) -> 1 | P84: =IF(SUM($K84:O84)+1<$D79,1,$D79-SUM($K84:O84)) -> 1 | Q84: =IF(SUM($K84:P84)+1<$D79,1,$D79-SUM($K84:P84)) -> 1 | R84: =IF(SUM($K84:Q84)+1<$D79,1,$D79-SUM($K84:Q84)) -> 1 | S84: =IF(SUM($K84:R84)+1<$D79,1,$D79-SUM($K84:R84)) -> 1 | T84: =IF(SUM($K84:S84)+1<$D79,1,$D79-SUM($K84:S84)) -> 1
B85: 2023-24 | C85: % | K85: 0 | L85: 0 | M85: 0 | N85: 0 | O85: =N84 -> 0.5 | P85: =IF(SUM($K85:O85)+1<$D79,1,$D80-SUM($K85:O85)) -> 1 | Q85: =IF(SUM($K85:P85)+1<$D79,1,$D79-SUM($K85:P85)) -> 1 | R85: =IF(SUM($K85:Q85)+1<$D79,1,$D79-SUM($K85:Q85)) -> 1 | S85: =IF(SUM($K85:R85)+1<$D79,1,$D79-SUM($K85:R85)) -> 1 | T85: =IF(SUM($K85:S85)+1<$D79,1,$D79-SUM($K85:S85)) -> 1
B86: 2024-25 | C86: % | K86: 0 | L86: 0 | M86: 0 | N86: 0 | O86: 0 | P86: =O85 -> 0.5 | Q86: =IF(SUM($K86:P86)+1<$D79,1,$D79-SUM($K86:P86)) -> 1 | R86: =IF(SUM($K86:Q86)+1<$D79,1,$D79-SUM($K86:Q86)) -> 1 | S86: =IF(SUM($K86:R86)+1<$D79,1,$D79-SUM($K86:R86)) -> 1 | T86: =IF(SUM($K86:S86)+1<$D79,1,$D79-SUM($K86:S86)) -> 1
B87: 2025-26 | C87: % | K87: 0 | L87: 0 | M87: 0 | N87: 0 | O87: 0 | P87: 0 | Q87: =P86 -> 0.5 | R87: =IF(SUM($K87:Q87)+1<$D79,1,$D79-SUM($K87:Q87)) -> 1 | S87: =IF(SUM($K87:R87)+1<$D79,1,$D79-SUM($K87:R87)) -> 1 | T87: =IF(SUM($K87:S87)+1<$D79,1,$D79-SUM($K87:S87)) -> 1
B88: 2026-27 | C88: % | K88: 0 | L88: 0 | M88: 0 | N88: 0 | O88: 0 | P88: 0 | Q88: 0 | R88: =Q87 -> 0.5 | S88: =IF(SUM($K88:R88)+1<$D79,1,$D79-SUM($K88:R88)) -> 1 | T88: =IF(SUM($K88:S88)+1<$D79,1,$D79-SUM($K88:S88)) -> 1
B89: 2027-28 | C89: % | K89: 0 | L89: 0 | M89: 0 | N89: 0 | O89: 0 | P89: 0 | Q89: 0 | R89: 0 | S89: =R88 -> 0.5 | T89: =IF(SUM($K89:S89)+1<$D79,1,$D79-SUM($K89:S89)) -> 1
B90: 2028-29 | C90: % | K90: 0 | L90: 0 | M90: 0 | N90: 0 | O90: 0 | P90: 0 | Q90: 0 | R90: 0 | S90: 0 | T90: =S89 -> 0.5
B92: Capex after indexation in first year (net of cap cons) | K92: =K59*(1+K$20*$D$47) -> 53300 | L92: 23860 | M92: 69650 | N92: 43720 | O92: 54000 | P92: 43000 | Q92: 32000 | R92: 32500 | S92: 33000 | T92: 33500
B93: Depreciation for capex (after indexation) occurring in: | D93: Depreciation rate
B94: =B81 -> 2019-20 | C94: =$C$117 -> $'000 | D94: =IF(D79=0,0,1/D79) -> 0.01666666667 | K94: =K81*K92*$D94 -> 444.1666667 | L94: =IF(K81=0,0,K94*L81/K81*(1+L$20)) -> 888.3333333 | M94: 888.3333333 | N94: 888.3333333 | O94: 888.3333333 | P94: 888.3333333 | Q94: 888.3333333 | R94: 888.3333333 | S94: 888.3333333 | T94: 888.3333333 | V94: formula = ($ depreciation in year t-1 x {% of full year's depreciation in year t / % of full year's depreciation I year t-1}) x (1 + inflation rate)
B95: =B82 -> 2020-21 | C95: $'000 | D95: =D94 -> 0.01666666667 | K95: =K82 -> 0 | L95: =L82*L92*$D95 -> 198.8333333 | M95: =IF(L82=0,0,L95*M82/L82*(1+M$20)) -> 397.6666667 | N95: 397.6666667 | O95: 397.6666667 | P95: 397.6666667 | Q95: 397.6666667 | R95: 397.6666667 | S95: 397.6666667 | T95: 397.6666667
B96: 2021-22 | C96: $'000 | D96: 0.01666666667 | K96: =K83 -> 0 | L96: =L83 -> 0 | M96: =M83*M92*$D96 -> 580.4166667 | N96: =IF(M83=0,0,M96*N83/M83*(1+N$20)) -> 1160.833333 | O96: 1160.833333 | P96: 1160.833333 | Q96: 1160.833333 | R96: 1160.833333 | S96: 1160.833333 | T96: 1160.833333
B97: 2022-23 | C97: $'000 | D97: 0.01666666667 | K97: 0 | L97: 0 | M97: 0 | N97: =N84*N92*$D97 -> 364.3333333 | O97: =IF(N84=0,0,N97*O84/N84*(1+O$20)) -> 728.6666667 | P97: 728.6666667 | Q97: 728.6666667 | R97: 728.6666667 | S97: 728.6666667 | T97: 728.6666667
B98: 2023-24 | C98: $'000 | D98: 0.01666666667 | K98: 0 | L98: 0 | M98: 0 | N98: 0 | O98: =O85*O92*$D98 -> 450 | P98: =IF(O85=0,0,O98*P85/O85*(1+P$20)) -> 900 | Q98: =IF(P85=0,0,P98*Q85/P85*(1+Q$20)) -> 900 | R98: =IF(Q85=0,0,Q98*R85/Q85*(1+R$20)) -> 900 | S98: =IF(R85=0,0,R98*S85/R85*(1+S$20)) -> 900 | T98: =IF(S85=0,0,S98*T85/S85*(1+T$20)) -> 900
B99: 2024-25 | C99: $'000 | D99: 0.01666666667 | K99: 0 | L99: 0 | M99: 0 | N99: 0 | O99: 0 | P99: =P86*P92*$D99 -> 358.3333333 | Q99: =IF(P86=0,0,P99*Q86/P86*(1+Q$20)) -> 716.6666667 | R99: =IF(Q86=0,0,Q99*R86/Q86*(1+R$20)) -> 716.6666667 | S99: =IF(R86=0,0,R99*S86/R86*(1+S$20)) -> 716.6666667 | T99: =IF(S86=0,0,S99*T86/S86*(1+T$20)) -> 716.6666667
B100: 2025-26 | C100: $'000 | D100: 0.01666666667 | K100: 0 | L100: 0 | M100: 0 | N100: 0 | O100: 0 | P100: 0 | Q100: =Q87*Q92*$D100 -> 266.6666667 | R100: =IF(Q87=0,0,Q100*R87/Q87*(1+R$20)) -> 533.3333333 | S100: =IF(R87=0,0,R100*S87/R87*(1+S$20)) -> 533.3333333 | T100: =IF(S87=0,0,S100*T87/S87*(1+T$20)) -> 533.3333333
B101: 2026-27 | C101: $'000 | D101: 0.01666666667 | K101: 0 | L101: 0 | M101: 0 | N101: 0 | O101: 0 | P101: 0 | Q101: 0 | R101: =R88*R92*$D101 -> 270.8333333 | S101: =IF(R88=0,0,R101*S88/R88*(1+S$20)) -> 541.6666667 | T101: =IF(S88=0,0,S101*T88/S88*(1+T$20)) -> 541.6666667
B102: 2027-28 | C102: $'000 | D102: 0.01666666667 | K102: 0 | L102: 0 | M102: 0 | N102: 0 | O102: 0 | P102: 0 | Q102: 0 | R102: =R89*R93*$D102 -> 0 | S102: =S89*S92*$D102 -> 275 | T102: =IF(S89=0,0,S102*T89/S89*(1+T$20)) -> 550
B103: 2028-29 | C103: $'000 | D103: 0.01666666667 | K103: 0 | L103: 0 | M103: 0 | N103: 0 | O103: 0 | P103: 0 | Q103: 0 | R103: 0 | S103: =S90*S93*$D103 -> 0 | T103: =T90*T92*$D103 -> 279.1666667
B104: Depreciation for the year | C104: $'000 | K104: =SUM(K94:K103) -> 444.1666667 | L104: 1087.166667 | M104: 1866.416667 | N104: 2811.166667 | O104: 3625.5 | P104: 4433.833333 | Q104: =SUM(Q94:Q103) -> 5058.833333 | R104: =SUM(R94:R103) -> 5596.333333 | S104: =SUM(S94:S103) -> 6142.166667 | T104: =SUM(T94:T103) -> 6696.333333
B108: =$B$27 -> Non-depreciating assets (eg land)
B109: =B117 -> Opening RAB | C109: =$C$26 -> $'000 | K109: =K$27 -> 45707.74149 | L109: =K114 -> 49507.74149 | M109: 49207.74149 | N109: 49207.74149 | O109: 54207.74149 | P109: 54207.74149 | Q109: 54207.74149 | R109: 54207.74149 | S109: 54207.74149 | T109: 54207.74149
B110: capex net of capital contributions | C110: =C109 -> $'000 | K110: =K$32-K$37 -> 4000 | L110: =L$32-L$37 -> 0 | M110: 0 | N110: 5000 | O110: 0 | P110: 0 | Q110: 0 | R110: 0 | S110: 0 | T110: 0
B111: disposals | C111: =C110 -> $'000 | K111: =K$40 -> 200 | L111: =L$40 -> 300 | M111: 0 | N111: 0 | O111: 0 | P111: 0 | Q111: 0 | R111: 0 | S111: 0 | T111: 0
B112: depreciation | C112: =C111 -> $'000 | K112: 0 | L112: 0 | M112: 0 | N112: 0 | O112: 0 | P112: 0 | Q112: 0 | R112: 0 | S112: 0 | T112: 0 | V112: Kept as placeholder to reduce risk of calculation error when adding depreciating and non-depreciating assets to total RAB
B113: indexation | C113: =C112 -> $'000 | K113: =(K109+K110*$D$47-K111*$D$48)*K$20 -> 0 | L113: 0 | M113: 0 | N113: 0 | O113: 0 | P113: 0 | Q113: 0 | R113: 0 | S113: 0 | T113: 0 | V113: Formula = (Opening value + 50 capex - 50 % disposals) x inflation rate
B114: Closing RAB | C114: =C113 -> $'000 | K114: =SUM(K109:K110)-K111-K112+K113 -> 49507.74149 | L114: 49207.74149 | M114: 49207.74149 | N114: 54207.74149 | O114: 54207.74149 | P114: 54207.74149 | Q114: 54207.74149 | R114: 54207.74149 | S114: 54207.74149 | T114: 54207.74149
B116: Total RAB
B117: =B58 -> Opening RAB | C117: =$C$26 -> $'000 | K117: =K58+K109 -> 824693.0613 | L117: =L58+L109 -> 860358.8847 | M117: 861867.3862 | N117: 908712.3158 | O117: 933708.1735 | P117: 963195.3759 | Q117: 980899.923 | R117: 987005.1483 | S117: 993098.5516 | T117: 999171.7997
B118: capex net of capital contributions | C118: =C117 -> $'000 | K118: =K59+K110 -> 57300 | L118: 23860 | M118: 69650 | N118: 48720 | O118: 54000 | P118: 43000 | Q118: 32000 | R118: 32500 | S118: 33000 | T118: 33500
B119: disposals | C119: =C118 -> $'000 | K119: =K60+K111 -> 1200 | L119: 1300 | M119: 1000 | N119: 1000 | O119: 1000 | P119: 1000 | Q119: 1000 | R119: 1000 | S119: 1000 | T119: 1000
B120: depreciation | C120: =C119 -> $'000 | K120: =K61+K112 -> 20434.17659 | L120: 21051.4985 | M120: 21805.07042 | N120: 22724.14234 | O120: 23512.79759 | P120: 24295.45284 | Q120: 24894.77476 | R120: 25406.59668 | S120: 25926.75193 | T120: 26455.24051
B121: indexation | C121: =C120 -> $'000 | K121: 0 | L121: 0 | M121: 0 | N121: 0 | O121: 0 | P121: 0 | Q121: 0 | R121: 0 | S121: 0 | T121: 0
B122: Closing RAB | C122: =C121 -> $'000 | K122: 860358.8847 | L122: 861867.3862 | M122: 908712.3158 | N122: 933708.1735 | O122: 963195.3759 | P122: 980899.923 | Q122: 987005.1483 | R122: 993098.5516 | S122: 999171.7997 | T122: 1005216.559
B123: check closing value = 0 | K123: =SUM(K117:K118)-K119-K120+K121-K122 -> 0 | L123: =SUM(L117:L118)-L119-L120+L121-L122 -> 0 | M123: 0 | N123: 0 | O123: 0 | P123: 0 | Q123: 0 | R123: 0 | S123: 0 | T123: 0
B124: check net capex = 0 | K124: =K118-SUM(K$31:K$32)+SUM(K$36:K$37) -> 0 | L124: =L118-SUM(L$31:L$32)+SUM(L$36:L$37) -> 0 | M124: 0 | N124: 0 | O124: 0 | P124: 0 | Q124: 0 | R124: 0 | S124: 0 | T124: 0
B125: check disposals = 0 | K125: =K119-SUM(K$39:K$40) -> 0 | L125: =L119-SUM(L$39:L$40) -> 0 | M125: 0 | N125: 0 | O125: 0 | P125: 0 | Q125: 0 | R125: 0 | S125: 0 | T125: 0
B130: TABLE 3 - ROLL FORWARD OF REGULATORY ASSET BASE FOR REGULATORY FINANCIAL STATEMENTS (nominal)
B131: =B$16 -> Financial year | J131: =J$16 -> 2018-19 | K131: 2019-20 | L131: 2020-21 | M131: 2021-22 | N131: 2022-23 | O131: 2023-24 | P131: 2024-25 | Q131: 2025-26 | R131: 2026-27 | S131: 2027-28 | T131: 2028-29
K132: =Scenario!$X$35 -> nominal $'000 | O132: =K132 -> nominal $'000
B133: Total RAB
B134: =B117 -> Opening RAB | C134: $'000 | K134: =K117 -> 824693.0613 | L134: =K139 -> 881867.8569 | M134: =L139 -> 905499.4227 | N134: =M139 -> 978583.7737 | O134: =N139 -> 1030639.118 | P134: 1089767.159 | Q134: 1137543.185 | R134: 1173238.959 | S134: 1209994.153 | T134: 1247828.661 | V134: = closing RAB from previous year (calculated)
B135: capex net of capital contributions | C135: $'000 | K135: =K118*K$23 -> 58732.5 | L135: 25067.9125 | M135: 75005.43203 | N135: 53777.76403 | O135: 61096.0435 | P135: 49866.81698 | Q135: 38037.94412 | R135: 39598.09417 | S135: 41212.47801 | T135: 42882.83223 | V135: = indexed
B136: disposals | C136: $'000 | K136: =K119*K$23 -> 1230 | L136: 1365.8125 | M136: 1076.890625 | N136: 1103.812891 | O136: 1131.408213 | P136: 1159.693418 | Q136: 1188.685754 | R136: 1218.402898 | S136: 1248.86297 | T136: 1280.084544 | V136: = indexed
B137: depreciation | C137: $'000 | K137: =K120*K$23 -> 20945.031 | L137: 22117.23062 | M137: 23481.67592 | N137: 25083.20124 | O137: 26602.5723 | P137: 28175.27675 | Q137: 29592.0641 | R137: 30955.47101 | S137: 32378.96042 | T137: 33864.9445 | V137: = indexed
B138: indexation | C138: $'000 | K138: =K139-K134-K135+K136+K137 -> 20617.32653 | L138: 22046.69642 | M138: 22637.48557 | N138: 24464.59434 | O138: 25765.97795 | P138: 27244.17897 | Q138: 28438.57962 | R138: 29330.97396 | S138: 30249.85382 | T138: 31195.71653 | V138: = calculated as a residual
B139: Closing RAB | C139: $'000 | K139: =K122*K$23 -> 881867.8569 | L139: 905499.4227 | M139: 978583.7737 | N139: =N122*N$23 -> 1030639.118 | O139: 1089767.159 | P139: 1137543.185 | Q139: 1173238.959 | R139: 1209994.153 | S139: 1247828.661 | T139: 1286762.181 | V139: = indexed closing value of real RAB
B140: check closing value = 0 | K140: =SUM(K134:K135)-K136-K137+K138-K139 -> 0 | L140: =SUM(L134:L135)-L136-L137+L138-L139 -> 0 | M140: =SUM(M134:M135)-M136-M137+M138-M139 -> 0 | N140: 0 | O140: 0 | P140: 0 | Q140: 0 | R140: 0 | S140: 0 | T140: 0
B141: check net capex = 0 | K141: =K135-SUM(K$31:K$32)*K$23+SUM(K$36:K$37)*K$23 -> 0 | L141: 2.160049917e-12 | M141: 5.798028724e-12 | N141: -7.958078641e-13 | O141: 0 | P141: 0 | Q141: 0 | R141: 0 | S141: 0 | T141: 0
B142: check disposals = 0 | K142: =K136-SUM(K$39:K$40)*K$23 -> 0 | L142: 0 | M142: 0 | N142: 0 | O142: 0 | P142: 0 | Q142: 0 | R142: 0 | S142: 0 | T142: 0
B143: check = 0 if forecasts are all in nominal $ | K143: =CHOOSE(Scenario!$W$37,K139-K122,"na") -> na | L143: =CHOOSE(Scenario!$W$37,L139-L122,"na") -> na | M143: =CHOOSE(Scenario!$W$37,M139-M122,"na") -> na | N143: =CHOOSE(Scenario!$W$37,N139-N122,"na") -> na | O143: =CHOOSE(Scenario!$W$37,O139-O122,"na") -> na | P143: =CHOOSE(Scenario!$W$37,P139-P122,"na") -> na | Q143: =CHOOSE(Scenario!$W$37,Q139-Q122,"na") -> na | R143: =CHOOSE(Scenario!$W$37,R139-R122,"na") -> na | S143: =CHOOSE(Scenario!$W$37,S139-S122,"na") -> na | T143: =CHOOSE(Scenario!$W$37,T139-T122,"na") -> na
B148: The option for depreciation in Table 4 below is for illustration only, and the results are not used anywhere in the model
B150: Table 4 - Depreciation of new assets (ie net capex during period) - Method 2 for long-lived assets
B151: This method is simpler but is suitable ONLY for long-lived assets since it assumes that all capex continues to be depreciated
B152: =B$16 -> Financial year | J152: =J$16 -> 2018-19 | K152: 2019-20 | L152: 2020-21 | M152: 2021-22 | N152: 2022-23 | O152: 2023-24 | P152: 2024-25 | Q152: 2025-26 | R152: 2026-27 | S152: 2027-28 | T152: 2028-29
K153: =K$17 -> 2018-19 $'000 | O153: =O$17 -> 2018-19 $'000
B154: New assets (ie net capex during period)
B155: Opening value (undepreciated) | C155: =$C$26 -> $'000 | K155: 0 | L155: =K158 -> 53300 | M155: =L158 -> 77160 | N155: 146810 | O155: 190530 | P155: 244530 | Q155: 287530 | R155: 319530 | S155: 352030 | T155: 385030
B156: capex net of cap cons | C156: =C155 -> $'000 | K156: =K59 -> 53300 | L156: 23860 | M156: 69650 | N156: 43720 | O156: 54000 | P156: 43000 | Q156: 32000 | R156: 32500 | S156: 33000 | T156: 33500
B157: indexation | C157: =C156 -> $'000 | K157: =(K155+K156*$D$47)*K$20 -> 0 | L157: 0 | M157: 0 | N157: 0 | O157: 0 | P157: 0 | Q157: 0 | R157: 0 | S157: 0 | T157: 0
B158: Closing value | C158: =C157 -> $'000 | K158: =SUM(K155:K157) -> 53300 | L158: =SUM(L155:L157) -> 77160 | M158: 146810 | N158: 190530 | O158: 244530 | P158: 287530 | Q158: 319530 | R158: 352030 | S158: 385030 | T158: 418530
B160: Depreciation for year | C160: =C158 -> $'000 | D160: =IF(D$43=0,0,1/D$43) -> 0.01666666667 | K160: =(K155+K157+K156*$D$47)*$D160 -> 444.1666667 | L160: 1087.166667 | M160: 1866.416667 | N160: 2811.166667 | O160: 3625.5 | P160: 4433.833333 | Q160: 5058.833333 | R160: 5596.333333 | S160: 6142.166667 | T160: 6696.333333 | V160: formula = (opening value + indexation + 50 % capex) x depreciation rate

Sheet Return on RAB
B1: =Cover!B1 -> THE INDEPENDENT PRICING AND REGULATORY TRIBUNAL OF NSW | K1: =Cover!$B$3 -> IPART TEMPLATE FOR COST BUILDING BLOCKS, SIMPLE TARIFF SETTING AND FINANCIAL RATIO ANALYSIS
B3: 8 Return on Regulatory Asset Base1 (year end and mid-year values)
B5: List of tables | G5: row number | L5: row number
B6: =B11 -> TABLE 1 - ASSUMPTIONS | G6: =ROW(B11) -> 11 | H6: ADDED | L6: =ROW(B11) -> 11
B7: =B28 -> TABLE 2 - CALCULATION OF RETURN ON ASSETS (FOR BUILDING BLOCK COSTS) | G7: =ROW(B56) -> 56 | L7: =ROW(B28) -> 28
B11: TABLE 1 - ASSUMPTIONS
B12: ='RAB projected '!B16 -> Financial year | J12: ='RAB projected '!J$16 -> 2018-19 | K12: ='RAB projected '!K$16 -> 2019-20 | L12: ='RAB projected '!L$16 -> 2020-21 | M12: ='RAB projected '!M$16 -> 2021-22 | N12: ='RAB projected '!N$16 -> 2022-23 | O12: ='RAB projected '!O$16 -> 2023-24 | P12: ='RAB projected '!P$16 -> 2024-25 | Q12: ='RAB projected '!Q$16 -> 2025-26 | R12: ='RAB projected '!R$16 -> 2026-27 | S12: ='RAB projected '!S$16 -> 2027-28 | T12: ='RAB projected '!T$16 -> 2028-29
K13: ='RAB projected '!K$18 -> Next determination period | O13: ='RAB projected '!O$18 -> Subsequent determinations
K14: ='RAB projected '!K$17 -> 2018-19 $'000 | O14: ='RAB projected '!O$17 -> 2018-19 $'000
B17: ='RAB projected '!B20 -> Inflation applied to costs and prices | K17: ='RAB projected '!K20 -> 0 | L17: ='RAB projected '!L20 -> 0 | M17: ='RAB projected '!M20 -> 0 | N17: ='RAB projected '!N20 -> 0 | O17: ='RAB projected '!O20 -> 0 | P17: ='RAB projected '!P20 -> 0 | Q17: ='RAB projected '!Q20 -> 0 | R17: ='RAB projected '!R20 -> 0 | S17: ='RAB projected '!S20 -> 0 | T17: ='RAB projected '!T20 -> 0
B19: =Scenario!$E$88 -> Real post-tax WACC (rounded) | K19: =Scenario!$D$88 -> 0.041 | L19: =Scenario!$D$88 -> 0.041 | M19: =Scenario!$D$88 -> 0.041 | N19: =Scenario!$D$88 -> 0.041 | O19: =Scenario!$D$88 -> 0.041 | P19: =Scenario!$D$88 -> 0.041 | Q19: =Scenario!$D$88 -> 0.041 | R19: =Scenario!$D$88 -> 0.041 | S19: =Scenario!$D$88 -> 0.041 | T19: =Scenario!$D$88 -> 0.041
B20: =CHOOSE(Scenario!$W$37,"WACC for capital maintenance check (nominal)","WACC for capital maintenance check (real)") -> WACC for capital maintenance check (real) | K20: =(K19+1)*(K17+1)-1 -> 0.041 | L20: =(L19+1)*(L17+1)-1 -> 0.041 | M20: =(M19+1)*(M17+1)-1 -> 0.041 | N20: 0.041 | O20: 0.041 | P20: 0.041 | Q20: 0.041 | R20: 0.041 | S20: 0.041 | T20: 0.041
B22: % of capex in year depreciated and indexed | D22: ='RAB & cost inputs'!$C$154 -> 0.5
B23: % of disposals in year depreciated and indexed | D23: ='RAB & cost inputs'!$C$155 -> 0.5
B28: TABLE 2 - CALCULATION OF RETURN ON ASSETS (FOR BUILDING BLOCK COSTS)
B29: =B12 -> Financial year | K29: =K12 -> 2019-20 | L29: =L12 -> 2020-21 | M29: 2021-22 | N29: 2022-23 | O29: 2023-24 | P29: 2024-25 | Q29: 2025-26 | R29: 2026-27 | S29: 2027-28 | T29: 2028-29
K30: =K14 -> 2018-19 $'000 | O30: =O14 -> 2018-19 $'000
B32: ='RAB projected '!B117 -> Opening RAB | C32: ='RAB projected '!C117 -> $'000 | K32: ='RAB projected '!K117 -> 824693.0613 | L32: ='RAB projected '!L117 -> 860358.8847 | M32: ='RAB projected '!M117 -> 861867.3862 | N32: ='RAB projected '!N117 -> 908712.3158 | O32: ='RAB projected '!O117 -> 933708.1735 | P32: ='RAB projected '!P117 -> 963195.3759 | Q32: ='RAB projected '!Q117 -> 980899.923 | R32: ='RAB projected '!R117 -> 987005.1483 | S32: ='RAB projected '!S117 -> 993098.5516 | T32: ='RAB projected '!T117 -> 999171.7997
B33: ='RAB projected '!B118 -> capex net of capital contributions | C33: ='RAB projected '!C118 -> $'000 | K33: ='RAB projected '!K118 -> 57300 | L33: ='RAB projected '!L118 -> 23860 | M33: ='RAB projected '!M118 -> 69650 | N33: ='RAB projected '!N118 -> 48720 | O33: ='RAB projected '!O118 -> 54000 | P33: ='RAB projected '!P118 -> 43000 | Q33: ='RAB projected '!Q118 -> 32000 | R33: ='RAB projected '!R118 -> 32500 | S33: ='RAB projected '!S118 -> 33000 | T33: ='RAB projected '!T118 -> 33500
B34: ='RAB projected '!B119 -> disposals | C34: ='RAB projected '!C119 -> $'000 | K34: ='RAB projected '!K119 -> 1200 | L34: ='RAB projected '!L119 -> 1300 | M34: ='RAB projected '!M119 -> 1000 | N34: ='RAB projected '!N119 -> 1000 | O34: ='RAB projected '!O119 -> 1000 | P34: ='RAB projected '!P119 -> 1000 | Q34: ='RAB projected '!Q119 -> 1000 | R34: ='RAB projected '!R119 -> 1000 | S34: ='RAB projected '!S119 -> 1000 | T34: ='RAB projected '!T119 -> 1000
B35: ='RAB projected '!B120 -> depreciation | C35: ='RAB projected '!C120 -> $'000 | K35: ='RAB projected '!K120 -> 20434.17659 | L35: ='RAB projected '!L120 -> 21051.4985 | M35: ='RAB projected '!M120 -> 21805.07042 | N35: ='RAB projected '!N120 -> 22724.14234 | O35: ='RAB projected '!O120 -> 23512.79759 | P35: ='RAB projected '!P120 -> 24295.45284 | Q35: ='RAB projected '!Q120 -> 24894.77476 | R35: ='RAB projected '!R120 -> 25406.59668 | S35: ='RAB projected '!S120 -> 25926.75193 | T35: ='RAB projected '!T120 -> 26455.24051
B36: ='RAB projected '!B121 -> indexation | C36: ='RAB projected '!C121 -> $'000 | K36: ='RAB projected '!K121 -> 0 | L36: ='RAB projected '!L121 -> 0 | M36: ='RAB projected '!M121 -> 0 | N36: ='RAB projected '!N121 -> 0 | O36: ='RAB projected '!O121 -> 0 | P36: ='RAB projected '!P121 -> 0 | Q36: ='RAB projected '!Q121 -> 0 | R36: ='RAB projected '!R121 -> 0 | S36: ='RAB projected '!S121 -> 0 | T36: ='RAB projected '!T121 -> 0
B37: ='RAB projected '!B122 -> Closing RAB | C37: ='RAB projected '!C122 -> $'000 | K37: ='RAB projected '!K122 -> 860358.8847 | L37: ='RAB projected '!L122 -> 861867.3862 | M37: ='RAB projected '!M122 -> 908712.3158 | N37: ='RAB projected '!N122 -> 933708.1735 | O37: ='RAB projected '!O122 -> 963195.3759 | P37: ='RAB projected '!P122 -> 980899.923 | Q37: ='RAB projected '!Q122 -> 987005.1483 | R37: ='RAB projected '!R122 -> 993098.5516 | S37: ='RAB projected '!S122 -> 999171.7997 | T37: ='RAB projected '!T122 -> 1005216.559
B40: Calculation of return on RAB
B41: Value of fixed RAB on which year-end return given | K41: =(K32+K33*$D$22-K34*$D$23)*(1+K17) -> 852743.0613 | L41: =(L32+L33*$D$22-L34*$D$23)*(1+L17) -> 871638.8847 | M41: 896192.3862 | N41: 932572.3158 | O41: 960208.1735 | P41: 984195.3759 | Q41: 996399.923 | R41: 1002755.148 | S41: 1009098.552 | T41: 1015421.8 | V41: = (opening value+ 50% capex- 50% disposals)*(1+inflation rate)
B42: Return on fixed RAB (year-end value) | K42: =K19*K41 -> 34962.46551 | L42: =L19*L41 -> 35737.19427 | M42: 36743.88784 | N42: 38235.46495 | O42: 39368.53511 | P42: 40352.01041 | Q42: 40852.39684 | R42: 41112.96108 | S42: 41373.04062 | T42: 41632.29379 | V42: Value on with return given x real WACC (compensation for inflation made in RAB roll forward)
B43: Return on fixed RAB to be recovered from revenue (mid-year value) | K43: =K42/(1+K19)^0.5 -> 34267.04747 | L43: 35026.36656 | M43: 36013.03656 | N43: 37474.94558 | O43: =O42/(1+O19)^0.5 -> 38585.47851 | P43: =P42/(1+P19)^0.5 -> 39549.39207 | Q43: =Q42/(1+Q19)^0.5 -> 40039.82561 | R43: 40295.20711 | S43: 40550.11356 | T43: 40804.21008 | V43: Mid-year value = year end value discounted by 6 months of (real) WACC
B45: Capital maintenance check
B47: Opening assets | C47: =C32 -> $'000 | K47: =K32 -> 824693.0613 | L47: =L32 -> 860358.8847 | M47: 861867.3862 | N47: 908712.3158 | O47: 933708.1735 | P47: 963195.3759 | Q47: 980899.923 | R47: 987005.1483 | S47: 993098.5516 | T47: 999171.7997
B48: Capex | C48: =C47 -> $'000 | K48: =K33 -> 57300 | L48: =L33 -> 23860 | M48: 69650 | N48: 48720 | O48: 54000 | P48: 43000 | Q48: 32000 | R48: 32500 | S48: 33000 | T48: 33500
B49: Disposals | C49: =C48 -> $'000 | K49: =K34 -> 1200 | L49: =L34 -> 1300 | M49: 1000 | N49: 1000 | O49: 1000 | P49: 1000 | Q49: 1000 | R49: 1000 | S49: 1000 | T49: 1000
B50: NPV of investment in assets | C50: =C49 -> $'000 | K50: =K47+(K48*$D$22-K49*$D$23)/(1+K20)+(K48-K49)*$D$22 -> 879688.3063 | L50: =L47+(L48*$D$22-L49*$D$23)/(1+L20)+(L48-L49)*$D$22 -> 882474.6196 | M50: 929165.489 | N50: 955492.5848 | O50: 985664.4655 | P50: 1004368.287 | Q50: 1011289.452 | R50: 1017884.831 | S50: 1024468.388 | T50: 1031031.79
B52: Return on assets (year end value) | C52: =C50 -> $'000 | K52: =K42 -> 34962.46551 | L52: =L42 -> 35737.19427 | M52: 36743.88784 | N52: 38235.46495 | O52: 39368.53511 | P52: 40352.01041 | Q52: 40852.39684 | R52: 41112.96108 | S52: 41373.04062 | T52: 41632.29379
B53: Depreciation (year end value) | C53: =C52 -> $'000 | K53: =K35 -> 20434.17659 | L53: =L35 -> 21051.4985 | M53: 21805.07042 | N53: 22724.14234 | O53: 23512.79759 | P53: 24295.45284 | Q53: 24894.77476 | R53: 25406.59668 | S53: 25926.75193 | T53: 26455.24051
B54: Closing asset value | C54: =C53 -> $'000 | K54: =K37 -> 860358.8847 | L54: =L37 -> 861867.3862 | M54: 908712.3158 | N54: 933708.1735 | O54: 963195.3759 | P54: 980899.923 | Q54: 987005.1483 | R54: 993098.5516 | S54: 999171.7997 | T54: 1005216.559
B55: NPV of asset returns | C55: =C54 -> $'000 | K55: =SUM(K52:K54)/(1+K20) -> 879688.3063 | L55: =SUM(L52:L54)/(1+L20) -> 882474.6196 | M55: 929165.489 | N55: 955492.5848 | O55: 985664.4655 | P55: 1004368.287 | Q55: 1011289.452 | R55: 1017884.831 | S55: 1024468.388 | T55: 1031031.79
B57: Difference (must=0) | K57: =K55-K50 -> 0 | L57: =L55-L50 -> 0 | M57: 0 | N57: 0 | O57: 0 | P57: 0 | Q57: 0 | R57: 0 | S57: =S55-S50 -> 0 | T57: =T55-T50 -> 0

Sheet Working capital
B1: =Cover!B1 -> THE INDEPENDENT PRICING AND REGULATORY TRIBUNAL OF NSW | K1: =Cover!$B$3 -> IPART TEMPLATE FOR COST BUILDING BLOCKS, SIMPLE TARIFF SETTING AND FINANCIAL RATIO ANALYSIS
B3: 9 Working capital and return on working capital
B5: List of tables | Q5: row number
B6: =B13 -> TABLE 1 - ASSUMPTIONS | Q6: =ROW(B13) -> 13
B7: =B40 -> TABLE 2 - CALCULATION OF WORKING CAPITAL ALLOWANCE AND RETURN ON WORKING CAPITAL (FOR BUILDING BLOCK REVENUE) - REVENUE OPTION 1 | Q7: =ROW(B40) -> 40
B8: =B55 -> The option in TABLE 3 below is for illustration only, and the results are not used as part of building block costs
B9: =B58 -> This method is suitable if expected revenue from tariffs and other sources is similar to expected building block costs each year.
B10: =B57 -> TABLE 3 - ALTERNATIVE CALCULATION OF WORKING CAPITAL ALLOWANCE AND RETURN ON WORKING CAPITAL (FOR BUILDING BLOCK REVENUE) - REVENUE OPTION 2 | Q10: =ROW(B57) -> 57
B13: TABLE 1 - ASSUMPTIONS
B14: ='Return on RAB'!B12 -> Financial year | I14: ='RAB projected '!I$16 -> 2017-18 | J14: ='RAB projected '!J$16 -> 2018-19 | K14: ='RAB projected '!K$16 -> 2019-20 | L14: ='RAB projected '!L$16 -> 2020-21 | M14: ='RAB projected '!M$16 -> 2021-22 | N14: ='RAB projected '!N$16 -> 2022-23 | O14: ='RAB projected '!O$16 -> 2023-24 | P14: ='RAB projected '!P$16 -> 2024-25 | Q14: ='RAB projected '!Q$16 -> 2025-26 | R14: ='RAB projected '!R$16 -> 2026-27 | S14: ='RAB projected '!S$16 -> 2027-28 | T14: ='RAB projected '!T$16 -> 2028-29
K15: ='RAB projected '!K$18 -> Next determination period | O15: ='RAB projected '!O$18 -> Subsequent determinations
I16: ='RAB historical'!I$15 -> nominal | J16: ='RAB historical'!J$15 -> nominal | K16: ='RAB projected '!K$17 -> 2018-19 $'000 | O16: ='RAB projected '!O$17 -> 2018-19 $'000
B18: ='Pricing & financial inputs'!B19 -> Inflation applied to costs and prices | I18: ='Pricing & financial inputs'!I19 -> 0.015 | J18: ='Pricing & financial inputs'!J19 -> 0.025 | K18: ='Pricing & financial inputs'!K19 -> 0 | L18: ='Pricing & financial inputs'!L19 -> 0 | M18: ='Pricing & financial inputs'!M19 -> 0 | N18: ='Pricing & financial inputs'!N19 -> 0 | O18: ='Pricing & financial inputs'!O19 -> 0 | P18: ='Pricing & financial inputs'!P19 -> 0 | Q18: ='Pricing & financial inputs'!Q19 -> 0 | R18: ='Pricing & financial inputs'!R19 -> 0 | S18: ='Pricing & financial inputs'!S19 -> 0 | T18: ='Pricing & financial inputs'!T19 -> 0
B20: ='Return on RAB'!B19 -> Real post-tax WACC (rounded) | I20: ='Pricing & financial inputs'!I24 -> 0.045 | J20: ='Pricing & financial inputs'!J24 -> 0.045 | K20: ='Return on RAB'!K19 -> 0.041 | L20: ='Return on RAB'!L19 -> 0.041 | M20: ='Return on RAB'!M19 -> 0.041 | N20: ='Return on RAB'!N19 -> 0.041 | O20: ='Return on RAB'!O19 -> 0.041 | P20: ='Return on RAB'!P19 -> 0.041 | Q20: ='Return on RAB'!Q19 -> 0.041 | R20: ='Return on RAB'!R19 -> 0.041 | S20: ='Return on RAB'!S19 -> 0.041 | T20: ='Return on RAB'!T19 -> 0.041
B21: =CHOOSE(Scenario!$W$37,"WACC (nominal)","WACC (nominal historical then forecast real)") -> WACC (nominal historical then forecast real) | I21: =(I20+1)*(I18+1)-1 -> 0.060675 | J21: =(J20+1)*(J18+1)-1 -> 0.071125 | K21: 0.041 | L21: 0.041 | M21: 0.041 | N21: 0.041 | O21: 0.041 | P21: 0.041 | Q21: 0.041 | R21: 0.041 | S21: 0.041 | T21: 0.041
B23: The value of forecast revenue used to specify working capital is always somewhat circular (since revenue depends on costs and one element of costs is the return on working capital).
B24: Circularity can be avoided by (1) using the previous year's revenue from tariffs or (2) the current year's building block costs but with the previous year's tax allowance and return on working capital.
B25: Most IPART models use approach 1. Note that the building block costs change slightly each time tariffs are reset when this approach is used.
B27: Revenue Option 1 - Revenue from tariffs in previous year, increased by CPI if forecasts are nominal | C27: ='RAB & cost inputs'!C37 -> $'000 | I27: =Scenario!I136 -> 119317 | J27: =Scenario!J136 -> 121750 | K27: =Scenario!J136*(1+K18) -> 121750 | L27: =Scenario!K136*(1+L18) -> 122296.5403 | M27: =Scenario!L136*(1+M18) -> 122835.5574 | N27: =Scenario!M136*(1+N18) -> 124348.0379 | O27: =Scenario!N136*(1+O18) -> 125888.3986 | P27: =Scenario!O136*(1+P18) -> 128397.9303 | Q27: =Scenario!P136*(1+Q18) -> 130910.8568 | R27: =Scenario!Q136*(1+R18) -> 133427.1759 | S27: =Scenario!R136*(1+S18) -> 135947.7618 | T27: =Scenario!S136*(1+T18) -> 138471.7352
B28: Revenue Option 2 - building block costs with return on working capital and tax allowance lagged by one year. | C28: =C27 -> $'000 | I28: =I27 -> 119317 | J28: =J27 -> 121750 | K28: =SUM('Cost building blocks'!K15:K17,'Cost building blocks'!J18:J20)-SUM('Cost building blocks'!K23:K24) -> 121042.0381 | L28: =SUM('Cost building blocks'!L15:L17,'Cost building blocks'!K18:K20)-SUM('Cost building blocks'!L23:L24) -> 122292.3927 | M28: =SUM('Cost building blocks'!M15:M17,'Cost building blocks'!L18:L20)-SUM('Cost building blocks'!M23:M24) -> 124869.3588 | N28: =SUM('Cost building blocks'!N15:N17,'Cost building blocks'!M18:M20)-SUM('Cost building blocks'!N23:N24) -> 127246.9833 | O28: =SUM('Cost building blocks'!O15:O17,'Cost building blocks'!N18:N20)-SUM('Cost building blocks'!O23:O24) -> 129103.716 | P28: =SUM('Cost building blocks'!P15:P17,'Cost building blocks'!O18:O20)-SUM('Cost building blocks'!P23:P24) -> 131723.9548 | Q28: =SUM('Cost building blocks'!Q15:Q17,'Cost building blocks'!P18:P20)-SUM('Cost building blocks'!Q23:Q24) -> 132719.1416 | R28: =SUM('Cost building blocks'!R15:R17,'Cost building blocks'!Q18:Q20)-SUM('Cost building blocks'!R23:R24) -> 133655.2059 | S28: =SUM('Cost building blocks'!S15:S17,'Cost building blocks'!R18:R20)-SUM('Cost building blocks'!S23:S24) -> 135257.3546 | T28: =SUM('Cost building blocks'!T15:T17,'Cost building blocks'!S18:S20)-SUM('Cost building blocks'!T23:T24) -> 136105.064
B30: Operating expenditure | C30: =$C$27 -> $'000 | I30: =Scenario!I62 -> 64940 | J30: =Scenario!J62 -> 64950 | K30: =Scenario!K62*'Pricing & financial inputs'!K$20 -> 65000 | L30: =Scenario!L62*'Pricing & financial inputs'!L$20 -> 65150 | M30: =Scenario!M62*'Pricing & financial inputs'!M$20 -> 65300 | N30: =Scenario!N62*'Pricing & financial inputs'!N$20 -> 65450 | O30: =Scenario!O62*'Pricing & financial inputs'!O$20 -> 65600 | P30: =Scenario!P62*'Pricing & financial inputs'!P$20 -> 65750 | Q30: =Scenario!Q62*'Pricing & financial inputs'!Q$20 -> 65900 | R30: =Scenario!R62*'Pricing & financial inputs'!R$20 -> 66050 | S30: =Scenario!S62*'Pricing & financial inputs'!S$20 -> 66200 | T30: =Scenario!T62*'Pricing & financial inputs'!T$20 -> 66350
B31: Net capital expenditure | C31: =$C$27 -> $'000 | I31: ='RAB historical'!I120 -> 34800 | J31: ='RAB historical'!J120 -> 64850 | K31: ='RAB projected '!K118 -> 57300 | L31: ='RAB projected '!L118 -> 23860 | M31: ='RAB projected '!M118 -> 69650 | N31: ='RAB projected '!N118 -> 48720 | O31: ='RAB projected '!O118 -> 54000 | P31: ='RAB projected '!P118 -> 43000 | Q31: ='RAB projected '!Q118 -> 32000 | R31: ='RAB projected '!R118 -> 32500 | S31: ='RAB projected '!S118 -> 33000 | T31: ='RAB projected '!T118 -> 33500
B32: check net capex = 0 | I32: =SUM('RAB historical'!I36:I37)-SUM('RAB historical'!I41:I42)-I31 -> 0 | J32: =SUM('RAB historical'!J36:J37)-SUM('RAB historical'!J41:J42)-J31 -> 0 | K32: =SUM('RAB projected '!K31:K32)-SUM('RAB projected '!K36:K37)-K31 -> 0 | L32: =SUM('RAB projected '!L31:L32)-SUM('RAB projected '!L36:L37)-L31 -> 0 | M32: =SUM('RAB projected '!M31:M32)-SUM('RAB projected '!M36:M37)-M31 -> 0 | N32: =SUM('RAB projected '!N31:N32)-SUM('RAB projected '!N36:N37)-N31 -> 0 | O32: =SUM('RAB projected '!O31:O32)-SUM('RAB projected '!O36:O37)-O31 -> 0 | P32: =SUM('RAB projected '!P31:P32)-SUM('RAB projected '!P36:P37)-P31 -> 0 | Q32: =SUM('RAB projected '!Q31:Q32)-SUM('RAB projected '!Q36:Q37)-Q31 -> 0 | R32: =SUM('RAB projected '!R31:R32)-SUM('RAB projected '!R36:R37)-R31 -> 0 | S32: =SUM('RAB projected '!S31:S32)-SUM('RAB projected '!S36:S37)-S31 -> 0 | T32: =SUM('RAB projected '!T31:T32)-SUM('RAB projected '!T36:T37)-T31 -> 0
B33: Specification of working capital
B34: ='RAB & cost inputs'!B62 -> Receivables @ no of days of sales | C34: ='RAB & cost inputs'!C62 -> days | D34: ='RAB & cost inputs'!D62 -> 45 | E34: Length depends on billing cycle. Generally use 50% number of days in cycle. Hence 45 days suitable for 3 monthly billing cycle
B35: ='RAB & cost inputs'!B63 -> Inventory @ no. of days opex + net capex | C35: ='RAB & cost inputs'!C63 -> days | D35: ='RAB & cost inputs'!D63 -> 2 | E35: Value depends on actual inventory held by business, from Statement of Financial Position (Balance Sheet)
B36: ='RAB & cost inputs'!B64 -> Accounts payable @ no. of days opex + net capex | C36: ='RAB & cost inputs'!C64 -> days | D36: ='RAB & cost inputs'!D64 -> 30 | E36: Standard IPART 30 days normally used
B40: TABLE 2 - CALCULATION OF WORKING CAPITAL ALLOWANCE AND RETURN ON WORKING CAPITAL (FOR BUILDING BLOCK REVENUE) - REVENUE OPTION 1
B41: =B$14 -> Financial year | I41: =I$14 -> 2017-18 | J41: =J$14 -> 2018-19 | K41: =K$14 -> 2019-20 | L41: =L$14 -> 2020-21 | M41: 2021-22 | N41: 2022-23 | O41: 2023-24 | P41: 2024-25 | Q41: 2025-26 | R41: 2026-27 | S41: 2027-28 | T41: 2028-29
I42: =I16 -> nominal | J42: =J16 -> nominal | K42: =K16 -> 2018-19 $'000 | O42: =O16 -> 2018-19 $'000
B44: Receivables (option 1, where revenue = revenue from tariffs in previous year increased by CPI) | I44: =$D$34/365*I$27 -> 14710.31507 | J44: =$D$34/365*J$27 -> 15010.27397 | K44: =$D$34/365*K$27 -> 15010.27397 | L44: =$D$34/365*L$27 -> 15077.65566 | M44: 15144.10982 | N44: 15330.58002 | O44: 15520.4875 | P44: 15829.88182 | Q44: 16139.69468 | R44: 16449.9258 | S44: 16760.68296 | T44: 17071.85777
B45: =B35 -> Inventory @ no. of days opex + net capex | I45: =$D$35/365*SUM(I$30:I$31) -> 546.5205479 | J45: =$D$35/365*SUM(J$30:J$31) -> 711.2328767 | K45: =$D$35/365*SUM(K$30:K$31) -> 670.1369863 | L45: =$D$35/365*SUM(L$30:L$31) -> 487.7260274 | M45: 739.4520548 | N45: 625.5890411 | O45: 655.3424658 | P45: 595.890411 | Q45: 536.4383562 | R45: 540 | S45: 543.5616438 | T45: 547.1232877
B46: =B36 -> Accounts payable @ no. of days opex + net capex | I46: =$D$36/365*SUM(I$30:I$31) -> 8197.808219 | J46: 10668.49315 | K46: =$D$36/365*SUM(K$30:K$31) -> 10052.05479 | L46: 7315.890411 | M46: 11091.78082 | N46: 9383.835616 | O46: 9830.136986 | P46: 8938.356164 | Q46: 8046.575342 | R46: 8100 | S46: 8153.424658 | T46: 8206.849315
B47: Net working capital | I47: =SUM(I44:I45)-I46 -> 7059.027397 | J47: =SUM(J44:J45)-J46 -> 5053.013699 | K47: =SUM(K44:K45)-K46 -> 5628.356164 | L47: 8249.491275 | M47: 4791.781052 | N47: 6572.333444 | O47: 6345.692975 | P47: 7487.416063 | Q47: 8629.557692 | R47: 8889.925797 | S47: 9150.819942 | T47: 9412.131739
B49: Return on working capital (year end value) | I49: =I47*I$21 -> 428.3064873 | J49: =J47*J$21 -> 359.3955993 | K49: =K47*K$21 -> 230.7626027 | L49: =L47*L$21 -> 338.2291423 | M49: 196.4630231 | N49: 269.4656712 | O49: 260.173412 | P49: 306.9840586 | Q49: 353.8118654 | R49: 364.4869577 | S49: 375.1836176 | T49: 385.8974013
B50: Return in working capital to be recovered from revenue (mid-year value) | I50: =I49/(1+I$21)^0.5 -> 415.8756437 | J50: =J49/(1+J$21)^0.5 -> 347.2583338 | K50: =K49/(1+K$21)^0.5 -> 226.1726382 | L50: =L49/(1+L$21)^0.5 -> 331.5016234 | M50: 192.5552915 | N50: 264.1058865 | O50: 254.9984542 | P50: 300.8780175 | Q50: 346.7743996 | R50: 357.2371599 | S50: 367.7210588 | T50: 378.2217408
B52: Note that the building block costs change slightly each time tariffs are reset when this approach is used.
B55: The option in TABLE 3 below is for illustration only, and the results are not used as part of building block costs
B57: TABLE 3 - ALTERNATIVE CALCULATION OF WORKING CAPITAL ALLOWANCE AND RETURN ON WORKING CAPITAL (FOR BUILDING BLOCK REVENUE) - REVENUE OPTION 2
B58: This method is suitable if expected revenue from tariffs and other sources is similar to expected building block costs each year.
B59: =B$14 -> Financial year | I59: =I$14 -> 2017-18 | J59: =J$14 -> 2018-19 | K59: =K$14 -> 2019-20 | L59: =L$14 -> 2020-21 | M59: 2021-22 | N59: 2022-23 | O59: 2023-24 | P59: 2024-25 | Q59: 2025-26 | R59: 2026-27 | S59: 2027-28 | T59: 2028-29
I60: =I16 -> nominal | J60: nominal | K60: =K16 -> 2018-19 $'000 | O60: =O16 -> 2018-19 $'000
B62: Receivables (option 2, where revenue = building block costs with lagged return on working capital and tax allowance, lagged to avoid circular referencing) | I62: =$D$34/365*I$28 -> 14710.31507 | J62: =$D$34/365*J$28 -> 15010.27397 | K62: =$D$34/365*K$28 -> 14922.991 | L62: 15077.1443 | M62: 15394.85246 | N62: 15687.98425 | O62: 15916.89649 | P62: 16239.93963 | Q62: 16362.6339 | R62: 16478.03908 | S62: 16675.56426 | T62: 16780.07638
B63: =B35 -> Inventory @ no. of days opex + net capex | I63: =$D$35/365*SUM(I$30:I$31) -> 546.5205479 | J63: =$D$35/365*SUM(J$30:J$31) -> 711.2328767 | K63: =$D$35/365*SUM(K$30:K$31) -> 670.1369863 | L63: =$D$35/365*SUM(L$30:L$31) -> 487.7260274 | M63: 739.4520548 | N63: 625.5890411 | O63: 655.3424658 | P63: 595.890411 | Q63: 536.4383562 | R63: 540 | S63: 543.5616438 | T63: 547.1232877
B64: =B36 -> Accounts payable @ no. of days opex + net capex | I64: =$D$36/365*SUM(I$30:I$31) -> 8197.808219 | J64: 10668.49315 | K64: 10052.05479 | L64: 7315.890411 | M64: 11091.78082 | N64: 9383.835616 | O64: 9830.136986 | P64: 8938.356164 | Q64: 8046.575342 | R64: 8100 | S64: 8153.424658 | T64: 8206.849315
B65: Net working capital | I65: =SUM(I62:I63)-I64 -> 7059.027397 | J65: =SUM(J62:J63)-J64 -> 5053.013699 | K65: 5541.073189 | L65: 8248.979918 | M65: 5042.523692 | N65: 6929.737671 | O65: 6742.101971 | P65: 7897.473879 | Q65: 8852.496913 | R65: 8918.039081 | S65: 9065.701249 | T65: 9120.350353
B67: Return on working capital (year end value) | I67: =I65*I$21 -> 428.3064873 | J67: =J65*J$21 -> 359.3955993 | K67: =K65*K$21 -> 227.1840007 | L67: =L65*L$21 -> 338.2081766 | M67: 206.7434714 | N67: 284.1192445 | O67: 276.4261808 | P67: 323.796429 | Q67: 362.9523734 | R67: 365.6396023 | S67: 371.6937512 | T67: 373.9343645
B68: Return in working capital to be recovered from revenue (mid-year value) | I68: =I67/(1+I$21)^0.5 -> 415.8756437 | J68: =J67/(1+J$21)^0.5 -> 347.2583338 | K68: 222.6652161 | L68: 331.4810748 | M68: 202.6312574 | N68: 278.4679941 | O68: 270.9279486 | P68: 317.3559828 | Q68: 355.7330992 | R68: 358.3668779 | S68: 364.3006073 | T68: 366.4966538

Sheet Tax
B1: =Cover!B1 -> THE INDEPENDENT PRICING AND REGULATORY TRIBUNAL OF NSW | K1: =Cover!$B$3 -> IPART TEMPLATE FOR COST BUILDING BLOCKS, SIMPLE TARIFF SETTING AND FINANCIAL RATIO ANALYSIS
B3: 10 Tax allowance in building block revenue and calculation of tax depreciation (if required)
B5: List of tables | M5: row number
B6: =B14 -> TABLE 1 - ASSUMPTIONS FOR CALCULATION OF TAX ALLOWANCE | M6: =ROW(B14) -> 14
B7: =B44 -> TABLE 2 - CALCULATION OF TAX ALLOWANCE | M7: =ROW(B44) -> 44
B8: =B82 -> TABLE 3 and TABLE 4 below are only for businesses that cannot provide forecast tax depreciation
B9: =B83 -> If the business can provide forecast tax depreciation, enter this depreciation in the 'RAB & cost inputs' worksheet and select the type of business in the 'Scenario' worksheet, row 29
B10: =B85 -> TABLE 3 - ASSUMPTIONS FOR ROLL FORWARD OF TAX ASSETS AND TAX DEPRECIATION (depreciating assets only, for businesses that cannot provide forecast tax depreciation) | M10: =ROW(B85) -> 85
B11: =B114 -> TABLE 4 - CALCULATION OF TAX DEPRECIATION | M11: =ROW(B114) -> 114
B14: TABLE 1 - ASSUMPTIONS FOR CALCULATION OF TAX ALLOWANCE
B15: ='RAB projected '!B$16 -> Financial year | F15: ='RAB & cost inputs'!F$33 -> 2014-15 | G15: ='RAB & cost inputs'!G$33 -> 2015-16 | H15: ='RAB & cost inputs'!H$33 -> 2016-17 | I15: ='RAB & cost inputs'!I$33 -> 2017-18 | J15: ='RAB & cost inputs'!J$33 -> 2018-19 | K15: ='RAB & cost inputs'!K$33 -> 2019-20 | L15: ='RAB & cost inputs'!L$33 -> 2020-21 | M15: ='RAB & cost inputs'!M$33 -> 2021-22 | N15: ='RAB & cost inputs'!N$33 -> 2022-23 | O15: ='RAB & cost inputs'!O$33 -> 2023-24 | P15: ='RAB & cost inputs'!P$33 -> 2024-25 | Q15: ='RAB & cost inputs'!Q$33 -> 2025-26 | R15: ='RAB & cost inputs'!R$33 -> 2026-27 | S15: ='RAB & cost inputs'!S$33 -> 2027-28 | T15: ='RAB & cost inputs'!T$33 -> 2028-29
J16: ='RAB & cost inputs'!J$34 -> Previous determinations | K16: ='RAB & cost inputs'!K$34 -> Next determination period | O16: ='RAB & cost inputs'!O$34 -> Subsequent determinations
B19: =Scenario!B29 -> Type of business with regard to tax (select option) | D19: =Scenario!$W$33 -> 1 | E19: =Scenario!D29 -> 1. Pays tax and can provide forecast tax depreciation | K19: =E19 -> 1. Pays tax and can provide forecast tax depreciation
K20: =IF($D$19>1,"Tax depreciation calculated below, from row "&ROW(B85),"Tax depreciation hard-coded in 'Fixed inputs' worksheet") -> Tax depreciation hard-coded in 'Fixed inputs' worksheet
B22: Inflation rate (from WACC) | K22: =WACC!$I$18 -> 0.024 | L22: =WACC!$I$18 -> 0.024 | M22: =WACC!$I$18 -> 0.024 | N22: =WACC!$I$18 -> 0.024 | O22: =WACC!$I$18 -> 0.024 | P22: =WACC!$I$18 -> 0.024 | Q22: =WACC!$I$18 -> 0.024 | R22: =WACC!$I$18 -> 0.024 | S22: =WACC!$I$18 -> 0.024 | T22: =WACC!$I$18 -> 0.024
B23: Raw inflator | J23: 1 | K23: =J23*(1+K22) -> 1.024 | L23: 1.048576 | M23: 1.073741824 | N23: 1.099511628 | O23: 1.125899907 | P23: 1.152921505 | Q23: 1.180591621 | R23: 1.20892582 | S23: 1.237940039 | T23: 1.2676506
B24: ='Pricing & financial inputs'!B20 -> Index applied to forecast costs and revenue | K24: ='Pricing & financial inputs'!K20 -> 1 | L24: ='Pricing & financial inputs'!L20 -> 1 | M24: ='Pricing & financial inputs'!M20 -> 1 | N24: ='Pricing & financial inputs'!N20 -> 1 | O24: ='Pricing & financial inputs'!O20 -> 1 | P24: ='Pricing & financial inputs'!P20 -> 1 | Q24: ='Pricing & financial inputs'!Q20 -> 1 | R24: ='Pricing & financial inputs'!R20 -> 1 | S24: ='Pricing & financial inputs'!S20 -> 1 | T24: ='Pricing & financial inputs'!T20 -> 1
B25: Inflator to nominal values for tax calculations | K25: =K23/K24 -> 1.024 | L25: 1.048576 | M25: 1.073741824 | N25: 1.099511628 | O25: 1.125899907 | P25: 1.152921505 | Q25: 1.180591621 | R25: 1.20892582 | S25: 1.237940039 | T25: 1.2676506
B26: Inflation rate to roll forward of tax value of assets | K26: ='Pricing & financial inputs'!K18 -> 0.025 | L26: ='Pricing & financial inputs'!L18 -> 0.025 | M26: ='Pricing & financial inputs'!M18 -> 0.025 | N26: ='Pricing & financial inputs'!N18 -> 0.025 | O26: ='Pricing & financial inputs'!O18 -> 0.025 | P26: ='Pricing & financial inputs'!P18 -> 0.025 | Q26: ='Pricing & financial inputs'!Q18 -> 0.025 | R26: ='Pricing & financial inputs'!R18 -> 0.025 | S26: ='Pricing & financial inputs'!S18 -> 0.025 | T26: ='Pricing & financial inputs'!T18 -> 0.025
B28: Debt to total asset | D28: =WACC!I22 -> 0.6
B29: =Scenario!B84 -> Cost of Debt (nominal pre-tax) | D29: =Scenario!D84 -> 0.0565
B30: =WACC!B25 -> Gamma | D30: =WACC!I25 -> 0.25
B31: =WACC!B26 -> Corporate tax rate | D31: =WACC!I26 -> 0.3
B32: RAB and working capital | C32: ='RAB & cost inputs'!$C$37&" nominal" -> $'000 nominal | K32: =(AVERAGE('RAB projected '!K117,'RAB projected '!K122)+'Working capital'!K47)*K25 -> 868510.0331 | L32: =(AVERAGE('RAB projected '!L117,'RAB projected '!L122)+'Working capital'!L47)*L25 -> 911592.7857 | M32: =(AVERAGE('RAB projected '!M117,'RAB projected '!M122)+'Working capital'!M47)*M25 -> 955717.8751 | N32: =(AVERAGE('RAB projected '!N117,'RAB projected '!N122)+'Working capital'!N47)*N25 -> 1020107.733 | O32: =(AVERAGE('RAB projected '!O117,'RAB projected '!O122)+'Working capital'!O47)*O25 -> 1075006.38 | P32: =(AVERAGE('RAB projected '!P117,'RAB projected '!P122)+'Working capital'!P47)*P25 -> 1129327.042 | Q32: =(AVERAGE('RAB projected '!Q117,'RAB projected '!Q122)+'Working capital'!Q47)*Q25 -> 1171834.102 | R32: =(AVERAGE('RAB projected '!R117,'RAB projected '!R122)+'Working capital'!R47)*R25 -> 1207646.505 | S32: =(AVERAGE('RAB projected '!S117,'RAB projected '!S122)+'Working capital'!S47)*S25 -> 1244483.785 | T32: =(AVERAGE('RAB projected '!T117,'RAB projected '!T122)+'Working capital'!T47)*T25 -> 1282363.348 | V32: This is used to calculate the value of debt
B33: Debt | C33: =C$32 -> $'000 nominal | K33: =K32*$D$28 -> 521106.0199 | L33: =L32*$D$28 -> 546955.6714 | M33: 573430.7251 | N33: 612064.6396 | O33: 645003.8279 | P33: 677596.2249 | Q33: 703100.4614 | R33: 724587.903 | S33: 746690.2709 | T33: 769418.0085
B35: Required revenue excluding tax liability | C35: =C$32 -> $'000 nominal | K35: =SUM('Cost building blocks'!K15:K18)*K$25 -> 122389.4553 | L35: =SUM('Cost building blocks'!L15:L18)*L$25 -> 127025.1715 | M35: =SUM('Cost building blocks'!M15:M18)*M$25 -> 131938.1208 | N35: =SUM('Cost building blocks'!N15:N18)*N$25 -> 137946.0495 | O35: =SUM('Cost building blocks'!O15:O18)*O$25 -> 143536.0197 | P35: =SUM('Cost building blocks'!P15:P18)*P$25 -> 149202.4268 | Q35: =SUM('Cost building blocks'!Q15:Q18)*Q$25 -> 154287.0413 | R35: =SUM('Cost building blocks'!R15:R18)*R$25 -> 159099.1026 | S35: =SUM('Cost building blocks'!S15:S18)*S$25 -> 164062.8225 | T35: =SUM('Cost building blocks'!T15:T18)*T$25 -> 169182.5082
B36: =CHOOSE(Scenario!$W$55,"In-kind asset contributions","Cash and in-kind asset contributions") -> In-kind asset contributions | C36: $'000 nominal | K36: =('RAB & cost inputs'!K94+CHOOSE(Scenario!$W$55,0,Scenario!K69+Scenario!K70))*K23 -> 1024 | L36: =('RAB & cost inputs'!L94+CHOOSE(Scenario!$W$55,0,Scenario!L69+Scenario!L70))*L23 -> 1048.576 | M36: =('RAB & cost inputs'!M94+CHOOSE(Scenario!$W$55,0,Scenario!M69+Scenario!M70))*M23 -> 1073.741824 | N36: =('RAB & cost inputs'!N94+CHOOSE(Scenario!$W$55,0,Scenario!N69+Scenario!N70))*N23 -> 1099.511628 | O36: =('RAB & cost inputs'!O94+CHOOSE(Scenario!$W$55,0,Scenario!O69+Scenario!O70))*O23 -> 1125.899907 | P36: =('RAB & cost inputs'!P94+CHOOSE(Scenario!$W$55,0,Scenario!P69+Scenario!P70))*P23 -> 1152.921505 | Q36: =('RAB & cost inputs'!Q94+CHOOSE(Scenario!$W$55,0,Scenario!Q69+Scenario!Q70))*Q23 -> 1180.591621 | R36: =('RAB & cost inputs'!R94+CHOOSE(Scenario!$W$55,0,Scenario!R69+Scenario!R70))*R23 -> 1208.92582 | S36: =('RAB & cost inputs'!S94+CHOOSE(Scenario!$W$55,0,Scenario!S69+Scenario!S70))*S23 -> 1237.940039 | T36: =('RAB & cost inputs'!T94+CHOOSE(Scenario!$W$55,0,Scenario!T69+Scenario!T70))*T23 -> 1267.6506 | V36: Included as income for tax purposes
B37: Profit/loss from asset sales shared with customers | C37: $'000 nominal | K37: ='Cost building blocks'!K23*K25 -> 0 | L37: ='Cost building blocks'!L23*L25 -> 0 | M37: ='Cost building blocks'!M23*M25 -> 0 | N37: ='Cost building blocks'!N23*N25 -> 0 | O37: ='Cost building blocks'!O23*O25 -> 0 | P37: ='Cost building blocks'!P23*P25 -> 0 | Q37: ='Cost building blocks'!Q23*Q25 -> 0 | R37: ='Cost building blocks'!R23*R25 -> 0 | S37: ='Cost building blocks'!S23*S25 -> 0 | T37: ='Cost building blocks'!T23*T25 -> 0
B38: Operating expenditure | C38: $'000 nominal | K38: ='Cost building blocks'!K15*K$25 -> 66560 | L38: ='Cost building blocks'!L15*L$25 -> 68314.7264 | M38: ='Cost building blocks'!M15*M$25 -> 70115.34111 | N38: ='Cost building blocks'!N15*N$25 -> 71963.03604 | O38: ='Cost building blocks'!O15*O$25 -> 73859.03389 | P38: ='Cost building blocks'!P15*P$25 -> 75804.58893 | Q38: ='Cost building blocks'!Q15*Q$25 -> 77800.98781 | R38: ='Cost building blocks'!R15*R$25 -> 79849.55039 | S38: ='Cost building blocks'!S15*S$25 -> 81951.6306 | T38: ='Cost building blocks'!T15*T$25 -> 84108.61733
B39: Tax depreciation | C39: $'000 nominal | J39: =IF($D$19>1,"calculated below","from 'Fixed inputs'") -> from 'Fixed inputs' | K39: =IF($D$19=1,'RAB & cost inputs'!K129,K126) -> 19450 | L39: =IF($D$19=1,'RAB & cost inputs'!L129,L126) -> 18550 | M39: =IF($D$19=1,'RAB & cost inputs'!M129,M126) -> 19930 | N39: =IF($D$19=1,'RAB & cost inputs'!N129,N126) -> 22620 | O39: =IF($D$19=1,'RAB & cost inputs'!O129,O126) -> 21340 | P39: =IF($D$19=1,'RAB & cost inputs'!P129,P126) -> 24040 | Q39: =IF($D$19=1,'RAB & cost inputs'!Q129,Q126) -> 25490 | R39: =IF($D$19=1,'RAB & cost inputs'!R129,R126) -> 23950 | S39: =IF($D$19=1,'RAB & cost inputs'!S129,S126) -> 25580 | T39: =IF($D$19=1,'RAB & cost inputs'!T129,T126) -> 26260
B40: Accumulated tax loss | C40: $'000 nominal | K40: ='RAB & cost inputs'!$K$145 -> 0
B44: TABLE 2 - CALCULATION OF TAX ALLOWANCE
B45: =B15 -> Financial year | J45: =J15 -> 2018-19 | K45: 2019-20 | L45: 2020-21 | M45: 2021-22 | N45: 2022-23 | O45: 2023-24 | P45: 2024-25 | Q45: 2025-26 | R45: 2026-27 | S45: 2027-28 | T45: 2028-29
K46: =K16 -> Next determination period | O46: =O16 -> Subsequent determinations
B49: Required revenue excluding tax liability | C49: =C32 -> $'000 nominal | K49: =K35 -> 122389.4553 | L49: =L35 -> 127025.1715 | M49: 131938.1208 | N49: 137946.0495 | O49: 143536.0197 | P49: 149202.4268 | Q49: 154287.0413 | R49: 159099.1026 | S49: 164062.8225 | T49: 169182.5082
B50: =CHOOSE(Scenario!$W$55,"In-kind asset contributions","Cash and in-kind asset contributions") -> In-kind asset contributions | C50: =C$49 -> $'000 nominal | K50: =K36 -> 1024 | L50: 1048.576 | M50: 1073.741824 | N50: 1099.511628 | O50: 1125.899907 | P50: 1152.921505 | Q50: 1180.591621 | R50: 1208.92582 | S50: 1237.940039 | T50: 1267.6506
B51: Profit/loss from asset sales shared with customers | C51: =C$49 -> $'000 nominal | K51: =K37 -> 0 | L51: =L37 -> 0 | M51: 0 | N51: 0 | O51: 0 | P51: 0 | Q51: 0 | R51: 0 | S51: 0 | T51: 0
B52: Total income for tax calculation | C52: $'000 nominal | K52: =SUM(K49:K51) -> 123413.4553 | L52: =SUM(L49:L51) -> 128073.7475 | M52: =SUM(M49:M51) -> 133011.8626 | N52: 139045.5611 | O52: 144661.9197 | P52: 150355.3483 | Q52: 155467.6329 | R52: 160308.0284 | S52: 165300.7626 | T52: 170450.1588
B53: less
B54: Operating expenditure | C54: $'000 nominal | K54: =K38 -> 66560 | L54: =L38 -> 68314.7264 | M54: 70115.34111 | N54: 71963.03604 | O54: 73859.03389 | P54: 75804.58893 | Q54: 77800.98781 | R54: 79849.55039 | S54: 81951.6306 | T54: 84108.61733
B55: Tax depreciation | C55: $'000 nominal | K55: =K39 -> 19450 | L55: =L39 -> 18550 | M55: 19930 | N55: 22620 | O55: 21340 | P55: 24040 | Q55: 25490 | R55: 23950 | S55: 25580 | T55: 26260
B56: Interest deductible | C56: $'000 nominal | K56: =K33*$D$29 -> 29442.49012 | L56: 30902.99544 | M56: 32398.83597 | N56: 34581.65214 | O56: 36442.71628 | P56: 38284.18671 | Q56: 39725.17607 | R56: 40939.21652 | S56: 42188.00031 | T56: 43472.11748
B57: Taxable income for the year | C57: $'000 nominal | K57: =K52-SUM(K54:K56) -> 7960.965128 | L57: 10306.02565 | M57: 10567.68551 | N57: 9880.872928 | O57: 13020.16949 | P57: 12226.57268 | Q57: 12451.46903 | R57: 15569.2615 | S57: 15581.13167 | T57: 16609.42397
B58: Accumulated tax losses | C58: $'000 nominal | K58: =K40 -> 0 | L58: =MAX(0,K58-K57) -> 0 | M58: =MAX(0,L58-L57) -> 0 | N58: 0 | O58: 0 | P58: 0 | Q58: 0 | R58: 0 | S58: 0 | T58: 0
B59: Taxable income after tax losses | C59: $'000 nominal | K59: =MAX(0,K57-K58) -> 7960.965128 | L59: =MAX(0,L57-L58) -> 10306.02565 | M59: =MAX(0,M57-M58) -> 10567.68551 | N59: 9880.872928 | O59: 13020.16949 | P59: 12226.57268 | Q59: 12451.46903 | R59: 15569.2615 | S59: 15581.13167 | T59: 16609.42397
B61: Tax before adjustment for franking credits | C61: =C59 -> $'000 nominal | K61: =K59*$D$31/(1-$D$31*(1-$D$30)) -> 3081.663921 | L61: =L59*$D$31/(1-$D$31*(1-$D$30)) -> 3989.429285 | M61: 4090.716973 | N61: 3824.854037 | O61: 5040.065608 | P61: 4732.866843 | Q61: 4819.923497 | R61: 6026.810904 | S61: 6031.405809 | T61: 6429.454441
B62: Adjustment for franking credits | C62: =C61 -> $'000 nominal | K62: =-K61*$D$30 -> -770.4159802 | L62: =-L61*$D$30 -> -997.3573213 | M62: -1022.679243 | N62: -956.2135092 | O62: -1260.016402 | P62: -1183.216711 | Q62: -1204.980874 | R62: -1506.702726 | S62: -1507.851452 | T62: -1607.36361
B63: Tax net of adjustment for franking credits | C63: $'000 nominal | K63: =K61+K62 -> 2311.24794 | L63: =L61+L62 -> 2992.071964 | M63: 3068.037729 | N63: 2868.640527 | O63: 3780.049206 | P63: 3549.650132 | Q63: 3614.942623 | R63: 4520.108178 | S63: 4523.554357 | T63: 4822.090831
B65: Tax allowance in required revenue | C65: =Scenario!$K$153 -> 2018-19 $'000 | K65: =IF(Scenario!$W$37=1,K61,K61/K$25) -> 3009.437422 | L65: =IF(Scenario!$W$37=1,L61,L61/L$25) -> 3804.616246 | M65: =IF(Scenario!$W$37=1,M61,M61/M$25) -> 3809.777063 | N65: =IF(Scenario!$W$37=1,N61,N61/N$25) -> 3478.684481 | O65: =IF(Scenario!$W$37=1,O61,O61/O$25) -> 4476.477507 | P65: =IF(Scenario!$W$37=1,P61,P61/P$25) -> 4105.10761 | Q65: =IF(Scenario!$W$37=1,Q61,Q61/Q$25) -> 4082.634006 | R65: =IF(Scenario!$W$37=1,R61,R61/R$25) -> 4985.261135 | S65: =IF(Scenario!$W$37=1,S61,S61/S$25) -> 4872.130813 | T65: =IF(Scenario!$W$37=1,T61,T61/T$25) -> 5071.945251
B66: =B62 -> Adjustment for franking credits | C66: =C65 -> 2018-19 $'000 | K66: =IF(Scenario!$W$37=1,K62,K62/K$25) -> -752.3593556 | L66: =IF(Scenario!$W$37=1,L62,L62/L$25) -> -951.1540616 | M66: =IF(Scenario!$W$37=1,M62,M62/M$25) -> -952.4442657 | N66: =IF(Scenario!$W$37=1,N62,N62/N$25) -> -869.6711203 | O66: =IF(Scenario!$W$37=1,O62,O62/O$25) -> -1119.119377 | P66: =IF(Scenario!$W$37=1,P62,P62/P$25) -> -1026.276903 | Q66: =IF(Scenario!$W$37=1,Q62,Q62/Q$25) -> -1020.658501 | R66: =IF(Scenario!$W$37=1,R62,R62/R$25) -> -1246.315284 | S66: =IF(Scenario!$W$37=1,S62,S62/S$25) -> -1218.032703 | T66: =IF(Scenario!$W$37=1,T62,T62/T$25) -> -1267.986313
B68: Tax rate before adjustment for franking credits (Tax / Income before tax, for information) | K68: =IF(K59+K63=0,0,K61/(K59+K63)) -> 0.3 | L68: =IF(L59+L63=0,0,L61/(L59+L63)) -> 0.3 | M68: 0.3 | N68: 0.3 | O68: 0.3 | P68: 0.3 | Q68: 0.3 | R68: 0.3 | S68: 0.3 | T68: 0.3
B69: Tax rate after adjustment for franking credits (Tax net of gamma adjustment / Income before tax, for information) | K69: =IF(K59+K63=0,0,K63/(K59+K63)) -> 0.225 | L69: 0.225 | M69: 0.225 | N69: 0.225 | O69: 0.225 | P69: 0.225 | Q69: 0.225 | R69: 0.225 | S69: 0.225 | T69: 0.225
B71: Check tax calculations
B72: Tax liability (adjusted for franking credits) | K72: =K59*$D$31*(1-$D$30)/(1-$D$31*(1-$D$30)) -> 2311.24794 | L72: 2992.071964 | M72: 3068.037729 | N72: 2868.640527 | O72: 3780.049206 | P72: 3549.650132 | Q72: 3614.942623 | R72: 4520.108178 | S72: 4523.554357 | T72: 4822.090831
B73: check = 0 | K73: =K72-K63 -> 0 | L73: 0 | M73: 0 | N73: 0 | O73: 0 | P73: 0 | Q73: 0 | R73: 0 | S73: 0 | T73: 0
B74: check value of franking credits = 0 | K74: =K66/K65+$D$30 -> 0 | L74: =L66/L65+$D$30 -> 0 | M74: 0 | N74: 0 | O74: 0 | P74: 0 | Q74: 0 | R74: 0 | S74: 0 | T74: 0
B75: Tax allowance as share income after tax (for information) | K75: =IF(K63=0,0,K63/K59) -> 0.2903225806 | L75: 0.2903225806 | M75: 0.2903225806 | N75: 0.2903225806 | O75: 0.2903225806 | P75: 0.2903225806 | Q75: 0.2903225806 | R75: 0.2903225806 | S75: 0.2903225806 | T75: 0.2903225806
B76: check = 0 | K76: =IF(K63=0,0,$D$31*(1-$D$30)/(1-$D$31*(1-$D$30))-K75) -> -5.551115123e-17 | L76: 0 | M76: -5.551115123e-17 | N76: 0 | O76: 0 | P76: 0 | Q76: 0 | R76: 0 | S76: 0 | T76: -5.551115123e-17
B82: TABLE 3 and TABLE 4 below are only for businesses that cannot provide forecast tax depreciation
B83: ="If the business can provide forecast tax depreciation, enter this depreciation in the 'RAB & cost inputs' worksheet and select the type of business in the 'Scenario' worksheet, row "&ROW(Scenario!B29) -> If the business can provide forecast tax depreciation, enter this depreciation in the 'RAB & cost inputs' worksheet and select the type of business in the 'Scenario' worksheet, row 29
B85: TABLE 3 - ASSUMPTIONS FOR ROLL FORWARD OF TAX ASSETS AND TAX DEPRECIATION (depreciating assets only, for businesses that cannot provide forecast tax depreciation) | P85: QA note: added text
B86: ='RAB & cost inputs'!B$33 -> Financial year | F86: =F15 -> 2014-15 | G86: 2015-16 | H86: 2016-17 | I86: 2017-18 | J86: 2018-19 | K86: 2019-20 | L86: =L15 -> 2020-21 | M86: 2021-22 | N86: 2022-23 | O86: 2023-24 | P86: 2024-25 | Q86: 2025-26 | R86: 2026-27 | S86: 2027-28 | T86: 2028-29
J87: =K87 -> $'000 nominal | K87: =$C$32 -> $'000 nominal | O87: =K87 -> $'000 nominal
J88: =J16 -> Previous determinations | K88: =K16 -> Next determination period | O88: =O16 -> Subsequent determinations
B90: Cost inflator | F90: 1 | G90: 1 | H90: 1 | I90: 1 | J90: 1 | K90: =J90*(1+K$26) -> 1.025 | L90: =K90*(1+L$26) -> 1.050625 | M90: 1.076890625 | N90: 1.103812891 | O90: 1.131408213 | P90: 1.159693418 | Q90: 1.188685754 | R90: 1.218402898 | S90: 1.24886297 | T90: 1.280084544
B92: ="Opening value of Tax assets (Depreciating assets only) - "&C94 -> Opening value of Tax assets (Depreciating assets only) - $'000 nominal | F92: =IF($D$19=3,'RAB & cost inputs'!F139,0) -> 0 | K92: =IF($D$19=1,"na - tax depreciation provided as an input",IF($D$19=2,'RAB & cost inputs'!$J$133,IF($D$19=3,"na -model uses rolled forward tax value of assets",IF($D$19=4,'RAB projected '!K26,"err")))) -> na - tax depreciation provided as an input
B94: Capital expenditure | C94: =$C$32 -> $'000 nominal | E94: source change | F94: =Scenario!F65*F$90 -> 34000 | G94: =Scenario!G65*G$90 -> 33000 | H94: =Scenario!H65*H$90 -> 21000 | I94: =Scenario!I65*I$90 -> 35000 | J94: =Scenario!J65*J$90 -> 65000 | K94: =Scenario!K65*K$90 -> 55350 | L94: =Scenario!L65*L$90 -> 25215 | M94: =Scenario!M65*M$90 -> 75382.34375 | N94: =Scenario!N65*N$90 -> 48567.76719 | O94: =Scenario!O65*O$90 -> 61096.0435 | P94: =Scenario!P65*P$90 -> 49866.81698 | Q94: =Scenario!Q65*Q$90 -> 38037.94412 | R94: =Scenario!R65*R$90 -> 39598.09417 | S94: =Scenario!S65*S$90 -> 41212.47801 | T94: =Scenario!T65*T$90 -> 42882.83223 | V94: Total capex (not net of cash capital contributions).
B95: Assets contributed in-kind | C95: =$C$32 -> $'000 nominal | F95: =IF($D$19=3,'RAB & cost inputs'!F140,0) -> 0 | G95: =IF($D$19=3,'RAB & cost inputs'!G140,0) -> 0 | H95: =IF($D$19=3,'RAB & cost inputs'!H140,0) -> 0 | I95: =IF($D$19=3,'RAB & cost inputs'!I140,0) -> 0 | J95: =IF($D$19=3,'RAB & cost inputs'!J140,0) -> 0 | K95: ='RAB & cost inputs'!K94*K$90 -> 1025 | L95: ='RAB & cost inputs'!L94*L$90 -> 1050.625 | M95: ='RAB & cost inputs'!M94*M$90 -> 1076.890625 | N95: ='RAB & cost inputs'!N94*N$90 -> 1103.812891 | O95: ='RAB & cost inputs'!O94*O$90 -> 1131.408213 | P95: ='RAB & cost inputs'!P94*P$90 -> 1159.693418 | Q95: ='RAB & cost inputs'!Q94*Q$90 -> 1188.685754 | R95: ='RAB & cost inputs'!R94*R$90 -> 1218.402898 | S95: ='RAB & cost inputs'!S94*S$90 -> 1248.86297 | T95: ='RAB & cost inputs'!T94*T$90 -> 1280.084544 | V95: Included in the tax asset base
B96: Disposals | C96: =$C$32 -> $'000 nominal | F96: =IF($D$19=3,'RAB & cost inputs'!F104,0) -> 0 | G96: =IF($D$19=3,'RAB & cost inputs'!G104,0) -> 0 | H96: =IF($D$19=3,'RAB & cost inputs'!H104,0) -> 0 | I96: =IF($D$19=3,'RAB & cost inputs'!I104,0) -> 0 | J96: =IF($D$19=3,'RAB & cost inputs'!J104,0) -> 0 | K96: ='RAB & cost inputs'!K104*K$90 -> 1025 | L96: ='RAB & cost inputs'!L104*L$90 -> 1050.625 | M96: ='RAB & cost inputs'!M104*M$90 -> 1076.890625 | N96: ='RAB & cost inputs'!N104*N$90 -> 1103.812891 | O96: ='RAB & cost inputs'!O104*O$90 -> 1131.408213 | P96: ='RAB & cost inputs'!P104*P$90 -> 1159.693418 | Q96: ='RAB & cost inputs'!Q104*Q$90 -> 1188.685754 | R96: ='RAB & cost inputs'!R104*R$90 -> 1218.402898 | S96: ='RAB & cost inputs'!S104*S$90 -> 1248.86297 | T96: ='RAB & cost inputs'!T104*T$90 -> 1280.084544
B98: ="Current regulatory period ("&F86&" to "&J86&")" -> Current regulatory period (2014-15 to 2018-19)
B99: Remaining lives of existing assets | C99: years | D99: =IF($D$19=3,'RAB historical'!D31,0) -> 0 | E99: as for RAB
B100: Average expected life of new assets | C100: years | D100: =IF($D$19=3,'RAB historical'!D32,0) -> 0 | E100: as for RAB
B102: ="New determinations (from "&K86&")" -> New determinations (from 2019-20)
B103: Remaining lives of existing assets | C103: years | D103: =IF($D$19=1,0,IF($D$19=2,'RAB & cost inputs'!$J134,'RAB projected '!D42)) -> 0 | E103: as for RAB
B104: Average expected life of new assets | C104: years | D104: =IF($D$19=1,0,IF($D$19=2,'RAB & cost inputs'!$J135,'RAB projected '!D43)) -> 0 | E104: as for RAB
B106: Timing and depreciation assumptions
B107: 1. Half of capital expenditure and disposals occurs at the beginning of the year, and half at the end of the year:
B108: % of capex in year depreciated | D108: ='RAB & cost inputs'!$C$154 -> 0.5
B109: % of disposals in year depreciated | D109: ='RAB & cost inputs'!$C$155 -> 0.5
B114: TABLE 4 - CALCULATION OF TAX DEPRECIATION
B115: =B$86 -> Financial year | F115: =F15 -> 2014-15 | G115: 2015-16 | H115: 2016-17 | I115: 2017-18 | J115: 2018-19 | K115: 2019-20 | L115: 2020-21 | M115: 2021-22 | N115: 2022-23 | O115: 2023-24 | P115: 2024-25 | Q115: 2025-26 | R115: 2026-27 | S115: 2027-28 | T115: 2028-29
J116: =J87 -> $'000 nominal | K116: =K87 -> $'000 nominal | O116: =O87 -> $'000 nominal
J117: =J88 -> Previous determinations | K117: =K88 -> Next determination period | O117: =O88 -> Subsequent determinations
B118: Tax assets are calculated using nominal 'at cost' values with no indexation.
B120: Opening Tax assets | C120: =$C$32 -> $'000 nominal | F120: =F92 -> 0 | G120: =F124 -> na | H120: =G124 -> na | I120: =H124 -> na | J120: =I124 -> na | K120: =IF(D19=3,J124,K92) -> na - tax depreciation provided as an input | L120: =K124 -> na | M120: na | N120: na | O120: na | P120: na | Q120: na | R120: na | S120: na | T120: na
B121: capex + assets contributed in-kind | C121: =$C$32 -> $'000 nominal | F121: =F94+F95 -> 34000 | G121: =G94+G95 -> 33000 | H121: =H94+H95 -> 21000 | I121: =I94+I95 -> 35000 | J121: =J94+J95 -> 65000 | K121: =K$94+K$95 -> 56375 | L121: 26265.625 | M121: 76459.23437 | N121: 49671.58008 | O121: 62227.45171 | P121: 51026.5104 | Q121: 39226.62987 | R121: 40816.49707 | S121: 42461.34098 | T121: 44162.91677
B122: disposals | C122: =$C$32 -> $'000 nominal | F122: =F96 -> 0 | G122: =G96 -> 0 | H122: =H96 -> 0 | I122: =I96 -> 0 | J122: =J96 -> 0 | K122: =K$96 -> 1025 | L122: 1050.625 | M122: 1076.890625 | N122: 1103.812891 | O122: 1131.408213 | P122: 1159.693418 | Q122: 1188.685754 | R122: 1218.402898 | S122: 1248.86297 | T122: 1280.084544
B123: depreciation | C123: =$C$32 -> $'000 nominal | F123: =IF($D$19=3,F139+F179,"na") -> na | G123: =IF($D$19=3,G139+G179,"na") -> na | H123: =IF($D$19=3,H139+H179,"na") -> na | I123: =IF($D$19=3,I139+I179,"na") -> na | J123: =IF($D$19=3,J139+J179,"na") -> na | K123: =IF($D$19=1,"na",K139+K179) -> na | L123: na | M123: na | N123: na | O123: na | P123: na | Q123: na | R123: na | S123: na | T123: na
B124: Closing Tax assets | C124: =$C$32 -> $'000 nominal | F124: =IF($D$19=1,"na",SUM(F120:F121)-F122-F123) -> na | G124: na | H124: na | I124: na | J124: na | K124: na | L124: na | M124: na | N124: na | O124: na | P124: na | Q124: na | R124: na | S124: na | T124: na
B126: Depreciation for tax allowance calculation | C126: =$C$32 -> $'000 nominal | K126: =IF($D$19=1,"na - input",K123) -> na - input | L126: na - input | M126: na - input | N126: na - input | O126: na - input | P126: na - input | Q126: na - input | R126: na - input | S126: na - input | T126: na - input
B128: Calculation of depreciation (straight line)
B129: Existing assets at start of period
B130: period | C130: no. | F130: 1 | G130: 2 | H130: 3 | I130: 4 | J130: 5 | K130: 1 | L130: 2 | M130: 3 | N130: 4 | O130: 5 | P130: 6 | Q130: 7 | R130: 8 | S130: 9 | T130: 10
B131: % depreciation remaining | C131: % | F131: =IF(F130<1/$D137,1,1/$D137) ->  | G131: =IF(G130<1/$D137,1,MAX(0,1/$D137-F130)) ->  | H131: =IF(H130<1/$D137,1,MAX(0,1/$D137-G130)) ->  | I131: =IF(I130<1/$D137,1,MAX(0,1/$D137-H130)) ->  | J131: =IF(J130<1/$D137,1,MAX(0,1/$D137-I130)) ->  | K131: =IF(K130<1/$D138,1,1/$D138) ->  | L131: =IF(L130<1/$D138,1,MAX(0,1/$D138-K130)) -> 
B133: Opening value of existing assets | C133: =$C$32 -> $'000 nominal | F133: =F120 -> 0 | G133: =F135 -> 0 | H133: =G135 -> 0 | I133: =H135 -> 0 | J133: =I135 -> 0 | K133: =K120 -> na - tax depreciation provided as an input | L133: =K135 -> 
B134: disposals | C134: =$C$32 -> $'000 nominal | F134: =F122 -> 0 | G134: =G122 -> 0 | H134: =H122 -> 0 | I134: =I122 -> 0 | J134: =J122 -> 0 | K134: =K122 -> 1025 | L134: 1050.625 | M134: 1076.890625 | N134: 1103.812891 | O134: 1131.408213 | P134: 1159.693418 | Q134: 1188.685754 | R134: 1218.402898 | S134: 1248.86297 | T134: 1280.084544
B135: Closing value before further depreciation | F135: =F133-F134 -> 0 | G135: =G133-G134 -> 0 | H135: =H133-H134 -> 0 | I135: =I133-I134 -> 0 | J135: =J133-J134 -> 0 | K135: =K133-K134 -> 
B137: Depreciation rate - current determination | C137: % | D137: =IF(D$99=0,0,1/D$99) -> 0
B138: Depreciation rate - new determination | C138: % | D138: =IF(D$103=0,0,1/D$103) -> 0
B139: Depreciation | C139: =$C$32 -> $'000 nominal | F139: =(F135+F134*$D$109)*$D$137*F131 ->  | G139: =(G135+G134*$D$109)*$D$137*G131 ->  | H139: =(H135+H134*$D$109)*$D$137*H131 ->  | I139: =(I135+I134*$D$109)*$D$137*I131 ->  | J139: =(J135+J134*$D$109)*$D$137*J131 ->  | K139: =(K135+K134*$D$109)*$D$138*K131 ->  | V139: formula = (closing value + 50% disposals) x depreciation rate x % depreciation remaining
B141: New assets (ie capex + assets contributed in-kind during period)
B142: Expected life, current determination (years) | D142: =$D$100 -> 0
B143: % of 1 year's depreciation in | F143: This matrix shows the proportion of a full year's worth of straight line depreciation that occurs each year
B144: =TRANSPOSE(F115:J115) -> 2014-15 | C144: % | F144: =$D$108 -> 0.5 | G144: =IF(SUM($F144:F144)+1<$D$142,1,$D$142-SUM($F144:F144)) -> -0.5 | H144: =IF(SUM($F144:G144)+1<$D$142,1,$D$142-SUM($F144:G144)) -> 0 | I144: =IF(SUM($F144:H144)+1<$D$142,1,$D$142-SUM($F144:H144)) -> 0 | J144: =IF(SUM($F144:I144)+1<$D$142,1,$D$142-SUM($F144:I144)) -> 0
B145: 2015-16 | C145: % | F145: 0 | G145: =$D$108 -> 0.5 | H145: =IF(SUM($F145:G145)+1<$D$142,1,$D$142-SUM($F145:G145)) -> -0.5 | I145: =IF(SUM($F145:H145)+1<$D$142,1,$D$142-SUM($F145:H145)) -> 0 | J145: =IF(SUM($F145:I145)+1<$D$142,1,$D$142-SUM($F145:I145)) -> 0
B146: 2016-17 | C146: % | F146: 0 | G146: 0 | H146: =$D$108 -> 0.5 | I146: =IF(SUM($F146:H146)+1<$D$142,1,$D$142-SUM($F146:H146)) -> -0.5 | J146: =IF(SUM($F146:I146)+1<$D$142,1,$D$142-SUM($F146:I146)) -> 0
